Workbook

Sheet FLUXO DE CAIXA
B2: DATA BASE: ABRIL / 2021
B4: DRE | C4: Total | D4: Pré-Oper | E4: 1º Ano | F4: 2 º Ano | G4: 3º ano | H4: 4º ano | I4: 5º ano | J4: 6º ano | K4: 7º ano | L4: 8º ano | M4: 9º ano | N4: 10º ano | O4: 11º ano | P4: 12º ano | Q4: 13º ano | R4: 14º ano | S4: 15º ano | T4: 16º ano | U4: 17º ano | V4: 18º ano | W4: 19º ano | X4: 20º ano
B5: Receita Tarifária Bruta | C5: =SUM(D5:X5) -> 1409847569 | E5: =(RECEITA!J36+RECEITA!J36/RECEITA!J34*'FLUXO DE CAIXA'!I43)*(1+K43) -> 16070251.8 | F5: =(RECEITA!J37+RECEITA!J37/RECEITA!J34*'FLUXO DE CAIXA'!I43)*(1+K43) -> 44167579.15 | G5: =(RECEITA!J38+RECEITA!J38/RECEITA!J34*'FLUXO DE CAIXA'!I43)*(1+K43) -> 57430201.6 | H5: =(RECEITA!J34+$I$43)*(1+$K$43) -> 76010560.94 | I5: =H5 -> 76010560.94 | J5: =I5 -> 76010560.94 | K5: =J5 -> 76010560.94 | L5: =K5 -> 76010560.94 | M5: 76010560.94 | N5: 76010560.94 | O5: 76010560.94 | P5: 76010560.94 | Q5: 76010560.94 | R5: 76010560.94 | S5: 76010560.94 | T5: 76010560.94 | U5: 76010560.94 | V5: 76010560.94 | W5: 76010560.94 | X5: 76010560.94
A6: 0.2 | B6: Outorga Mensal | C6: -281969513.7 | E6: =-E5*$A$6 -> -3214050.361 | F6: =-F5*$A$6 -> -8833515.83 | G6: -11486040.32 | H6: -15202112.19 | I6: -15202112.19 | J6: -15202112.19 | K6: -15202112.19 | L6: -15202112.19 | M6: -15202112.19 | N6: -15202112.19 | O6: -15202112.19 | P6: -15202112.19 | Q6: -15202112.19 | R6: -15202112.19 | S6: -15202112.19 | T6: -15202112.19 | U6: -15202112.19 | V6: -15202112.19 | W6: -15202112.19 | X6: -15202112.19
A7: 69654800 | B7: Outorga Inicial | C7: -69654800 | D7: =-A7 -> -69654800
A8: 0 | B8: VF Regulatória | C8: 0 | E8: =-$A$8*E5 -> 0 | F8: 0 | G8: 0 | H8: 0 | I8: 0 | J8: 0 | K8: 0 | L8: 0 | M8: 0 | N8: 0 | O8: 0 | P8: 0 | Q8: 0 | R8: 0 | S8: 0 | T8: 0 | U8: 0 | V8: 0 | W8: 0 | X8: 0
A9: 0 | B9: VF de Trânsito | C9: 0 | E9: =-E5*$A$9 -> 0 | F9: 0 | G9: 0 | H9: 0 | I9: 0 | J9: 0 | K9: 0 | L9: 0 | M9: 0 | N9: 0 | O9: 0 | P9: 0 | Q9: 0 | R9: 0 | S9: 0 | T9: 0 | U9: 0 | V9: 0 | W9: 0 | X9: 0
B10: Receita Após Repasse | C10: 1127878055 | E10: =E5+E6+(E8+E9) -> 12856201.44 | F10: 35334063.32 | G10: 45944161.28 | H10: 60808448.76 | I10: 60808448.76 | J10: 60808448.76 | K10: 60808448.76 | L10: 60808448.76 | M10: 60808448.76 | N10: 60808448.76 | O10: 60808448.76 | P10: 60808448.76 | Q10: 60808448.76 | R10: 60808448.76 | S10: 60808448.76 | T10: 60808448.76 | U10: 60808448.76 | V10: 60808448.76 | W10: 60808448.76 | X10: 60808448.76
A11: =D2 -> 0 | B11: Receita Após Participação | C11: 1127878055 | E11: =E10*(1-$A$11) -> 12856201.44 | F11: 35334063.32 | G11: 45944161.28 | H11: 60808448.76 | I11: 60808448.76 | J11: 60808448.76 | K11: 60808448.76 | L11: 60808448.76 | M11: 60808448.76 | N11: 60808448.76 | O11: 60808448.76 | P11: 60808448.76 | Q11: 60808448.76 | R11: 60808448.76 | S11: 60808448.76 | T11: 60808448.76 | U11: 60808448.76 | V11: 60808448.76 | W11: 60808448.76 | X11: 60808448.76
B12: Tributos sobre Receita | C12: -121951814.7 | E12: =SUM(E13:E15) -> -1390076.781 | F12: =SUM(F13:F15) -> -3820495.596 | G12: -4967712.439 | H12: -6574913.522 | I12: -6574913.522 | J12: -6574913.522 | K12: -6574913.522 | L12: -6574913.522 | M12: -6574913.522 | N12: -6574913.522 | O12: -6574913.522 | P12: -6574913.522 | Q12: -6574913.522 | R12: -6574913.522 | S12: -6574913.522 | T12: -6574913.522 | U12: -6574913.522 | V12: -6574913.522 | W12: -6574913.522 | X12: -6574913.522
A13: 0.03 | B13: PIS | C13: -42295427.06 | E13: =(-E5*$A$13) -> -482107.5541 | F13: =(-F5*$A$13) -> -1325027.374 | G13: -1722906.048 | H13: -2280316.828 | I13: -2280316.828 | J13: -2280316.828 | K13: -2280316.828 | L13: -2280316.828 | M13: -2280316.828 | N13: -2280316.828 | O13: -2280316.828 | P13: -2280316.828 | Q13: -2280316.828 | R13: -2280316.828 | S13: -2280316.828 | T13: -2280316.828 | U13: -2280316.828 | V13: -2280316.828 | W13: -2280316.828 | X13: -2280316.828
A14: 0.0065 | B14: COFINS | C14: -9164009.196 | E14: =(-E5*$A14) -> -104456.6367 | F14: =(-F5*$A14) -> -287089.2645 | G14: -373296.3104 | H14: -494068.6461 | I14: -494068.6461 | J14: -494068.6461 | K14: -494068.6461 | L14: -494068.6461 | M14: -494068.6461 | N14: -494068.6461 | O14: -494068.6461 | P14: -494068.6461 | Q14: -494068.6461 | R14: -494068.6461 | S14: -494068.6461 | T14: -494068.6461 | U14: -494068.6461 | V14: -494068.6461 | W14: -494068.6461 | X14: -494068.6461
A15: 0.05 | B15: ISS | C15: -70492378.43 | E15: =-E5*$A15 -> -803512.5901 | F15: -2208378.957 | G15: -2871510.08 | H15: -3800528.047 | I15: -3800528.047 | J15: -3800528.047 | K15: -3800528.047 | L15: -3800528.047 | M15: -3800528.047 | N15: -3800528.047 | O15: -3800528.047 | P15: -3800528.047 | Q15: -3800528.047 | R15: -3800528.047 | S15: -3800528.047 | T15: -3800528.047 | U15: -3800528.047 | V15: -3800528.047 | W15: -3800528.047 | X15: -3800528.047
A16: =J2 -> 0 | B16: Receita Líquida | C16: 1005926240 | E16: =E11+E12 -> 11466124.66 | F16: =F11+F12 -> 31513567.72 | G16: 40976448.84 | H16: 54233535.23 | I16: 54233535.23 | J16: 54233535.23 | K16: 54233535.23 | L16: 54233535.23 | M16: 54233535.23 | N16: 54233535.23 | O16: 54233535.23 | P16: 54233535.23 | Q16: 54233535.23 | R16: 54233535.23 | S16: 54233535.23 | T16: 54233535.23 | U16: 54233535.23 | V16: 54233535.23 | W16: 54233535.23 | X16: 54233535.23
E17: =E16/E5 -> 0.7135 | F17: 0.7135 | G17: 0.7135 | H17: 0.7135 | I17: 0.7135 | J17: 0.7135 | K17: 0.7135 | L17: 0.7135 | M17: 0.7135 | N17: 0.7135 | O17: 0.7135 | P17: 0.7135 | Q17: 0.7135 | R17: 0.7135 | S17: 0.7135 | T17: 0.7135 | U17: 0.7135 | V17: 0.7135 | W17: 0.7135 | X17: 0.7135
B19: CUSTOS E DESPESAS OPERAÇÃO | C19: =SUM(D19:X19) -> -493476571.9 | E19: =-(OPEX!D7+OPEX!D10)*('VAGAS CAPEX'!O34+'VAGAS CAPEX'!O29+'VAGAS CAPEX'!N29)/('VAGAS CAPEX'!N35+'VAGAS CAPEX'!O35)-OPEX!D8*'FLUXO DE CAIXA'!E5/'FLUXO DE CAIXA'!H5-OPEX!D9 -> -6824963.841 | F19: =-OPEX!D7-OPEX!D8*'FLUXO DE CAIXA'!F5/'FLUXO DE CAIXA'!H5-OPEX!D9-OPEX!D10 -> -17325247.51 | G19: =-OPEX!D7-OPEX!D8-OPEX!D9-OPEX!D10 -> -28093818.51 | H19: =-OPEX!D6 -> -28093818.51 | I19: =0.99*H19 -> -27812880.32 | J19: -27534751.52 | K19: -27259404 | L19: -26986809.96 | M19: -26716941.86 | N19: -26449772.44 | O19: -26185274.72 | P19: -25923421.97 | Q19: -25664187.75 | R19: -25407545.88 | S19: -25153470.42 | T19: -24901935.71 | U19: -24652916.36 | V19: -24406387.19 | W19: -24162323.32 | X19: -23920700.09
B20: DEPRECIAÇÃO | C20: -176442731.7 | E20: =-E59 -> -7108129.792 | F20: -9105360.145 | G20: -9105360.145 | H20: -9105360.145 | I20: -9105360.145 | J20: -8860877.423 | K20: =J20 -> -8860877.423 | L20: -8860877.423 | M20: -8860877.423 | N20: -8860877.423 | O20: -8860877.423 | P20: -8860877.423 | Q20: -8860877.423 | R20: -8860877.423 | S20: -8860877.423 | T20: -8860877.423 | U20: -8860877.423 | V20: -8860877.423 | W20: -8860877.423 | X20: -8860877.423
B21: Lucro Bruto | C21: 336006936.6 | E21: =E16+E19+E20 -> -2466968.972 | F21: =F16+F19+F20 -> 5082960.067 | G21: =G16+G19+G20 -> 3777270.191 | H21: =H16+H19+H20 -> 17034356.58 | I21: 17315294.77 | J21: 17837906.29 | K21: 18113253.81 | L21: 18385847.85 | M21: 18655715.95 | N21: 18922885.37 | O21: 19187383.09 | P21: 19449235.84 | Q21: 19708470.06 | R21: 19965111.93 | S21: 20219187.39 | T21: 20470722.1 | U21: 20719741.45 | V21: 20966270.62 | W21: 21210334.49 | X21: 21451957.72
C22: 0
B23: Lucro antes de IR | C23: 451151222 | E23: =0.32*E5 -> 5142480.577 | F23: =0.32*F5 -> 14133625.33 | G23: 18377664.51 | H23: 24323379.5 | I23: 24323379.5 | J23: 24323379.5 | K23: 24323379.5 | L23: 24323379.5 | M23: 24323379.5 | N23: 24323379.5 | O23: 24323379.5 | P23: 24323379.5 | Q23: 24323379.5 | R23: 24323379.5 | S23: 24323379.5 | T23: 24323379.5 | U23: 24323379.5 | V23: 24323379.5 | W23: 24323379.5 | X23: 24323379.5
A24: 0.15 | B24: Imposto de Renda | C24: 67672683.29 | E24: =IF(E23<0,0,E$23*$A24) -> 771372.0865 | F24: 2120043.799 | G24: 2756649.677 | H24: 3648506.925 | I24: 3648506.925 | J24: 3648506.925 | K24: 3648506.925 | L24: 3648506.925 | M24: 3648506.925 | N24: 3648506.925 | O24: 3648506.925 | P24: 3648506.925 | Q24: 3648506.925 | R24: 3648506.925 | S24: 3648506.925 | T24: 3648506.925 | U24: 3648506.925 | V24: 3648506.925 | W24: 3648506.925 | X24: 3648506.925
A25: 0.1 | B25: Adicional de Imposto | C25: 44635122.2 | E25: =IF(E23<240000,0,(E$23-240000)*$A25) -> 490248.0577 | F25: 1389362.533 | G25: 1813766.451 | H25: 2408337.95 | I25: 2408337.95 | J25: 2408337.95 | K25: 2408337.95 | L25: 2408337.95 | M25: 2408337.95 | N25: 2408337.95 | O25: 2408337.95 | P25: 2408337.95 | Q25: 2408337.95 | R25: 2408337.95 | S25: 2408337.95 | T25: 2408337.95 | U25: 2408337.95 | V25: 2408337.95 | W25: 2408337.95 | X25: 2408337.95
A26: 0.09 | B26: Contribuição Social | C26: 40603609.98 | E26: =IF(E23<0,0,E$23*$A26) -> 462823.2519 | F26: 1272026.279 | G26: 1653989.806 | H26: 2189104.155 | I26: 2189104.155 | J26: 2189104.155 | K26: 2189104.155 | L26: 2189104.155 | M26: 2189104.155 | N26: 2189104.155 | O26: 2189104.155 | P26: 2189104.155 | Q26: 2189104.155 | R26: 2189104.155 | S26: 2189104.155 | T26: 2189104.155 | U26: 2189104.155 | V26: 2189104.155 | W26: 2189104.155 | X26: 2189104.155
B27: Lucro Líquido | C27: 108088533.6 | D27: =D31 -> -75006987.5 | E27: =E21-SUM(E24:E26) -> -4191412.368 | F27: =F21-SUM(F24:F26) -> 301527.4558 | G27: -2447135.743 | H27: 8788407.551 | I27: 9069345.736 | J27: 9591957.261 | K27: 9867304.776 | L27: 10139898.82 | M27: 10409766.92 | N27: 10676936.33 | O27: 10941434.06 | P27: 11203286.81 | Q27: 11462521.03 | R27: 11719162.9 | S27: 11973238.36 | T27: 12224773.07 | U27: 12473792.42 | V27: 12720321.59 | W27: 12964385.46 | X27: 13206008.69
A28: =H2 -> 0 | B28: Lucro Líquido Ajustado | C28: 108088533.6 | D28: =D7-RESSARCIMENTO!B4 -> -75006987.5 | E28: =E27*(1-$H$2) -> -4191412.368 | F28: 301527.4558 | G28: -2447135.743 | H28: 8788407.551 | I28: 9069345.736 | J28: 9591957.261 | K28: 9867304.776 | L28: 10139898.82 | M28: 10409766.92 | N28: 10676936.33 | O28: 10941434.06 | P28: 11203286.81 | Q28: 11462521.03 | R28: 11719162.9 | S28: 11973238.36 | T28: 12224773.07 | U28: 12473792.42 | V28: 12720321.59 | W28: 12964385.46 | X28: 13206008.69
B29: Margem Sobre o Faturamento | C29: =C27/C5 -> 0.07666682273 | E29: -0.2608180892 | F29: 0.006826895693 | G29: -0.04261060687 | H29: 0.1156208748 | I29: 0.1193169163 | J29: 0.1261924283 | K29: 0.1298149185 | L29: 0.1334011839 | M29: 0.1369515866 | N29: 0.1404664852 | O29: 0.1439462349 | P29: 0.1473911871 | Q29: 0.1508016897 | R29: 0.1541780873 | S29: 0.157520721 | T29: 0.1608299283 | U29: 0.1641060435 | V29: 0.1673493976 | W29: 0.1705603182 | X29: 0.1737391295
B30: FLUXO DE CAIXA PROJETO | E30: =E4 -> 1º Ano | F30: 2 º Ano | G30: 3º ano | H30: 4º ano | I30: 5º ano | J30: 6º ano | K30: 7º ano | L30: 8º ano | M30: 9º ano | N30: 10º ano | O30: 11º ano | P30: 12º ano | Q30: 13º ano | R30: 14º ano | S30: 15º ano | T30: 16º ano | U30: 17º ano | V30: 18º ano | W30: 19º ano | X30: 20º ano
B31: (=) Lucro Líquido | C31: =SUM(D31:X31) -> 108088533.6 | D31: =D7-RESSARCIMENTO!B4 -> -75006987.5 | E31: =E28 -> -4191412.368 | F31: =F28 -> 301527.4558 | G31: -2447135.743 | H31: 8788407.551 | I31: 9069345.736 | J31: 9591957.261 | K31: 9867304.776 | L31: 10139898.82 | M31: 10409766.92 | N31: =N28 -> 10676936.33 | O31: =O28 -> 10941434.06 | P31: 11203286.81 | Q31: 11462521.03 | R31: 11719162.9 | S31: 11973238.36 | T31: 12224773.07 | U31: 12473792.42 | V31: 12720321.59 | W31: 12964385.46 | X31: 13206008.69
B32: (+) Depreciação | C32: =SUM(E32:X32) -> 176442731.7 | E32: =E20*-1 -> 7108129.792 | F32: =F20*-1 -> 9105360.145 | G32: =G20*-1 -> 9105360.145 | H32: =H20*-1 -> 9105360.145 | I32: 9105360.145 | J32: 8860877.423 | K32: 8860877.423 | L32: 8860877.423 | M32: 8860877.423 | N32: 8860877.423 | O32: 8860877.423 | P32: 8860877.423 | Q32: 8860877.423 | R32: 8860877.423 | S32: 8860877.423 | T32: 8860877.423 | U32: 8860877.423 | V32: 8860877.423 | W32: 8860877.423 | X32: 8860877.423
B33: IMOBILIZADO | C33: =SUM(D33:X33) -> 0 | E33: 0 | F33: =-'[1]TOTALRESUMO '!$I$24 -> 0 | G33: =-'[1]TOTALRESUMO '!$J$24 -> 0
B34: (-) Investimentos | C34: =SUM(D34:X34) -> -102430798.2 | E34: =-ESTACIONAMENTOS!O81-ESTACIONAMENTOS!Q81-ESTACIONAMENTOS!S81*('VAGAS CAPEX'!K34+'VAGAS CAPEX'!K29)/ESTACIONAMENTOS!M77-('VAGAS CAPEX'!N290+'VAGAS CAPEX'!O19+'VAGAS CAPEX'!O29+'VAGAS CAPEX'!O34)*20*EDIFICAÇÕES!C4-('VAGAS CAPEX'!O19+'VAGAS CAPEX'!O29+'VAGAS CAPEX'!O34)*70*EDIFICAÇÕES!C5-0.33*CAPEX!D9-CAPEX!D10-CAPEX!D11-CAPEX!D12-COMUNICAÇÃO!F19-CAPEX!D14 -> -49428548.37 | F34: =-ESTACIONAMENTOS!S81*'VAGAS CAPEX'!K26/ESTACIONAMENTOS!M77-'VAGAS CAPEX'!N26*20*EDIFICAÇÕES!C4-EDIFICAÇÕES!E3-0.67*CAPEX!D9-COMUNICAÇÃO!F36 -> -20597197.77 | G34: =-COMUNICAÇÃO!F53 -> 0 | I34: =-CAPEX!D9+EQUIPAMENTOS!F3-CAPEX!D12*0.5-CAPEX!D14 -> -10340206.7 | N34: =-CAPEX!D9+EQUIPAMENTOS!F3-CAPEX!D10-CAPEX!D12*0.5-CAPEX!D14 -> -11724638.7 | S34: =-CAPEX!D9+EQUIPAMENTOS!F3-CAPEX!D12*0.5-CAPEX!D14 -> -10340206.7 | T34: =O34 -> 0 | U34: 0 | V34: 0 | W34: 0
B35: (-) Manutenção | C35: =SUM(E35:X35) -> -31654694.61 | I35: =-0.05*(CAPEX!D7+CAPEX!D8) -> -1978418.413 | J35: =I35 -> -1978418.413 | K35: =J35 -> -1978418.413 | L35: -1978418.413 | M35: -1978418.413 | N35: -1978418.413 | O35: -1978418.413 | P35: -1978418.413 | Q35: -1978418.413 | R35: -1978418.413 | S35: -1978418.413 | T35: -1978418.413 | U35: -1978418.413 | V35: -1978418.413 | W35: -1978418.413 | X35: -1978418.413
B36: (-) Despesas Pré Operacionais | C36: =SUM(D36:X36) -> 0
B37: (=) Saldo de Caixa | C37: =SUM(D37:X37) -> 150445772.5 | D37: =SUM(D31:D36) -> -75006987.5 | E37: =SUM(E31:E36) -> -46511830.94 | F37: =SUM(F31:F36) -> -11190310.17 | G37: =SUM(G31:G36) -> 6658224.402 | H37: 17893767.7 | I37: 5856080.768 | J37: 16474416.27 | K37: 16749763.79 | L37: 17022357.83 | M37: 17292225.93 | N37: 5834756.645 | O37: 17823893.07 | P37: 18085745.82 | Q37: 18344980.04 | R37: 18601621.91 | S37: 8515490.673 | T37: 19107232.08 | U37: 19356251.43 | V37: 19602780.6 | W37: 19846844.47 | X37: 20088467.7
B38: (=) Saldo de Caixa Acumulado | D38: =D37 -> -75006987.5 | E38: =E37+D38 -> -121518818.4 | F38: =F37+E38 -> -132709128.6 | G38: -126050904.2 | H38: -108157136.5 | I38: -102301055.8 | J38: -85826639.48 | K38: -69076875.69 | L38: -52054517.87 | M38: -34762291.94 | N38: -28927535.29 | O38: -11103642.22 | P38: 6982103.592 | Q38: 25327083.63 | R38: 43928705.54 | S38: 52444196.22 | T38: 71551428.29 | U38: 90907679.73 | V38: 110510460.3 | W38: 130357304.8 | X38: 150445772.5
B39: FCL | C39: =NPV(C41,E37:X37)+D37 -> 150445772.5
B40: Exposição Máxima | C40: =MIN(D38:S38) -> -132709128.6 | F40: SIMULAÇÕES
B42: VPL | C42: =NPV(C43,D37:X37) -> 4.952918942e-08
B43: TIR | C43: =IRR(D37:X37) -> 0.071800031 | F43: TARIFA AUTO (R$) | G43: 3 | H43: RECEITA ACESSÓRIA (R$) | I43: =RECEITA!D46 -> 318926.4 | J43: FRUSTRAÇÃO DE RECEITA | K43: 0
B44: Taxa Interna de Retorno Acionistas | C44: =IRR(D27:X27) -> 0.07562567933
F45: TAXA DE OCUPAÇÃO (%) | G45: 0.3 | H45: TAXA RESPEITO 1º ANO | I45: 0.5 | J45: TAXA RESPEITO 4º ANO | K45: 0.6
B46: VALOR DO CONTRATO | C46: =-(C6+C7+C19+C33+C34+C35) -> 979186378.5
D48: DEPRECIAÇÃO | E48: ANO 1 | F48: ANO 2 | G48: ANO 3 | H48: ANO 4 | I48: ANO 5 | J48: ANO 6-20
D49: Outorga | E49: =-$D7/20 -> 3482740 | F49: =-$D7/20 -> 3482740 | G49: 3482740 | H49: 3482740 | I49: 3482740 | J49: =-$D7/20 -> 3482740
D50: Ressarcimento | E50: =RESSARCIMENTO!$B4/20 -> 267609.3751 | F50: =RESSARCIMENTO!$B4/20 -> 267609.3751 | G50: =RESSARCIMENTO!$B4/20 -> 267609.3751 | H50: =RESSARCIMENTO!$B4/20 -> 267609.3751 | I50: =RESSARCIMENTO!$B4/20 -> 267609.3751 | J50: =RESSARCIMENTO!$B4/20 -> 267609.3751
D51: Estacionamentos | E51: =(ESTACIONAMENTOS!O81+ESTACIONAMENTOS!Q81+ESTACIONAMENTOS!S81*('VAGAS CAPEX'!K29+'VAGAS CAPEX'!K34)/ESTACIONAMENTOS!M77)/20 -> 1124420.186 | F51: =E51+(CAPEX!D7-'FLUXO DE CAIXA'!E51*20)/19 -> 1799244.32 | G51: =F51 -> 1799244.32 | H51: 1799244.32 | I51: 1799244.32 | J51: 1799244.32
D52: Edificações | E52: =(('VAGAS CAPEX'!N290+'VAGAS CAPEX'!O19+'VAGAS CAPEX'!O29+'VAGAS CAPEX'!O34)*20*EDIFICAÇÕES!C4+('VAGAS CAPEX'!O19+'VAGAS CAPEX'!O29+'VAGAS CAPEX'!O34)*70*EDIFICAÇÕES!C5)/20 -> 117922.32 | F52: =E52+(CAPEX!D8-'FLUXO DE CAIXA'!E52*20)/19 -> 217914.9305 | G52: 217914.9305 | H52: 217914.9305 | I52: 217914.9305 | J52: 217914.9305
D53: Equipamentos | E53: =0.33*CAPEX!D9/5 -> 481667.4522 | F53: =E53+0.67*CAPEX!D9/4 -> 1704081.062 | G53: =F53 -> 1704081.062 | H53: 1704081.062 | I53: 1704081.062 | J53: =CAPEX!D9/5 -> 1459598.34
D54: CCO | E54: =CAPEX!D10/10 -> 138443.2 | F54: =E54 -> 138443.2 | G54: 138443.2 | H54: 138443.2 | I54: 138443.2 | J54: =I54 -> 138443.2
D55: Sistemas | E55: =CAPEX!D11/20 -> 626000 | F55: =E55 -> 626000 | G55: 626000 | H55: 626000 | I55: 626000 | J55: 626000
D56: Veículos | E56: =CAPEX!D12/10 -> 465600 | F56: =E56 -> 465600 | G56: 465600 | H56: 465600 | I56: 465600 | J56: 465600
D57: Comunicação | E57: =CAPEX!D13/20 -> 260884.258 | F57: =E57 -> 260884.258 | G57: 260884.258 | H57: 260884.258 | I57: 260884.258 | J57: 260884.258
D58: Uniformes | E58: =CAPEX!D14/5 -> 142843 | F58: =E58 -> 142843 | G58: 142843 | H58: 142843 | I58: 142843 | J58: 142843
D59: TOTAL | E59: =SUM(E49:E58) -> 7108129.792 | F59: 9105360.145 | G59: 9105360.145 | H59: 9105360.145 | I59: 9105360.145 | J59: 8860877.423
C63: TIR para percentual de Outorga 15%
C64: =IRR(D37:X37) -> 0.071800031 | D64: 0.2 | E64: 0.21 | F64: 0.22 | G64: 0.23 | H64: 0.24 | I64: 0.25 | J64: 0.26 | K64: 0.27 | L64: 0.28 | M64: 0.29 | N64: 0.3 | O64: 0.31 | P64: 0.32 | Q64: 0.33 | R64: 0.34 | S64: 0.35 | T64: 0.36 | U64: 0.37 | V64: 0.38 | W64: 0.39 | X64: 0.4 | Y64: 0.41 | Z64: 0.42 | AA64: 0.43 | AB64: 0.44 | AC64: 0.45 | AD64: 0.46 | AE64: 0.47 | AF64: 0.48 | AG64: 0.49 | AH64: 0.5
C65: 0.2 | D65: -0.1085243184 | E65: -0.07639728898 | F65: -0.05114987294 | G65: -0.02997965336 | H65: -0.01150114191 | I65: 0.005070003863 | J65: 0.02022044514 | K65: 0.03427277963 | L65: 0.04745178712 | M65: 0.05992030485 | N65: 0.071800031 | O65: 0.08318426523 | P65: 0.09414606736 | Q65: 0.1047436798 | R65: 0.115024247 | S65: 0.1250264357 | T65: 0.1347823256 | U65: 0.1443188009 | V65: 0.153658594 | W65: 0.1628210796 | X65: 0.1718228898 | Y65: 0.180678394 | Z65: 0.1894000806 | AA65: 0.1979988611 | AB65: 0.2064843167 | AC65: 0.2148648992 | AD65: 0.2231480954 | AE65: 0.2313405644 | AF65: 0.239448251 | AG65: 0.2474764809 | AH65: 0.2554300415
C67: TIR MITIGADA | D67: 1 | E67: 2 | F67: 3 | G67: 4 | H67: 5 | I67: 6 | J67: 7 | K67: 8 | L67: 9 | M67: 10 | N67: 11 | O67: 12 | P67: 13 | Q67: 14 | R67: 15 | S67: 16 | T67: 17 | U67: 18 | V67: 19 | W67: 20 | X67: 21 | Y67: 22 | Z67: 23 | AA67: 24 | AB67: 25 | AC67: 26 | AD67: 27 | AE67: 28 | AF67: 29 | AG67: 30 | AH67: 31
D68: =INDEX($D$78:$AH$108,D67,D67) -> 0.0187537213 | E68: =INDEX($D$78:$AH$108,E67,E67) -> 0.0246775576 | F68: 0.03043079295 | G68: 0.03602861184 | H68: 0.04148428315 | I68: 0.04680946859 | J68: 0.0520144715 | K68: =INDEX($D$78:$AH$108,K67,K67) -> 0.05710843917 | L68: =INDEX($D$78:$AH$108,L67,L67) -> 0.06209952895 | M68: =INDEX($D$78:$AH$108,M67,M67) -> 0.06699218482 | N68: =INDEX($D$78:$AH$108,N67,N67) -> 0.071800031 | O68: =INDEX($D$78:$AH$108,O67,O67) -> 0.07652498061 | P68: 0.08116821946 | Q68: =INDEX($D$78:$AH$108,Q67,Q67) -> 0.08574353228 | R68: =INDEX($D$78:$AH$108,R67,R67) -> 0.09024570694 | S68: =INDEX($D$78:$AH$108,S67,S67) -> 0.09468585133 | T68: =INDEX($D$78:$AH$108,T67,T67) -> 0.09906738573 | U68: =INDEX($D$78:$AH$108,U67,U67) -> 0.1033894907 | V68: 0.107655537 | W68: =INDEX($D$78:$AH$108,W67,W67) -> 0.1118722988 | X68: =INDEX($D$78:$AH$108,X67,X67) -> 0.1160404495 | Y68: =INDEX($D$78:$AH$108,Y67,Y67) -> 0.1201624508 | Z68: =INDEX($D$78:$AH$108,Z67,Z67) -> 0.1242405843 | AA68: =INDEX($D$78:$AH$108,AA67,AA67) -> 0.1282769687 | AB68: 0.1322735743 | AC68: =INDEX($D$78:$AH$108,AC67,AC67) -> 0.1362322363 | AD68: =INDEX($D$78:$AH$108,AD67,AD67) -> 0.1401546667 | AE68: =INDEX($D$78:$AH$108,AE67,AE67) -> 0.1440424647 | AF68: =INDEX($D$78:$AH$108,AF67,AF67) -> 0.1478957562 | AG68: =INDEX($D$78:$AH$108,AG67,AG67) -> 0.1517187214 | AH68: 0.1555125582
C70: TIR para Frustração
C71: =IRR(D37:X37) -> 0.071800031 | D71: -0.36 | E71: -0.3 | F71: -0.24 | G71: -0.21 | H71: -0.18 | I71: -0.15 | J71: -0.12 | K71: -0.09 | L71: -0.06 | M71: -0.03 | N71: 0 | O71: 0.03 | P71: 0.06 | Q71: 0.09 | R71: 0.12 | S71: 0.15 | T71: 0.18 | U71: 0.21 | V71: 0.24 | W71: 0.27 | X71: 0.3 | Y71: 0.33 | Z71: 0.36 | AA71: 0.39 | AB71: 0.42 | AC71: 0.45 | AD71: 0.48 | AE71: 0.51 | AF71: 0.54 | AG71: 0.57 | AH71: 0.6 | AI71: 0.65 | AJ71: 0.7 | AK71: 0.9 | AL71: 1 | AM71: 1.2 | AN71: 1.28
C72: 0.2 | D72: -0.1459765579 | E72: -0.07746481111 | F72: -0.03457992096 | G72: -0.01729522649 | H72: -0.00173875347 | I72: 0.01251254893 | J72: 0.02574423634 | K72: 0.03815807956 | L72: 0.04990189065 | M72: 0.06108716045 | N72: 0.071800031 | O72: 0.08210841268 | P72: 0.09206676526 | Q72: 0.1017194068 | R72: 0.1111028632 | S72: 0.1202475743 | T72: 0.1291791574 | U72: 0.137919359 | V72: 0.1464867832 | W72: 0.1548974572 | X72: 0.1631652753 | Y72: 0.1713023517 | Z72: 0.1793193039 | AA72: 0.1872254823 | AB72: 0.195029158 | AC72: 0.2027376774 | AD72: 0.2103575905 | AE72: 0.2178947581 | AF72: 0.225354442 | AG72: 0.2327413813 | AH72: 0.2400598568 | AI72: 0.2521155457 | AJ72: 0.2640075292 | AK72: 0.310184333 | AL72: 0.3325692775 | AM72: 0.3761997311 | AN72: 0.3932810142
C74: TIR MITIGADA (Frustração) | D74: 1 | E74: 2 | F74: 3 | G74: 4 | H74: 5 | I74: 6 | J74: 7 | K74: 8 | L74: 9 | M74: 10 | N74: 11 | O74: 12 | P74: 13 | Q74: 14 | R74: 15 | S74: 16 | T74: 17 | U74: 18 | V74: 19 | W74: 20 | X74: 21 | Y74: 22 | Z74: 23 | AA74: 24 | AB74: 25 | AC74: 26 | AD74: 27 | AE74: 28 | AF74: 29 | AG74: 30 | AH74: 31 | AI74: 32 | AJ74: 33 | AK74: 34 | AL74: 35 | AM74: 36 | AN74: 37
D75: =INDEX($D$112:$AN$148,D74,D74) -> 0.01327611012 | E75: =INDEX($D$112:$AN$148,E74,E74) -> 0.02445580573 | F75: 0.0347515843 | G75: 0.03971679801 | H75: 0.04457248186 | I75: 0.04932659258 | J75: 0.05398626304 | K75: 0.05855791181 | L75: 0.06304733504 | M75: 0.06745978401 | N75: 0.071800031 | O75: 0.07607242545 | P75: 0.08028094214 | Q75: 0.08442922269 | R75: 0.08852061144 | S75: 0.09255818667 | T75: 0.09654478777 | U75: 0.1004830391 | V75: 0.1043753708 | W75: 0.1082240373 | X75: 0.1120311337 | Y75: 0.1157986101 | Z75: 0.1195282843 | AA75: 0.1232218537 | AB75: 0.1268809051 | AC75: 0.1305069241 | AD75: 0.1341013034 | AE75: 0.1376653499 | AF75: 0.1412002921 | AG75: 0.1447072851 | AH75: 0.1481874173 | AI75: 0.1539307065 | AJ75: 0.1596066087 | AK75: 0.1817114384 | AL75: 0.1924487236 | AM75: 0.2133935587 | AN75: 0.221859484
C77: =IRR(D37:X37) -> 0.071800031 | D77: 0.2 | E77: 0.21 | F77: 0.22 | G77: 0.23 | H77: 0.24 | I77: 0.25 | J77: 0.26 | K77: 0.27 | L77: 0.28 | M77: 0.29 | N77: 0.3 | O77: 0.31 | P77: 0.32 | Q77: 0.33 | R77: 0.34 | S77: 0.35 | T77: 0.36 | U77: 0.37 | V77: 0.38 | W77: 0.39 | X77: 0.4 | Y77: 0.41 | Z77: 0.42 | AA77: 0.43 | AB77: 0.44 | AC77: 0.45 | AD77: 0.46 | AE77: 0.47 | AF77: 0.48 | AG77: 0.49 | AH77: 0.5
C78: 0.02274512376 | D78: 0.0187537213 | E78: 0.0368752853 | F78: 0.05359044727 | G78: 0.06922030147 | H78: 0.08398841329 | I78: 0.09805656255 | J78: 0.1115454708 | K78: 0.1245475022 | L78: 0.1371348039 | M78: 0.1493647219 | N78: 0.1612835204 | O78: 0.1729290049 | P78: 0.1843324175 | Q78: 0.195519832 | R78: 0.2065132027 | S78: 0.2173311617 | T78: 0.2279896367 | U78: 0.2385023334 | V78: 0.2488811183 | W78: 0.2591363239 | X78: 0.2692769951 | Y78: 0.2793110899 | Z78: 0.2892456434 | AA78: 0.2990869033 | AB78: 0.3088404425 | AC78: 0.3185112522 | AD78: 0.3281038214 | AE78: 0.3376222026 | AF78: 0.347070068 | AG78: 0.3564507576 | AH78: 0.3657673192
C79: 0.04802126775 | D79: 0.005989366691 | E79: 0.0246775576 | F79: 0.04176231413 | G79: 0.05762855922 | H79: 0.0725387571 | I79: 0.08667977396 | J79: 0.1001892607 | K79: 0.113171439 | L79: 0.1257070236 | M79: 0.1378597159 | N79: 0.1496806018 | O79: 0.1612112167 | P79: 0.1724857369 | Q79: 0.1835325789 | R79: 0.1943755904 | S79: 0.2050349519 | T79: 0.215527869 | U79: 0.2258691113 | V79: 0.236071437 | W79: 0.2461459313 | X79: 0.2561022776 | Y79: 0.265948978 | Z79: 0.2756935333 | AA79: 0.2853425912 | AB79: 0.2949020685 | AC79: 0.3043772539 | AD79: 0.3137728931 | AE79: 0.3230932614 | AF79: 0.3323422239 | AG79: 0.3415232879 | AH79: 0.3506396468
C80: 0.07101275185 | D80: -0.006472054279 | E80: 0.01289705761 | F80: 0.03043079295 | G80: 0.04659311151 | H80: 0.06169320222 | I80: 0.07594734881 | J80: 0.08951266932 | K80: 0.1025068003 | L80: 0.1150200159 | M80: 0.1271230253 | N80: 0.1388721771 | O80: 0.1503130417 | P80: 0.1614829452 | Q80: 0.1724128019 | R80: 0.1831284678 | S80: 0.1936517569 | T80: 0.2040012181 | U80: 0.2141927355 | V80: 0.2242399994 | W80: 0.2341548801 | X80: 0.2439477262 | Y80: 0.2536276064 | Z80: 0.2632025065 | AA80: 0.2726794905 | AB80: 0.2820648344 | AC80: 0.2913641372 | AD80: 0.3005824133 | AE80: 0.3097241714 | AF80: 0.3187934795 | AG80: 0.3277940216 | AH80: 0.336729145
C81: 0.09201594088 | D81: -0.0187367365 | E81: 0.00144139422 | F81: 0.01950894689 | G81: 0.03602861184 | H81: 0.05136605299 | I81: 0.06577220952 | J81: 0.07942666454 | K81: 0.09246227385 | L81: 0.104980003 | M81: 0.1170583035 | N81: 0.1287592766 | O81: 0.140132864 | P81: 0.1512197763 | Q81: 0.1620535937 | R81: 0.172662302 | S81: 0.1830694395 | T81: 0.193294966 | U81: 0.2033559322 | V81: 0.2132670015 | W81: 0.2230408613 | X81: 0.2326885516 | Y81: 0.2422197296 | Z81: 0.2516428839 | AA81: 0.2609655106 | AB81: 0.2701942582 | AC81: 0.2793350477 | AD81: 0.2883931732 | AE81: 0.2973733862 | AF81: 0.3062799665 | AG81: 0.3151167828 | AH81: 0.3238873436
C82: 0.1112780652 | D82: -0.03090736427 | E82: -0.009773502807 | F82: 0.008920394622 | G82: 0.02586153152 | H82: 0.04148428315 | I82: 0.05608060934 | J82: 0.06985611054 | K82: 0.08296095722 | L82: 0.09550809889 | M82: 0.1075845564 | N82: 0.1192587302 | O82: 0.1305853023 | P82: 0.1416086251 | Q82: 0.1523651254 | R82: 0.1628850497 | S82: 0.173193756 | T82: 0.1833126868 | U82: 0.1932601135 | V82: 0.2030517137 | W82: 0.2127010249 | X82: 0.2222198047 | Y82: 0.2316183193 | Z82: 0.240905578 | AA82: 0.2500895234 | AB82: 0.2591771892 | AC82: 0.2681748294 | AD82: 0.2770880272 | AE82: 0.2859217857 | AF82: 0.2946806043 | AG82: 0.3033685432 | AH82: 0.3119892792
C83: 0.1290069979 | D83: -0.04308749664 | E83: -0.02082640767 | F83: -0.001403342789 | G83: 0.01602758217 | H83: 0.03198493361 | I83: 0.04680946859 | J83: 0.06073702886 | K83: 0.07393753811 | L83: 0.08653740795 | M83: 0.09863316097 | N83: 0.1103001046 | O83: 0.1215980692 | P83: 0.132575328 | Q83: 0.143271351 | R83: 0.1537187856 | S83: 0.1639449114 | T83: 0.1739727286 | U83: 0.1838217857 | V83: 0.1935088177 | W83: 0.2030482454 | X83: 0.2124525699 | Y83: 0.2217326877 | Z83: 0.2308981454 | AA83: 0.2399573466 | AB83: 0.2489177218 | AC83: 0.2577858683 | AD83: 0.2665676673 | AE83: 0.2752683811 | AF83: 0.2838927357 | AG83: 0.2924449896 | AH83: 0.3009289931
C84: 0.145378787 | D84: -0.05538631186 | E84: -0.03179353672 | F84: -0.0115250301 | G84: 0.006469669661 | H84: 0.02281307674 | I84: 0.03790430221 | J84: 0.0520144715 | K84: 0.0653361066 | L84: 0.07801077417 | M84: 0.09014555042 | N84: 0.1018233268 | O84: 0.1131095308 | P84: 0.1240566623 | Q84: 0.1347074468 | R84: 0.145097083 | S84: 0.1552548805 | T84: 0.1652054768 | U84: 0.1749697566 | V84: 0.184565557 | W84: 0.194008216 | X84: 0.203311005 | Y84: 0.2124854717 | Z84: 0.2215417171 | AA84: 0.2304886192 | AB84: 0.2393340168 | AC84: 0.24808486 | AD84: 0.2567473363 | AE84: 0.2653269746 | AF84: 0.2738287337 | AG84: 0.2822570759 | AH84: 0.2906160304
C85: 0.1605435212 | D85: -0.06792425153 | E85: -0.042751216 | F85: -0.02150359813 | G85: -0.002863767296 | H85: 0.0139201995 | I85: 0.02931758751 | J85: 0.04364085106 | K85: 0.05710843917 | L85: 0.069879016 | M85: 0.08207139908 | N85: 0.09377681839 | O85: 0.1050667935 | P85: 0.1159983842 | Q85: 0.1266178012 | R85: 0.1369629561 | S85: 0.1470653044 | T85: 0.156951205 | U85: 0.1666429408 | V85: 0.1761594974 | W85: 0.1855171657 | X85: 0.1947300143 | Y85: 0.2038102635 | Z85: 0.2127685851 | AA85: 0.2216143454 | AB85: 0.2303558024 | AC85: 0.2390002685 | AD85: 0.247554245 | AE85: 0.2560235342 | AF85: 0.2644133333 | AG85: 0.272728314 | AH85: 0.2809726889
C86: 0.1746299445 | D86: -0.08084031885 | E86: -0.05377869632 | F86: -0.03139584235 | G86: -0.01202014298 | H86: 0.005262898226 | I86: 0.02100746293 | J86: 0.03557461579 | K86: 0.04921263952 | L86: 0.06209952895 | M86: 0.07436718565 | N86: 0.08611601944 | O86: 0.09742418736 | P86: 0.108353673 | Q86: 0.1189544209 | R86: 0.1292672292 | S86: 0.1393258225 | T86: 0.1491583703 | U86: 0.158788619 | V86: 0.1682367515 | W86: 0.1775200479 | X86: 0.1866534022 | Y86: 0.1956497285 | Z86: 0.204520287 | AA86: 0.2132749453 | AB86: 0.2219223918 | AC86: 0.2304703097 | AD86: 0.2389255218 | AE86: 0.2472941101 | AF86: 0.2555815159 | AG86: 0.2637926244 | AH86: 0.2719318364
C87: 0.187754142 | D87: -0.09430766102 | E87: -0.06496584419 | F87: -0.04126196103 | G87: -0.02104747489 | H87: -0.003201514164 | I87: 0.01293352159 | J87: 0.02777614695 | K87: 0.04160909342 | L87: 0.05463226877 | M87: 0.06699218482 | N87: 0.07879937425 | O87: 0.09013923588 | P87: 0.1010790762 | Q87: 0.1116728445 | R87: 0.1219644129 | S87: 0.1319899076 | T87: 0.1417794038 | U87: 0.151358181 | V87: 0.1607476705 | W87: 0.1699661805 | X87: 0.179029459 | Y87: 0.1879511368 | Z87: 0.1967430797 | AA87: 0.2054156704 | AB87: 0.2139780384 | AC87: 0.2224382471 | AD87: 0.230803448 | AE87: 0.2390800086 | AF87: 0.2472736196 | AG87: 0.2553893847 | AH87: 0.263431896
C88: 0.2 | D88: -0.1085243184 | E88: -0.07639728898 | F88: -0.05114987294 | G88: -0.02997965336 | H88: -0.01150114191 | I88: 0.005070003863 | J88: 0.02022044514 | K88: 0.03427277963 | L88: 0.04745178712 | M88: 0.05992030485 | N88: 0.071800031 | O88: 0.08318426523 | P88: 0.09414606736 | Q88: 0.1047436798 | R88: 0.115024247 | S88: 0.1250264357 | T88: 0.1347823256 | U88: 0.1443188009 | V88: 0.153658594 | W88: 0.1628210796 | X88: 0.1718228898 | Y88: 0.180678394 | Z88: 0.1894000806 | AA88: 0.1979988611 | AB88: 0.2064843167 | AC88: 0.2148648992 | AD88: 0.2231480954 | AE88: 0.2313405644 | AF88: 0.239448251 | AG88: 0.2474764809 | AH88: 0.2554300415
C89: 0.2114586242 | D89: -0.1237744596 | E89: -0.08818943322 | F89: -0.06112510847 | G89: -0.03886310896 | H89: -0.01967432636 | I89: -0.002617835276 | J89: 0.01287430127 | K89: 0.02717099418 | L89: 0.04052533383 | M89: 0.05311843875 | N89: 0.06508434378 | O89: 0.07652498061 | P89: 0.0875196349 | Q89: 0.09813115671 | R89: 0.1084101769 | S89: 0.118398052 | T89: 0.1281289721 | U89: 0.1376315023 | V89: 0.1469297314 | W89: 0.1560441422 | X89: 0.1649922813 | Y89: 0.1737892804 | Z89: 0.1824482682 | AA89: 0.1909806988 | AB89: 0.199396616 | AC89: 0.2077048683 | AD89: 0.2159132854 | AE89: 0.2240288231 | AF89: 0.2320576847 | AG89: 0.2400054224 | AH89: 0.247877022
C90: 0.2222105078 | D90: -0.1404501099 | E90: -0.1004835268 | F90: -0.07125993402 | G90: -0.04774556142 | H90: -0.02775863072 | I90: -0.0101630122 | J90: 0.005706753822 | K90: 0.02027361101 | L90: 0.03382297572 | M90: 0.04655648741 | N90: 0.0586218378 | O90: 0.07013040447 | P90: 0.08116821946 | Q90: 0.09180308382 | R90: 0.1020893474 | S90: 0.1120712172 | T90: 0.1217851071 | U90: 0.1312613445 | V90: 0.140525434 | W90: 0.1495990101 | X90: 0.1585005663 | Y90: 0.1672460213 | Z90: 0.1758491629 | AA90: 0.1843220021 | AB90: 0.1926750567 | AC90: 0.2009175809 | AD90: 0.2090577539 | AE90: 0.2171028343 | AF90: 0.2250592888 | AG90: 0.2329328995 | AH90: 0.2407288539
C91: 0.2323052517 | D91: -0.1590729898 | E91: -0.1134274293 | F91: -0.0816131594 | G91: -0.05665742309 | H91: -0.03577382402 | I91: -0.0175810128 | J91: -0.001296007902 | K91: 0.01356732114 | L91: 0.02733134313 | M91: 0.04022074027 | N91: 0.0523983199 | O91: 0.06398579066 | P91: 0.07507648945 | Q91: 0.08574353228 | R91: 0.09604523174 | S91: 0.1060288125 | T91: 0.115733029 | U91: 0.1251900539 | V91: 0.1344268675 | W91: 0.1434662998 | X91: 0.1523278239 | Y91: 0.1610281693 | Z91: 0.1695818015 | AA91: 0.1780013023 | AB91: 0.1862976741 | AC91: 0.1944805852 | AD91: 0.202558571 | AE91: 0.2105391979 | AF91: 0.2184292002 | AG91: 0.2262345935 | AH91: 0.2339607699
C92: 0.2418159371 | E92: -0.1272546342 | F92: -0.0922854468 | G92: -0.06565810143 | H92: -0.04376336555 | I92: -0.02490825478 | J92: -0.008167059703 | K92: 0.007020656549 | L92: 0.02101968429 | M92: 0.03408066867 | N92: 0.04638319508 | O92: 0.0580602993 | P92: 0.06921324541 | Q92: 0.07992086687 | R92: 0.09024570694 | S92: 0.1002381906 | T92: 0.1099395405 | U92: 0.1193838647 | V92: 0.1285996843 | W92: 0.1376110725 | X92: 0.146438517 | Y92: 0.1550995844 | Z92: 0.1636094378 | AA92: 0.1719812451 | AB92: 0.1802265047 | AC92: 0.1883553085 | AD92: 0.1963765549 | AE92: 0.2042981239 | AF92: 0.2121270219 | AG92: 0.2198695017 | AH92: 0.2275311631
C93: 0.2507814624 | E93: -0.1422327126 | F93: -0.1033639883 | G93: -0.07478580756 | H93: -0.05174864508 | I93: -0.03215955979 | J93: -0.01491853965 | K93: 0.0006225074039 | L93: 0.01487715236 | M93: 0.02812531503 | N93: 0.0405652065 | O93: 0.05234227848 | P93: 0.0635663929 | Q93: 0.07432252911 | R93: 0.08467774321 | S93: 0.09468585133 | T93: 0.1043906756 | U93: 0.1138283525 | V93: 0.12302901 | W93: 0.1320180125 | X93: 0.1408168975 | Y93: 0.1494440951 | Z93: 0.1579154854 | AA93: 0.166244837 | AB93: 0.1744441561 | AC93: 0.1825239664 | AD93: 0.1904935363 | AE93: 0.1983610648 | AF93: 0.2061338344 | AG93: 0.2138183384 | AH93: 0.2214203871
C94: 0.2592473931 | E94: -0.1587508002 | F94: -0.1149695358 | G94: -0.08409439418 | H94: -0.05976134051 | I94: -0.03935790856 | J94: -0.02156969162 | K94: -0.005644729546 | L94: 0.00888680555 | M94: 0.02233790618 | N94: 0.03492748708 | O94: 0.0468146213 | P94: 0.05811850154 | Q94: 0.06893071626 | R94: 0.07932313678 | S94: 0.08935317297 | T94: 0.09906738573 | U94: 0.1085040368 | V94: 0.1176949308 | W94: 0.1266667726 | X94: 0.1354421865 | Y94: 0.1440404928 | Z94: 0.1524783087 | AA94: 0.1607700189 | AB94: 0.1689281486 | AC94: 0.1769636622 | AD94: 0.184886205 | AE94: 0.1927042999 | AF94: 0.2004255101 | AG94: 0.2080565726 | AH94: 0.2156035107
C95: 0.2672605356 | E95: -0.1773798677 | F95: -0.1272629805 | G95: -0.0936524422 | H95: -0.0678409713 | I95: -0.04653159764 | J95: -0.02814390826 | K95: -0.01180216252 | L95: 0.003028602355 | M95: 0.01669884956 | N95: 0.02945055756 | O95: 0.04145776891 | P95: 0.05284981697 | Q95: 0.06372540613 | R95: 0.07416155102 | S95: 0.08421947386 | T95: 0.09394862338 | U95: 0.1033894907 | V95: 0.1125756303 | W95: 0.121535141 | X95: 0.1302917723 | Y95: 0.1388657632 | Z95: 0.1472744894 | AA95: 0.1555329676 | AB95: 0.1636542542 | AC95: 0.1716497636 | AD95: 0.179529525 | AE95: 0.1873023912 | AF95: 0.1949762098 | AG95: 0.2025579653 | AH95: 0.2100538968
C96: 0.2748562673 | F96: -0.1404402679 | G96: -0.1035312579 | H96: -0.07602306721 | I96: -0.05370325279 | J96: -0.03465848571 | K96: -0.0178647299 | L96: -0.002711352695 | M96: 0.01119465708 | N96: 0.02412100877 | O96: 0.03625821253 | P96: 0.04774662988 | Q96: 0.05869263028 | R96: 0.06917872379 | S96: 0.07927017765 | T96: 0.08901948611 | U96: 0.09846947881 | V96: 0.107655537 | W96: 0.1166072088 | X96: 0.1253494086 | Y96: 0.1339033239 | Z96: 0.1422871106 | AA96: 0.1505164338 | AB96: 0.1586048935 | AC96: 0.1665643636 | AD96: 0.1744052644 | AE96: 0.182136784 | AF96: 0.1897670591 | AG96: 0.197303325 | AH96: 0.2047520391
C97: 0.2820608084 | F97: -0.1547486042 | G97: -0.1138071848 | H97: -0.08433975922 | I97: -0.06089026539 | J97: -0.04112513474 | K97: -0.02384180488 | L97: -0.00834149314 | M97: 0.005817196965 | N97: 0.01893070147 | O97: 0.03120764966 | P97: 0.0428003947 | Q97: 0.05382355952 | R97: 0.06436552277 | S97: 0.07449584086 | T97: 0.08427021759 | U97: 0.09373393376 | V97: 0.1029242764 | W97: 0.1118722988 | X97: 0.1206041211 | Y97: 0.1291419087 | Z97: 0.1375046195 | AA97: 0.1457085833 | AB97: 0.1537679558 | AC97: 0.1616950797 | AD97: 0.1695007735 | AE97: 0.1771945658 | AF97: 0.1847848868 | AG97: 0.1922792255 | AH97: 0.1996842602
C98: 0.2889062646 | F98: -0.170542638 | G98: -0.1245860414 | H98: -0.09283714426 | I98: -0.06811936138 | J98: -0.04756302133 | K98: -0.02974925916 | L98: -0.01387617968 | M98: 0.0005527897356 | N98: 0.0138662186 | O98: 0.02629270036 | P98: 0.03799764109 | Q98: 0.04910455794 | R98: 0.05970810066 | S98: 0.06988237618 | T98: 0.07968647227 | U98: 0.0891682401 | V98: 0.09836695553 | W98: 0.1073152359 | X98: 0.1160404495 | Y98: 0.1245657703 | Z98: 0.1329109812 | AA98: 0.1410930935 | AB98: 0.1491268313 | AC98: 0.1570250154 | AD98: 0.16479887 | AE98: 0.1724582698 | AF98: 0.1800119425 | AG98: 0.1874676343 | AH98: 0.1948322471
C99: 0.2954188291 | G99: -0.1359940949 | H99: -0.1015637522 | I99: -0.07541568221 | J99: -0.05398864077 | K99: -0.03559997691 | L99: -0.01932669836 | M99: -0.004609153162 | N99: 0.008917231112 | O99: 0.02150306823 | P99: 0.03332798202 | Q99: 0.04452507846 | R99: 0.05519571027 | S99: 0.06541881286 | T99: 0.07525704212 | U99: 0.08476094462 | V99: 0.09397187168 | W99: 0.102924066 | X99: 0.1116461874 | Y99: 0.1201624508 | Z99: 0.1284934869 | AA99: 0.1366570058 | AB99: 0.1446683132 | AC99: 0.1525407179 | AD99: 0.1602858565 | AE99: 0.1679139559 | AF99: 0.1754340454 | AG99: 0.1828541317 | AH99: 0.1901813428
C100: 0.3016222081 | G100: -0.1481910739 | H100: -0.1105755211 | I100: -0.08280612404 | J100: -0.06041862673 | K100: -0.04140641696 | L100: -0.02470367818 | M100: -0.009678451581 | N100: 0.004074242342 | O100: 0.01682933227 | P100: 0.02878193945 | Q100: 0.04007551202 | R100: 0.05081856915 | S100: 0.06109517036 | T100: 0.07097173407 | U100: 0.08050163337 | V100: 0.08972838547 | W100: 0.0986879217 | X100: 0.1074102391 | Y100: 0.1159206257 | Z100: 0.1242405843 | AA100: 0.1323885416 | AB100: 0.1403803976 | AC100: 0.1482299589 | AD100: 0.1559492827 | AE100: 0.163548953 | AF100: 0.1710383054 | AG100: 0.1784256103 | AH100: 0.1857182243
C101: 0.3075379091 | G101: -0.1613833753 | H101: -0.1199380792 | I101: -0.0903199202 | J101: -0.06686997638 | K101: -0.04718074625 | L101: -0.03001719867 | M101: -0.01466425738 | N101: -0.0006715119864 | O101: 0.01226284543 | P101: 0.02435084052 | Q101: 0.03574708115 | R101: 0.04656775041 | S101: 0.05690234645 | T101: 0.06682125543 | U101: 0.07638081445 | V101: 0.08562680081 | W101: 0.09459690041 | X101: 0.1033224942 | Y101: 0.1118299768 | Z101: 0.120141748 | AA101: 0.1282769687 | AB101: 0.1362521471 | AC101: 0.1440815976 | AD101: 0.1517778049 | AE101: 0.1593517165 | AF101: 0.1668129783 | AG101: 0.1741701279 | AH101: 0.1814307529
C102: 0.3131854898 | G102: -0.1758433267 | H102: -0.1297297645 | I102: -0.09798933841 | J102: -0.07336029096 | K102: -0.05293496826 | L102: -0.03527688713 | M102: -0.01957514309 | N102: -0.005328150947 | O102: 0.007795646373 | P102: 0.02002672753 | Q102: 0.03153174773 | R102: 0.04243508822 | S102: 0.05283202035 | T102: 0.0627971146 | U102: 0.07238981628 | V102: 0.081658261 | W102: 0.0906419575 | X102: 0.09937371878 | Y102: 0.1078810811 | Z102: 0.1161873658 | AA102: 0.124312487 | AB102: 0.1322735743 | AC102: 0.1400854601 | AD102: 0.1477610647 | AE102: 0.1553117044 | AF102: 0.16274734 | AG102: 0.1700767794 | AH102: 0.1773078439
C103: 0.3185827746 | H103: -0.1400456828 | I103: -0.1058505323 | J103: -0.07990803962 | K103: -0.05868104935 | L103: -0.04049200766 | M103: -0.02441918042 | N103: -0.009903224734 | O103: 0.003420382717 | P103: 0.01580227956 | Q103: 0.02742213275 | R103: 0.03841309551 | S103: 0.04887656836 | T103: 0.05889153474 | U103: 0.06852069926 | V103: 0.07781465826 | W103: 0.08681481408 | X103: 0.09555546163 | Y103: 0.1040653143 | Z103: 0.112368641 | AA103: 0.1204861275 | AB103: 0.128435539 | AC103: 0.1362322363 | AD103: 0.1438895828 | AE103: 0.1514192696 | AF103: 0.1588315767 | AG103: 0.1661355856 | AH103: 0.173339354
C104: 0.3237460421 | H104: -0.1510032368 | I104: -0.1139446 | J104: -0.08653285607 | K104: -0.06443104609 | L104: -0.04567154392 | M104: -0.02920401056 | N104: -0.01440378183 | O104: -0.0008697562687 | P104: 0.01167074407 | Q104: 0.02341144632 | R104: 0.03449489223 | S104: 0.04502899035 | T104: 0.05509737837 | U104: 0.06476617862 | V104: 0.07408855479 | W104: 0.08310787626 | X104: 0.09185997127 | Y104: 0.1003747669 | Z104: 0.1086775059 | AA104: 0.1167896651 | AB104: 0.1247296595 | AC104: 0.1325133885 | AD104: 0.1401546667 | AE104: 0.1476655657 | AF104: 0.1550566892 | AG104: 0.1623373958 | AH104: 0.1695159819
C105: 0.3286901893 | H105: -0.1627497436 | I105: -0.1223189202 | J105: -0.09325587918 | K105: -0.07019723662 | L105: -0.0508242772 | M105: -0.03393690733 | N105: -0.01883642838 | O105: -0.005081098715 | P105: 0.007625876907 | Q105: 0.01949342631 | R105: 0.03067414255 | S105: 0.04128284537 | T105: 0.05140808144 | U105: 0.06111955684 | V105: 0.07047311375 | W105: 0.0795141646 | X105: 0.08828012399 | Y105: 0.09680217028 | Z105: 0.1051065471 | AA105: 0.1132155421 | AB105: 0.121148234 | AC105: 0.1289210719 | AD105: 0.1365483295 | AE105: 0.1440424647 | AF105: 0.1514144094 | AG105: 0.1586738027 | AH105: 0.165829182
C106: 0.3334307141 | H106: -0.175478272 | I106: -0.1310323882 | J106: -0.1001028917 | K106: -0.07599456356 | L106: -0.0559608941 | M106: -0.03862668479 | N106: -0.02320910202 | O106: -0.009221168813 | P106: 0.003660333753 | Q106: 0.01566078254 | R106: 0.02694353902 | S106: 0.03763076637 | T106: 0.04781619117 | U106: 0.05757327881 | V106: 0.06696066683 | W106: 0.07602589034 | X106: 0.08480800565 | Y106: 0.09333948156 | Z106: 0.1016475906 | AA106: 0.1097554514 | AB106: 0.1176828218 | AC106: 0.1254467114 | AD106: 0.1330618608 | AE106: 0.1405411209 | AF106: 0.1478957562 | AG106: 0.1551356896 | AH106: 0.1622697025
C107: 0.3379764107 | I107: -0.1401436945 | J107: -0.1070938977 | K107: -0.08183158566 | L107: -0.06108592719 | M107: -0.04327633597 | N107: -0.02752421405 | O107: -0.01329220096 | P107: -0.0002281241406 | Q107: 0.01191118858 | R107: 0.02330062973 | S107: 0.03407016011 | T107: 0.04431896806 | U107: 0.05412445915 | V107: 0.06354818574 | W107: 0.07263988642 | X107: 0.08144031498 | Y107: 0.08998326975 | Z107: 0.09829708009 | AA107: 0.1064057157 | AB107: 0.1143296279 | AC107: 0.1220863978 | AD107: 0.1296912409 | AE107: 0.1371574068 | AF107: 0.1444964969 | AG107: 0.1517187214 | AH107: 0.1588331081
C108: 0.3423390472 | I108: -0.1497309837 | J108: -0.1142570773 | K108: -0.08772206731 | L108: -0.06620800172 | M108: -0.04789240154 | N108: -0.03178740191 | O108: -0.01729944188 | P108: -0.004044594793 | Q108: 0.008239573433 | R108: 0.01974030652 | S108: 0.03059584624 | T108: 0.04091114 | U108: 0.05076772296 | V108: 0.06023018661 | W108: 0.06935055659 | X108: 0.07817134158 | Y108: 0.08672770958 | Z108: 0.09504907522 | AA108: 0.1031602798 | AB108: 0.111082483 | AC108: 0.1188338481 | AD108: 0.1264300738 | AE108: 0.133884814 | AF108: 0.1412100117 | AG108: 0.1484161677 | AH108: 0.1555125582
C111: =IRR(D37:X37) -> 0.071800031 | D111: -0.36 | E111: -0.3 | F111: -0.24 | G111: -0.21 | H111: -0.18 | I111: -0.15 | J111: -0.12 | K111: -0.09 | L111: -0.06 | M111: -0.03 | N111: 0 | O111: 0.03 | P111: 0.06 | Q111: 0.09 | R111: 0.12 | S111: 0.15 | T111: 0.18 | U111: 0.21 | V111: 0.24 | W111: 0.27 | X111: 0.3 | Y111: 0.33 | Z111: 0.36 | AA111: 0.39 | AB111: 0.42 | AC111: 0.45 | AD111: 0.48 | AE111: 0.51 | AF111: 0.54 | AG111: 0.57 | AH111: 0.6 | AI111: 0.65 | AJ111: 0.7 | AK111: 0.9 | AL111: 1 | AM111: 1.2 | AN111: 1.28
C112: 0 | D112: 0.01327611012 | E112: 0.04664312749 | F112: 0.07574934436 | G112: 0.08920769206 | H112: 0.1021025003 | I112: 0.1145222963 | J112: 0.1265365302 | K112: 0.1382006225 | L112: 0.1495594474 | M112: 0.1606498001 | N112: 0.1715021846 | O112: 0.1821421363 | P112: 0.1925912161 | Q112: 0.2028677711 | R112: 0.2129875231 | S112: 0.2229640313 | T112: 0.2328090587 | U112: 0.242532866 | V112: 0.2521444492 | W112: 0.2616517334 | X112: 0.2710617316 | Y112: 0.2803806769 | Z112: 0.2896141316 | AA112: 0.2987670787 | AB112: 0.3078439994 | AC112: 0.3168489382 | AD112: 0.3257855579 | AE112: 0.3346571871 | AF112: 0.3434668605 | AG112: 0.3522173537 | AH112: 0.3609112125 | AI112: 0.3752814033 | AJ112: 0.3895104763 | AK112: 0.4451740099 | AL112: 0.4723432097 | AM112: 0.5255517512 | AN112: 0.5464564192
C113: 0.04710714286 | D113: -0.01098804096 | E113: 0.02445580573 | F113: 0.05449726577 | G113: 0.06818635308 | H113: 0.08120570622 | I113: 0.09366798198 | J113: 0.1056600057 | K113: 0.1172500468 | L113: 0.1284927001 | M113: 0.139432261 | N113: 0.1501051214 | O113: 0.160541508 | P113: 0.1707667701 | Q113: 0.1808023492 | R113: 0.1906665212 | S113: 0.2003749723 | T113: 0.2099412507 | U113: 0.2193771265 | V113: 0.228692879 | W113: 0.2378975309 | X113: 0.2469990384 | Y113: 0.2560044476 | Z113: 0.2649200249 | AA113: 0.2737513648 | AB113: 0.2825034809 | AC113: 0.2911808818 | AD113: 0.2997876364 | AE113: 0.3083274288 | AF113: 0.3168036051 | AG113: 0.3252192142 | AH113: 0.3335770422 | AI113: 0.3473851939 | AJ113: 0.3610504417 | AK113: 0.4144522982 | AL113: 0.4404920809 | AM113: 0.4914527387 | AN113: 0.5114633945
C114: 0.08734210526 | D114: -0.03504877393 | E114: 0.003338846889 | F114: 0.0347515843 | G114: 0.0488232672 | H114: 0.06209463191 | I114: 0.07471011879 | J114: 0.08677879939 | K114: 0.09838499909 | L114: 0.1095952068 | M114: 0.1204627288 | N114: 0.1310309169 | O114: 0.1413354662 | P114: 0.1514060868 | Q114: 0.1612677441 | R114: 0.1709415949 | S114: 0.1804457051 | T114: 0.1897956067 | U114: 0.1990047372 | V114: 0.2080847875 | W114: 0.217045983 | X114: 0.22589731 | Y114: 0.2346467022 | Z114: 0.2433011934 | AA114: 0.2518670445 | AB114: 0.2603498495 | AC114: 0.2687546243 | AD114: 0.2770858823 | AE114: 0.2853476975 | AF114: 0.2935437594 | AG114: 0.301677419 | AH114: 0.3097517294 | AI114: 0.3230844939 | AJ114: 0.3362715697 | AK114: 0.3877460829 | AL114: 0.4128196155 | AM114: 0.4618528091 | AN114: 0.4810958493
C115: 0.1051677215 | D115: -0.04712961714 | E115: -0.006875250019 | F115: 0.02539731753 | G115: 0.03971679801 | H115: 0.05316004651 | I115: 0.06589098275 | J115: 0.07803200976 | K115: 0.08967689335 | L115: 0.1008990022 | M115: 0.1117567804 | N115: 0.1222974992 | O115: 0.1325598993 | P115: 0.1425760956 | Q115: 0.1523729802 | R115: 0.1619732731 | S115: 0.1713963225 | T115: 0.1806587235 | U115: 0.1897748023 | V115: 0.1987569991 | W115: 0.2076161751 | X115: 0.2163618601 | Y115: 0.2250024546 | Z115: 0.2335453953 | AA115: 0.2419972927 | AB115: 0.2503640452 | AC115: 0.2586509347 | AD115: 0.2668627074 | AE115: 0.2750036424 | AF115: 0.2830776093 | AG115: 0.2910881184 | AH115: 0.2990383634 | AI115: 0.3121626514 | AJ115: 0.3251395426 | AK115: 0.3757633151 | AL115: 0.4004088626 | AM115: 0.4485865782 | AN115: 0.4674884924
C116: 0.1216890244 | D116: -0.05938726044 | E116: -0.01694024688 | F116: 0.01632054534 | G116: 0.03092678371 | H116: 0.04457248186 | I116: 0.05744400054 | J116: 0.06967885397 | K116: 0.08138136405 | L116: 0.09263250361 | M116: 0.1034963393 | N116: 0.1140243939 | O116: 0.1242586862 | P116: 0.1342339027 | Q116: 0.1439789828 | R116: 0.1535182986 | S116: 0.1628725476 | T116: 0.1720594382 | U116: 0.1810942243 | V116: 0.1899901254 | W116: 0.1987586625 | X116: 0.2074099278 | Y116: 0.2159528039 | Z116: 0.2243951434 | AA116: 0.2327439167 | AB116: 0.2410053354 | AC116: 0.2491849551 | AD116: 0.2572877617 | AE116: 0.2653182446 | AF116: 0.2732804593 | AG116: 0.28117808 | AH116: 0.289014445 | AI116: 0.3019470725 | AJ116: 0.3147304098 | AK116: 0.3645683829 | AL116: 0.3888176258 | AM116: 0.4362020029 | AN116: 0.4547872706
C117: 0.1370441176 | D117: -0.07194538782 | E117: -0.02691336461 | F117: 0.007476724408 | G117: 0.02241035941 | H117: 0.03628954854 | I117: 0.04932659258 | J117: 0.06167617806 | K117: 0.0734544543 | L117: 0.08475081253 | M117: 0.09563548024 | N117: 0.1061645974 | O117: 0.116383715 | P117: 0.1263302709 | Q117: 0.1360353817 | R117: 0.1455251668 | S117: 0.1548217436 | T117: 0.1639439874 | U117: 0.1729081199 | V117: 0.1817281717 | W117: 0.190416348 | X117: 0.1989833228 | Y117: 0.2074384763 | Z117: 0.2157900895 | AA117: 0.2240455033 | AB117: 0.2322112512 | AC117: 0.2402931697 | AD117: 0.2482964905 | AE117: 0.2562259195 | AF117: 0.2640857022 | AG117: 0.271879681 | AH117: 0.2796113434 | AI117: 0.2923674607 | AJ117: 0.3049722257 | AK117: 0.3540828815 | AL117: 0.3779643353 | AM117: 0.4246112739 | AN117: 0.4429019047
C118: 0.1513522727 | D118: -0.08494999423 | E118: -0.03685128157 | F118: -0.00117474512 | G118: 0.01412920471 | H118: 0.02827378534 | I118: 0.04150138734 | J118: 0.05398626304 | K118: 0.06585784015 | L118: 0.07721484468 | M118: 0.08813426351 | N118: 0.0986772561 | O118: 0.1088931828 | P118: 0.1188224277 | Q118: 0.1284984242 | R118: 0.1379491408 | S118: 0.1471981896 | T118: 0.1562656689 | U118: 0.1651688113 | V118: 0.1739224907 | W118: 0.182539622 | X118: 0.1910314809 | Y118: 0.1994079611 | Z118: 0.2076777847 | AA118: 0.2158486733 | AB118: 0.2239274911 | AC118: 0.2319203623 | AD118: 0.239832771 | AE118: 0.247669644 | AF118: 0.2554354221 | AG118: 0.2631341197 | AH118: 0.2707693767 | AI118: 0.2833626809 | AJ118: 0.2958024173 | AK118: 0.3442386127 | AL118: 0.3677780402 | AM118: 0.41373802 | AN118: 0.4317538797
C119: 0.164717033 | D119: -0.09858088829 | E119: -0.04681180647 | F119: -0.009671445345 | G119: 0.006048671195 | H119: 0.02049179357 | I119: 0.03393534413 | J119: 0.04657592834 | K119: 0.05855791181 | L119: 0.06999038772 | M119: 0.08095776842 | N119: 0.09152667583 | O119: 0.101750582 | P119: 0.1116730282 | Q119: 0.1213299148 | R119: 0.1307511677 | S119: 0.1399619738 | T119: 0.1489837134 | U119: 0.1578346749 | V119: 0.1665306095 | W119: 0.1750851683 | X119: 0.1835102489 | Y119: 0.1918162749 | Z119: 0.2000124221 | AA119: 0.2081068037 | AB119: 0.2161066225 | AC119: 0.224018298 | AD119: 0.231847572 | AE119: 0.2395995979 | AF119: 0.2472790154 | AG119: 0.254890015 | AH119: 0.2624363924 | AI119: 0.2748793065 | AJ119: 0.2871662976 | AK119: 0.3349759646 | AL119: 0.3581967219 | AM119: 0.4035154892 | AN119: 0.4212745736
C120: 0.1772287234 | D120: -0.1130689781 | E120: -0.05685570885 | F120: -0.0180487481 | G120: -0.001862948112 | H120: 0.01291352475 | I120: 0.0265990365 | J120: 0.03941580187 | K120: 0.05152502632 | L120: 0.06304733504 | M120: 0.07407530764 | N120: 0.0846815165 | O120: 0.09492387531 | P120: 0.1048493108 | Q120: 0.1144963516 | R120: 0.1238969971 | S120: 0.1330780934 | T120: 0.1420623658 | U120: 0.1508692051 | V120: 0.1595152758 | W120: 0.1680149921 | X120: 0.1763808951 | Y120: 0.1846239546 | Z120: 0.1927538136 | AA120: 0.2007789868 | AB120: 0.2087070245 | AC120: 0.2165446484 | AD120: 0.2242978639 | AE120: 0.2319720554 | AF120: 0.2395720661 | AG120: 0.2471022661 | AH120: 0.2545666097 | AI120: 0.2668704344 | AJ120: 0.2790158541 | AK120: 0.3262425927 | AL120: 0.3491659214 | AM120: 0.3938850684 | AN120: 0.4114037334
C121: 0.1889664948 | D121: -0.1287234687 | E121: -0.0670488509 | F121: -0.02634054318 | G121: -0.009635042271 | H121: 0.005511687439 | I121: 0.01946606164 | J121: 0.03247972088 | K121: 0.04473289526 | L121: 0.05635905837 | M121: 0.06745978401 | N121: 0.07811413282 | O121: 0.08838482022 | P121: 0.09832240566 | Q121: 0.1079682194 | R121: 0.117356458 | S121: 0.1265157167 | T121: 0.1354701319 | U121: 0.1442402462 | V121: 0.1528436747 | W121: 0.1612956231 | X121: 0.1696092978 | Y121: 0.177796232 | Z121: 0.1858665491 | AA121: 0.1938291762 | AB121: 0.2016920198 | AC121: 0.2094621102 | AD121: 0.2171457225 | AE121: 0.2247484769 | AF121: 0.2322754239 | AG121: 0.2397311165 | AH121: 0.2471196708 | AI121: 0.2592947143 | AJ121: 0.2713087551 | AK121: 0.3179923378 | AL121: 0.3406376135 | AM121: 0.3847950701 | AN121: 0.4020882273
C122: 0.2 | D122: -0.1459765579 | E122: -0.07746481111 | F122: -0.03457992096 | G122: -0.01729522649 | H122: -0.00173875347 | I122: 0.01251254893 | J122: 0.02574423634 | K122: 0.03815807956 | L122: 0.04990189065 | M122: 0.06108716045 | N122: 0.071800031 | O122: 0.08210841268 | P122: 0.09206676526 | Q122: 0.1017194068 | R122: 0.1111028632 | S122: 0.1202475743 | T122: 0.1291791574 | U122: 0.137919359 | V122: 0.1464867832 | W122: 0.1548974572 | X122: 0.1631652753 | Y122: 0.1713023517 | Z122: 0.1793193039 | AA122: 0.1872254823 | AB122: 0.195029158 | AC122: 0.2027376774 | AD122: 0.2103575905 | AE122: 0.2178947581 | AF122: 0.225354442 | AG122: 0.2327413813 | AH122: 0.2400598568 | AI122: 0.2521155457 | AJ122: 0.2640075292 | AK122: 0.310184333 | AL122: 0.3325692775 | AM122: 0.3761997311 | AN122: 0.3932810142
C123: 0.2103907767 | D123: -0.1654600066 | E123: -0.08818826906 | F123: -0.0427998406 | G123: -0.0248698295 | H123: -0.008861005704 | I123: 0.005716746925 | J123: 0.0191881999 | K123: 0.03177956983 | L123: 0.04365469697 | M123: 0.05493602045 | N123: 0.06571741834 | O123: 0.07607242545 | P123: 0.08605969158 | Q123: 0.09572672267 | R123: 0.1051125151 | S123: 0.1142494545 | T123: 0.1231647127 | U123: 0.1318812944 | V123: 0.1404188339 | W123: 0.1487942105 | X123: 0.1570220298 | Y123: 0.1651150051 | Z123: 0.1730842622 | AA123: 0.180939586 | AB123: 0.1886896209 | AC123: 0.1963420362 | AD123: 0.2039036628 | AE123: 0.2113806066 | AF123: 0.2187783445 | AG123: 0.2261018048 | AH123: 0.2333554359 | AI123: 0.2453004115 | AJ123: 0.2570788829 | AK123: 0.3027822613 | AL123: 0.3249231249 | AM123: 0.3680583806 | AN123: 0.3849402889
C124: 0.2201933962 | E124: -0.09931954926 | F124: -0.05103381477 | G124: -0.03238434348 | H124: -0.01587682359 | I124: -0.0009413274298 | J124: 0.01279241683 | K124: 0.02557843536 | L124: 0.03759851655 | M124: 0.04898720155 | N124: 0.05984682759 | O124: 0.07025702327 | P124: 0.08028094214 | Q124: 0.08996949302 | R124: 0.09936429324 | S124: 0.1084997815 | T124: 0.1174047622 | U124: 0.1261035553 | V124: 0.1346168679 | W124: 0.1429624632 | X124: 0.1511556828 | Y124: 0.1592098578 | Z124: 0.1671366367 | AA124: 0.1749462501 | AB124: 0.1826477248 | AC124: 0.1902490603 | AD124: 0.1977573737 | AE124: 0.2051790208 | AF124: 0.2125196974 | AG124: 0.2197845242 | AH124: 0.2269781196 | AI124: 0.2388203207 | AJ124: 0.2504931315 | AK124: 0.2957537358 | AL124: 0.317665455 | AM124: 0.3603347467 | AN124: 0.3770287674
C125: 0.229456422 | E125: -0.1109809343 | F125: -0.05931664473 | G125: -0.03986385394 | H125: -0.02280684067 | I125: -0.007480190262 | J125: 0.006539352136 | K125: 0.01953752872 | L125: 0.031716262 | M125: 0.04322348781 | N125: 0.05417080205 | O125: 0.06464444028 | P125: 0.0747123996 | Q125: 0.08442922269 | R125: 0.09383930845 | S125: 0.1029792625 | T125: 0.1118796038 | U125: 0.1205660277 | V125: 0.1290603584 | W125: 0.1373812768 | X125: 0.1455448853 | Y125: 0.1535651523 | Z125: 0.161454264 | AA125: 0.1692229083 | AB125: 0.1768805034 | AC125: 0.1844353861 | AD125: 0.1918949656 | AE125: 0.1992658523 | AF125: 0.2065539644 | AG125: 0.2137646183 | AH125: 0.2209026048 | AI125: 0.2326493402 | AJ125: 0.2442237194 | AK125: 0.2890697787 | AL125: 0.3107661128 | AM125: 0.3529963723 | AN125: 0.3695130876
C126: 0.2382232143 | E126: -0.1233257098 | F126: -0.06768524464 | G126: -0.04733346596 | H126: -0.02967087241 | I126: -0.01391715335 | J126: 0.0004128795181 | K126: 0.01364123551 | L126: 0.02599246556 | M126: 0.03762935063 | N126: 0.04867363016 | O126: 0.05921870811 | P126: 0.0693377933 | Q126: 0.07908931047 | R126: 0.08852061144 | S126: 0.09767058945 | T126: 0.1065715644 | U126: 0.1152506703 | V126: 0.1237308949 | W126: 0.1320318711 | X126: 0.1401704889 | Y126: 0.1481613735 | Z126: 0.1560172644 | AA126: 0.1637493184 | AB126: 0.1713673547 | AC126: 0.1788800546 | AD126: 0.1862951253 | AE126: 0.1936194362 | AF126: 0.2008591318 | AG126: 0.2080197273 | AH126: 0.2151061883 | AI126: 0.2267642001 | AJ126: 0.2382468167 | AK126: 0.2827043812 | AL126: 0.3041980316 | AM126: 0.3460141231 | AN126: 0.3623633032
C127: 0.2465326087 | E127: -0.1365514968 | F127: -0.07617960365 | G127: -0.05481874351 | H127: -0.03648819906 | I127: -0.02026855627 | J127: -0.005601935025 | K127: 0.007875260861 | L127: 0.02041306343 | M127: 0.03219072896 | N127: 0.04334112069 | O127: 0.0539654257 | P127: 0.06414246354 | Q127: 0.07393480777 | R127: 0.08339294587 | S127: 0.09255818667 | T127: 0.1014647424 | U127: 0.1101412514 | V127: 0.1186119138 | W127: 0.1268973508 | X127: 0.1350152667 | Y127: 0.1429809644 | Z127: 0.1508077523 | AA127: 0.1585072686 | AB127: 0.1660897428 | AC127: 0.1735642079 | AD127: 0.1809386753 | AE127: 0.188220278 | AF127: 0.1954153906 | AG127: 0.2025297298 | AH127: 0.2095684387 | AI127: 0.2211439576 | AJ127: 0.2325409755 | AK127: 0.276634131 | AL127: 0.2979368452 | AM127: 0.3393617703 | AN127: 0.3555524538
C128: 0.2544194915 | E128: -0.1509204342 | F128: -0.08484394835 | G128: -0.06234617996 | H128: -0.04327783765 | I128: -0.0265499751 | J128: -0.01151902162 | K128: 0.002226446141 | L128: 0.01496521184 | M128: 0.02689484217 | N128: 0.03816041151 | O128: 0.04887156345 | P128: 0.05911316102 | Q128: 0.06895221328 | R128: 0.07844253839 | S128: 0.08762799635 | T128: 0.09654478777 | U128: 0.105223125 | V128: 0.1136884707 | W128: 0.1219624721 | X128: 0.1300636761 | Y128: 0.1380080845 | Z128: 0.1458095908 | AA128: 0.1534803271 | AB128: 0.1610309426 | AC128: 0.1684708303 | AD128: 0.175808311 | AE128: 0.1830507862 | AF128: 0.1902048646 | AG128: 0.1972764673 | AH128: 0.2042709175 | AI128: 0.2157697118 | AJ128: 0.2270868382 | AK128: 0.2708378933 | AL128: 0.2919605568 | AM128: 0.3330156344 | AN128: 0.3490561996
C129: 0.2619152893 | E129: -0.1667904695 | F129: -0.09372819045 | G129: -0.06994372054 | H129: -0.05005881201 | I129: -0.03277641394 | J129: -0.0173514724 | K129: -0.003317389571 | L129: 0.009637128983 | M129: 0.02173002986 | N129: 0.033119806 | O129: 0.04392529594 | P129: 0.05423787556 | Q129: 0.0641292977 | R129: 0.0736569192 | S129: 0.08286729497 | T129: 0.09179871532 | U129: 0.1004830391 | V129: 0.1089470447 | W129: 0.1172134442 | X129: 0.1253016561 | Y129: 0.1332284033 | Z129: 0.1410081809 | AA129: 0.1486536277 | AB129: 0.1561758229 | AC129: 0.1635845266 | AD129: 0.1708883755 | AE129: 0.1780950445 | AF129: 0.1852113795 | AG129: 0.1922435096 | AH129: 0.1991969402 | AI129: 0.2106243589 | AJ129: 0.2218668866 | AK129: 0.2652965393 | AL129: 0.2862492562 | AM129: 0.3269542808 | AN129: 0.3428525083
C130: 0.2690483871 | F130: -0.1028897765 | G130: -0.07764136214 | H130: -0.05685042941 | I130: -0.03896248424 | J130: -0.02311168943 | K130: -0.008767587658 | L130: 0.004417958639 | M130: 0.0166856141 | N130: 0.02820863274 | O130: 0.03911585833 | P130: 0.04950568913 | Q130: 0.05945495322 | R130: 0.06902476811 | S130: 0.0782645359 | T130: 0.08721474334 | U130: 0.09590897183 | V130: 0.1043753708 | W130: 0.1126377576 | X130: 0.1207164526 | Y130: 0.1286289222 | Z130: 0.1363902806 | AA130: 0.1440136863 | AB130: 0.1515106585 | AC130: 0.1588913325 | AD130: 0.1661646669 | AE130: 0.1733386145 | AF130: 0.1804202628 | AG130: 0.1874159516 | AH130: 0.1943313709 | AI130: 0.205692382 | AJ130: 0.2168652276 | AK130: 0.2599927119 | AL130: 0.2807848763 | AM130: 0.321158258 | AN130: 0.3369213856
C131: 0.2758444882 | F131: -0.1123961057 | G131: -0.08547186202 | H131: -0.06367257331 | I131: -0.04512257713 | J131: -0.0288115184 | K131: -0.01413477137 | L131: -0.0007023482294 | M131: 0.01175178046 | N131: 0.02341712446 | O131: 0.03443342275 | P131: 0.0449066493 | Q131: 0.05491906406 | R131: 0.06453578204 | S131: 0.07380921391 | T131: 0.08278215525 | U131: 0.09148998985 | V131: 0.09996229557 | W131: 0.1082240373 | X131: 0.1162964684 | Y131: 0.1241978222 | Z131: 0.1319438496 | AA131: 0.1395482422 | AB131: 0.1470229697 | AC131: 0.1543785503 | AD131: 0.1616242711 | AE131: 0.1687683676 | AF131: 0.1758181726 | AG131: 0.1827802395 | AH131: 0.1896604456 | AI131: 0.2009596701 | AJ131: 0.2120674071 | AK131: 0.2549106238 | AL131: 0.2755509835 | AM131: 0.3156098723 | AN131: 0.3312446438
C132: 0.2823269231 | F132: -0.1223277544 | G132: -0.09347159696 | H132: -0.07054602272 | I132: -0.051271033 | J132: -0.03446237144 | K132: -0.01942895349 | L132: -0.005733136901 | M132: 0.006919474713 | N132: 0.01873631326 | O132: 0.02986899133 | P132: 0.04043165988 | Q132: 0.05051239447 | R132: 0.06018056041 | S132: 0.06949174796 | T132: 0.07849117989 | U132: 0.08721612594 | V132: 0.09569765243 | W132: 0.1039619155 | X132: 0.1120311337 | Y132: 0.1199243314 | Z132: 0.1276579143 | AA132: 0.1352461211 | AB132: 0.1427013823 | AC132: 0.1500346075 | AD132: 0.1572554182 | AE132: 0.1643723377 | AF132: 0.1713929481 | AG132: 0.1783240194 | AH132: 0.1851716186 | AI132: 0.1964133609 | AJ132: 0.2074602501 | AK132: 0.2500358829 | AL132: 0.2705325956 | AM132: 0.3102929917 | AN132: 0.3258057007
C133: 0.2885169173 | F133: -0.1327828571 | G133: -0.1016816278 | H133: -0.07749281058 | I133: -0.0574223131 | J133: -0.04007534194 | K133: -0.02465963273 | L133: -0.01068313976 | M133: 0.002180312826 | N133: 0.01415793959 | O133: 0.02541430338 | P133: 0.03607238598 | Q133: 0.04622649165 | R133: 0.05595050582 | S133: 0.06530337958 | T133: 0.07433288756 | U133: 0.08307827295 | V133: 0.09157215309 | W133: 0.09984192068 | X133: 0.107910793 | Y133: 0.1157986101 | Z133: 0.1235224511 | AA133: 0.131097116 | AB133: 0.138535507 | AC133: 0.1458489332 | AD133: 0.153047357 | AE133: 0.1601395947 | AF133: 0.1671334812 | AG133: 0.1740360067 | AH133: 0.1808534298 | AI133: 0.1920417047 | AJ133: 0.2030317207 | AK133: 0.2453553402 | AL133: 0.265716024 | AM133: 0.3051928764 | AN133: 0.3205894049
C134: 0.2944338235 | F134: -0.1438831574 | G134: -0.1101490439 | H134: -0.08453663608 | I134: -0.06359117787 | J134: -0.0456613139 | K134: -0.02983588104 | L134: -0.01556055669 | M134: -0.002473497939 | N134: 0.009674372794 | O134: 0.02106175457 | P134: 0.03182117141 | Q134: 0.0420536012 | R134: 0.05183773756 | S134: 0.06123608445 | T134: 0.07029909965 | U134: 0.07906809146 | V134: 0.08757729339 | W134: 0.0958553818 | X134: 0.1039266071 | Y134: 0.1118116507 | Z134: 0.1195282843 | AA134: 0.1270918836 | AB134: 0.1345158335 | AC134: 0.141811851 | AD134: 0.1489902462 | AE134: 0.1560601332 | AF134: 0.1630296038 | AG134: 0.1699058712 | AH134: 0.1766953886 | AI134: 0.1878339457 | AJ134: 0.1987708007 | AK134: 0.2408569577 | AL134: 0.2610887364 | AM134: 0.3002960309 | AN134: 0.3155818838
C135: 0.3000953237 | F135: -0.1557824934 | G135: -0.1189286908 | H135: -0.09170334978 | I135: -0.06979287693 | J135: -0.05123106839 | K135: -0.03496642367 | L135: -0.02037312666 | M135: -0.007049228427 | N135: 0.005278541513 | O135: 0.01680432622 | P135: 0.02767096654 | Q135: 0.03798659334 | R135: 0.04783501608 | S135: 0.05728249516 | T135: 0.06638230971 | U135: 0.07517792912 | V135: 0.08370527094 | W135: 0.09199434406 | X135: 0.1000704676 | Y135: 0.1079551907 | Z135: 0.1156669974 | AA135: 0.1232218537 | AB135: 0.1306336385 | AC135: 0.1379144856 | AD135: 0.1450750589 | AE135: 0.1521247758 | AF135: 0.1590719891 | AG135: 0.1659241379 | AH135: 0.1726878723 | AI135: 0.1837802177 | AJ135: 0.1946673835 | AK135: 0.2365296925 | AL135: 0.2566392357 | AM135: 0.2955900742 | AN135: 0.3107704105
C136: 0.3055176056 | F136: -0.1686788399 | G136: -0.128085424 | H136: -0.09902153551 | I136: -0.07604335681 | J136: -0.05679538923 | K136: -0.04005971352 | L136: -0.02512819205 | M136: -0.01155368899 | N136: 0.0009638725505 | O136: 0.01263552334 | P136: 0.02361526505 | Q136: 0.03401889828 | R136: 0.04393567691 | S136: 0.05343583356 | T136: 0.06257561428 | U136: 0.07140074996 | V136: 0.07994891296 | W136: 0.08825149533 | X136: 0.09633492176 | Y136: 0.1042216362 | Z136: 0.111930855 | AA136: 0.1194791499 | AB136: 0.1268809051 | AC136: 0.13414868 | AD136: 0.1412934994 | AE136: 0.1483250886 | AF136: 0.1552520657 | AG136: 0.1620820988 | AH136: 0.1688220376 | AI136: 0.1798714537 | AJ136: 0.1907121809 | AK136: 0.2323633951 | AL136: 0.2523569553 | AM136: 0.2910636265 | AN136: 0.306143287
C137: 0.3107155172 | G137: -0.1376970896 | H137: -0.1065232203 | I137: -0.08235949288 | J137: -0.06236517055 | K137: -0.04512400132 | L137: -0.02983275679 | M137: -0.01599328409 | N137: -0.003275763137 | O137: 0.008549320065 | P137: 0.01964804839 | Q137: 0.0301444494 | R137: 0.04013357255 | S137: 0.04968985141 | T137: 0.05887265217 | U137: 0.06773007241 | V137: 0.07630161296 | W137: 0.08462010154 | X137: 0.0927131064 | Y137: 0.1006039942 | Z137: 0.1083127343 | AA137: 0.1158565197 | AB137: 0.1232502517 | AC137: 0.1305069241 | AD137: 0.1376379293 | AE137: 0.1446533062 | AF137: 0.1515619418 | AG137: 0.1583717367 | AH137: 0.1650897424 | AI137: 0.1760993055 | AJ137: 0.1868966408 | AK137: 0.2283487206 | AL137: 0.2482321654 | AM137: 0.2867062094 | AN137: 0.3016897417
C138: 0.3157027027 | G138: -0.1478585162 | H138: -0.1142447535 | I138: -0.08875935374 | J138: -0.06795152843 | K138: -0.05016740288 | L138: -0.03449353961 | M138: -0.02037406107 | N138: -0.007446098266 | O138: 0.004540111518 | P138: 0.01576373677 | Q138: 0.02635763327 | R138: 0.03642302133 | S138: 0.046038778 | T138: 0.05526755097 | U138: 0.0641599146 | V138: 0.07275727489 | W138: 0.08109394965 | X138: 0.08919868997 | Y138: 0.09709581384 | Z138: 0.104806065 | AA138: 0.1123472734 | AB138: 0.1197348696 | AC138: 0.1269822905 | AD138: 0.1341013034 | AE138: 0.1411022659 | AF138: 0.1479943382 | AG138: 0.1547856567 | AH138: 0.1614834768 | AI138: 0.1724560732 | AJ138: 0.1832128753 | AK138: 0.2244770494 | AL138: 0.2442558915 | AM138: 0.2825081573 | AN138: 0.297399839
C139: 0.3204917219 | G139: -0.1586869169 | H139: -0.1222279097 | I139: -0.09526250791 | J139: -0.07356591934 | K139: -0.05519796468 | L139: -0.03911702311 | M139: -0.02470175409 | N139: -0.01155251177 | O139: 0.000602671164 | P139: 0.01195714585 | Q139: 0.0226532454 | R139: 0.03279876222 | S139: 0.04247727398 | T139: 0.05175487983 | U139: 0.06068474612 | V139: 0.06931026385 | W139: 0.07766729739 | X139: 0.08578582116 | Y139: 0.09369113402 | Z139: 0.1014047758 | AA139: 0.1089452296 | AB139: 0.1163284673 | AC139: 0.1235683785 | AD139: 0.1306771121 | AE139: 0.1376653499 | AF139: 0.1445425297 | AG139: 0.1513170263 | AH139: 0.1579963021 | AI139: 0.1689346425 | AJ139: 0.1796535968 | AK139: 0.2207404176 | AL139: 0.2404198421 | AM139: 0.2784605399 | AN139: 0.2932643986
C140: 0.3250941558 | G140: -0.1703292536 | H140: -0.1305212892 | I140: -0.1018903851 | J140: -0.07922026843 | K140: -0.06022372896 | L140: -0.0437094996 | M140: -0.02898182379 | N140: -0.01560006681 | O140: -0.003267887082 | P140: 0.008223448357 | Q140: 0.0190264511 | R140: 0.02925591478 | S140: 0.03900039043 | T140: 0.0483296076 | U140: 0.05729944521 | V140: 0.06595536245 | W140: 0.07433482868 | X140: 0.08246908345 | Y140: 0.09038443685 | Z140: 0.09810324707 | AA140: 0.1056446669 | AB140: 0.1130252221 | AC140: 0.1202592642 | AD140: 0.1273593309 | AE140: 0.1343364338 | AF140: 0.1412002921 | AG140: 0.1479595227 | AH140: 0.1546217973 | AI140: 0.1655284302 | AJ140: 0.1762120612 | AK140: 0.2171314556 | AL140: 0.2367163438 | AM140: 0.2745550929 | AN140: 0.2892749253
C141: 0.3295207006 | H141: -0.1391821152 | I141: -0.108666708 | J141: -0.08492711081 | K141: -0.06525279955 | L141: -0.04827711438 | M141: -0.03321949349 | N141: -0.01959354481 | O141: -0.007076142612 | P141: 0.004558139954 | Q141: 0.01547275074 | R141: 0.02578994367 | S141: 0.03560353253 | T141: 0.04498706569 | U141: 0.05399926089 | V141: 0.06268773203 | W141: 0.07109161403 | X141: 0.07924345474 | Y141: 0.08717060664 | Z141: 0.09489626912 | AA141: 0.1024402817 | AB141: 0.1098197364 | AC141: 0.1170494564 | AD141: 0.1241423755 | AE141: 0.1311098405 | AF141: 0.1379618562 | AG141: 0.1447072851 | AH141: 0.1513540107 | AI141: 0.1622313341 | AJ141: 0.1728820178 | AK141: 0.2136433331 | AL141: 0.233138285 | AM141: 0.2707841569 | AN141: 0.2854235449
C142: 0.33378125 | H142: -0.1482785606 | I142: -0.1156180134 | J142: -0.09069975005 | K142: -0.07029340958 | L142: -0.05282590724 | M142: -0.03741978239 | N142: -0.0235374762 | O142: -0.01082639832 | P142: 0.0009570087944 | Q142: 0.0119879487 | R142: 0.02239662701 | S142: 0.03228242723 | T142: 0.04172291507 | U142: 0.05077977914 | V142: 0.05950287819 | W142: 0.06793307542 | X142: 0.07610427148 | Y142: 0.08404489328 | Z142: 0.09177900483 | AA142: 0.0993271496 | AB142: 0.1067069988 | AC142: 0.1139338572 | AD142: 0.1210210615 | AE142: 0.1279802997 | AF142: 0.1348218666 | AG142: 0.1415548732 | AH142: 0.1481874173 | AI142: 0.1590376899 | AJ142: 0.1696576642 | AK142: 0.2102697099 | AL142: 0.2296790645 | AM142: 0.267140622 | AN142: 0.281702949
C143: 0.3405378788 | H143: -0.1646384778 | I143: -0.127675713 | J143: -0.1005062567 | K143: -0.07874309753 | L143: -0.06038161626 | M143: -0.04435029055 | N143: -0.03001219976 | O143: -0.01695884281 | P143: -0.00491286963 | Q143: 0.006322522673 | R143: 0.01689197996 | S143: 0.02690490242 | T143: 0.03644602147 | U143: 0.04558228759 | V143: 0.05436751111 | W143: 0.06284558134 | X143: 0.07105275625 | Y143: 0.07901932713 | Z143: 0.08677085252 | AA143: 0.09432908855 | AB143: 0.1017127012 | AC143: 0.1089378191 | AD143: 0.1160184682 | AE143: 0.1229669169 | AF143: 0.1297939531 | AG143: 0.1365091096 | AH143: 0.143120847 | AI143: 0.1539307065 | AJ143: 0.1645041277 | AK143: 0.2048856262 | AL143: 0.2241613095 | AM143: 0.2613334364 | AN143: 0.2757743507
C144: 0.3468970588 | I144: -0.140471548 | J144: -0.1106092192 | K144: -0.0872892944 | L144: -0.0679292096 | M144: -0.05121196049 | N144: -0.03637994259 | O144: -0.02295876537 | P144: -0.01063217 | Q144: 0.0008210618658 | R144: 0.01156165658 | S144: 0.0217100314 | T144: 0.03135871714 | U144: 0.04058034058 | V144: 0.04943294214 | W144: 0.0579636286 | X144: 0.06621114945 | Y144: 0.07420775604 | Z144: 0.08198057067 | AA144: 0.0895526128 | AB144: 0.09694358069 | AC144: 0.1041704551 | AD144: 0.1112479721 | AE144: 0.1181889965 | AF144: 0.1250048217 | AG144: 0.1317054114 | AH144: 0.1382995963 | AI144: 0.1490744158 | AJ144: 0.1596066087 | AK144: 0.1997785536 | AL144: 0.2189309296 | AM144: 0.2558341212 | AN144: 0.2701617336
C145: 0.3689868421 | J145: -0.155994039 | K145: -0.1233999648 | L145: -0.09861263076 | M145: -0.07838159398 | N145: -0.06111806575 | O145: -0.04593500825 | P145: -0.03228905234 | Q145: -0.01982397206 | R145: -0.008293850762 | S145: 0.00247810073 | T145: 0.01262318936 | U145: 0.0222415874 | V145: 0.03141144209 | W145: 0.04019488278 | X145: 0.04864211127 | Y145: 0.05679426476 | Z145: 0.06468546814 | AA145: 0.07234433617 | AB145: 0.07979509365 | AC145: 0.08705842444 | AD145: 0.09415212448 | AE145: 0.1010916109 | AF145: 0.1078903234 | AG145: 0.1145600447 | AH145: 0.1211111584 | AI145: 0.131790615 | AJ145: 0.1422022988 | AK145: 0.1817114384 | AL145: 0.2004574366 | AM145: 0.2364571109 | AN145: 0.2503998164
C146: 0.378375 | K146: -0.1434836686 | L146: -0.1147005385 | M146: -0.09208734016 | N146: -0.0732639762 | O146: -0.05699303913 | P146: -0.04255397931 | Q146: -0.02949185429 | R146: -0.01750156068 | S146: -0.006368729195 | T146: 0.004062931034 | U146: 0.01391083978 | V146: 0.02326543117 | W146: 0.03219782367 | X146: 0.04076494744 | Y146: 0.04901307662 | Z146: 0.05698032667 | AA146: 0.0646984603 | AB146: 0.07219421968 | AC146: 0.07949032652 | AD146: 0.08660624478 | AE146: 0.09355877054 | AF146: 0.100362494 | AG146: 0.1070301658 | AH146: 0.1135729897 | AI146: 0.12422662 | AJ146: 0.134599717 | AK146: 0.1738632637 | AL146: 0.1924487236 | AM146: 0.228081512 | AN146: 0.2418655159
C147: 0.3945909091 | L147: -0.150067616 | M147: -0.1206452272 | N147: -0.09770327218 | O147: -0.07870773724 | P147: -0.06235360481 | Q147: -0.04788647641 | R147: -0.03483273438 | S147: -0.02287617986 | T147: -0.01179545725 | U147: -0.001429666138 | V147: 0.008341774003 | W147: 0.01761153589 | X147: 0.02645236794 | Y147: 0.03492241601 | Z147: 0.04306888037 | AA147: 0.05093059552 | AB147: 0.058539892 | AC147: 0.06592396746 | AD147: 0.07310591421 | AE147: 0.08010550173 | AF147: 0.0869397811 | AG147: 0.09362355778 | AH147: 0.1001697659 | AI147: 0.1108046568 | AJ147: 0.1211332204 | AK147: 0.1600353663 | AL147: 0.1783646554 | AM147: 0.2133935587 | AN147: 0.2269120399
C148: 0.4 | L148: -0.165265811 | M148: -0.132176862 | N148: -0.1071944676 | O148: -0.08692153266 | P148: -0.0697029975 | Q148: -0.05461852481 | R148: -0.04110644141 | S148: -0.02879971429 | T148: -0.01744567033 | U148: -0.00686309447 | V148: 0.003082334279 | W148: 0.01249290972 | X148: 0.02144831581 | Y148: 0.03001182358 | Z148: 0.03823450252 | AA148: 0.0461581631 | AB148: 0.05381746272 | AC148: 0.0612414449 | AD148: 0.06845468544 | AE148: 0.07547816004 | AF148: 0.08232991094 | AG148: 0.08902556588 | AH148: 0.09557874717 | AI148: 0.1062158964 | AJ148: 0.1165368517 | AK148: 0.1553389056 | AL148: 0.1735896012 | AM148: 0.2084267642 | AN148: 0.221859484

Sheet RECEITA
A2: IPÊ AMARELO - RECEITA MENSAL INICIAL ESTIMADA (R$)
A3: VEÍCULO | B3: PERÍODO | C3: VAGAS | D3: DIAS | E3: HORAS | F3: TARIFA (R$) | G3: TX OCUPAÇÃO | H3: RESPEITO* | I3: ISENÇÃO | J3: RECEITA (R$)
A4: CARROS | B4: 2ª a 6ª | C4: ='VAGAS RECEITA'!B26 -> 72455 | D4: 22 | E4: 11 | F4: ='FLUXO DE CAIXA'!$G$43 -> 3 | G4: ='FLUXO DE CAIXA'!G45 -> 0.3 | H4: ='FLUXO DE CAIXA'!K45 -> 0.6 | I4: 0.8 | J4: =C4*D4*E4*F4*G4*H4*(1-I4) -> 1893683.88
B5: SÁBADO | C5: ='VAGAS RECEITA'!B26 -> 72455 | D5: 4 | E5: 4 | F5: ='FLUXO DE CAIXA'!$G$43 -> 3 | G5: ='FLUXO DE CAIXA'!G45 -> 0.3 | H5: ='FLUXO DE CAIXA'!K45 -> 0.6 | I5: 0.8 | J5: =C5*D5*E5*F5*G5*H5*(1-I5) -> 125202.24
A6: MOTOS | B6: 2ª a 6ª | C6: ='VAGAS RECEITA'!G26 -> 4135 | D6: 22 | E6: 11 | F6: ='FLUXO DE CAIXA'!$G$43/2 -> 1.5 | G6: ='FLUXO DE CAIXA'!G45 -> 0.3 | H6: ='FLUXO DE CAIXA'!K45 -> 0.6 | I6: 0 | J6: =C6*D6*E6*F6*G6*H6*(1-I6) -> 270180.9
B7: SÁBADO | C7: ='VAGAS RECEITA'!G26 -> 4135 | D7: 4 | E7: 4 | F7: ='FLUXO DE CAIXA'!$G$43/2 -> 1.5 | G7: ='FLUXO DE CAIXA'!G45 -> 0.3 | H7: ='FLUXO DE CAIXA'!K45 -> 0.6 | I7: 0 | J7: =C7*D7*E7*F7*G7*H7*(1-I7) -> 17863.2
I9: TOTAL | J9: =SUM(J4:J7) -> 2306930.22
A11: IPÊ BRANCO - RECEITA MENSAL INICIAL ESTIMADA (R$)
A12: VEÍCULO | B12: PERÍODO | C12: VAGAS | D12: DIAS | E12: HORAS | F12: TARIFA (R$) | G12: TX OCUPAÇÃO | H12: RESPEITO* | I12: ISENÇÃO | J12: RECEITA (R$)
A13: CARROS | B13: 2ª a 6ª | C13: ='VAGAS RECEITA'!B19 -> 6266 | D13: 22 | E13: 18 | F13: ='FLUXO DE CAIXA'!$G$43 -> 3 | G13: ='FLUXO DE CAIXA'!G45 -> 0.3 | H13: ='FLUXO DE CAIXA'!K45 -> 0.6 | I13: 0.95 | J13: =C13*D13*E13*F13*G13*H13*(1-I13) -> 66996.072
I15: TOTAL | J15: =SUM(J13:J13) -> 66996.072
A17: IPÊ ROXO - RECEITA MENSAL INICIAL ESTIMADA (R$)
A18: VEÍCULO | B18: PERÍODO | C18: VAGAS | D18: DIAS | E18: HORAS | F18: TARIFA (R$) | G18: TX OCUPAÇÃO | H18: RESPEITO* | I18: ISENÇÃO | J18: RECEITA (R$)
A19: CARROS | B19: 2ª a 6ª | C19: ='VAGAS RECEITA'!B29 -> 11851 | D19: 22 | E19: 10 | F19: ='FLUXO DE CAIXA'!$G$43 -> 3 | G19: ='FLUXO DE CAIXA'!G45 -> 0.3 | H19: ='FLUXO DE CAIXA'!K45 -> 0.6 | I19: 0 | J19: =C19*D19*E19*F19*G19*H19*(1-I19) -> 1407898.8
B20: SÁBADO | C20: ='VAGAS RECEITA'!B29 -> 11851 | D20: 4 | E20: 5 | F20: ='FLUXO DE CAIXA'!$G$43 -> 3 | G20: ='FLUXO DE CAIXA'!G45 -> 0.3 | H20: ='FLUXO DE CAIXA'!K45 -> 0.6 | I20: 0 | J20: =C20*D20*E20*F20*G20*H20*(1-I20) -> 127990.8
A21: MOTOS | B21: 2ª a 6ª | C21: ='VAGAS RECEITA'!G29 -> 1645 | D21: 22 | E21: 10 | F21: ='FLUXO DE CAIXA'!$G$43/2 -> 1.5 | G21: ='FLUXO DE CAIXA'!G45 -> 0.3 | H21: ='FLUXO DE CAIXA'!K45 -> 0.6 | I21: 0 | J21: =C21*D21*E21*F21*G21*H21*(1-I21) -> 97713
B22: SÁBADO | C22: ='VAGAS RECEITA'!G29 -> 1645 | D22: 4 | E22: 5 | F22: ='FLUXO DE CAIXA'!$G$43/2 -> 1.5 | G22: ='FLUXO DE CAIXA'!G45 -> 0.3 | H22: ='FLUXO DE CAIXA'!K45 -> 0.6 | I22: 0 | J22: =C22*D22*E22*F22*G22*H22*(1-I22) -> 8883
I24: TOTAL | J24: =SUM(J19:J22) -> 1642485.6
A26: IPÊ ROSA - RECEITA MENSAL INICIAL ESTIMADA (R$)
A27: VEÍCULO | B27: PERÍODO | C27: VAGAS | D27: DIAS | E27: HORAS | F27: TARIFA (R$) | G27: TX OCUPAÇÃO | H27: RESPEITO* | I27: ISENÇÃO | J27: RECEITA (R$)
A28: CARROS | B28: 2ª a 6ª | C28: ='VAGAS RECEITA'!B34 -> 15252 | D28: 22 | E28: 12 | F28: ='FLUXO DE CAIXA'!$G$43 -> 3 | G28: ='FLUXO DE CAIXA'!G45 -> 0.3 | H28: ='FLUXO DE CAIXA'!K45 -> 0.6 | I28: 0 | J28: =C28*D28*E28*F28*G28*H28*(1-I28) -> 2174325.12
A29: MOTOS | B29: SÁBADO | C29: ='VAGAS RECEITA'!G34 -> 1640 | D29: 22 | E29: 12 | F29: ='FLUXO DE CAIXA'!$G$43/2 -> 1.5 | G29: ='FLUXO DE CAIXA'!G45 -> 0.3 | H29: ='FLUXO DE CAIXA'!K45 -> 0.6 | I29: 0 | J29: =C29*D29*E29*F29*G29*H29*(1-I29) -> 116899.2
I31: TOTAL | J31: =SUM(J28:J29) -> 2291224.32
A33: ANO | B33: * TAXA DE RESPEITO | E33: VÁLIDO A PARTIR DO 4º ANO | H33: TOTAL GERAL MENSAL (R$) | J33: =J9+J15+J24+J31 -> 6307636.212
A34: 1 | B34: ='FLUXO DE CAIXA'!I45 -> 0.5 | H34: TOTAL GERAL ANUAL (R$) | J34: =12*J33 -> 75691634.54
A35: 2 | B35: =B34+(B37-B34)/3 -> 0.5333333333
A36: 3 | B36: =B34+2*(B37-B34)/3 -> 0.5666666667 | E36: RECEITA 1º ANO | G36: 50% IPÊS BRANCO/ROXO/ROSA ; RESPEITO 60% | J36: =0.5*(J15+J24+J31)*12*B34/0.75 -> 16002823.97
A37: 4 - 20 | B37: ='FLUXO DE CAIXA'!K45 -> 0.6 | E37: RECEITA 2º ANO | G37: 100% B/R/R ; 50% IPÊ AMARELO ; RESPEITO 65% | J37: =(0.5*J9+J15+J24+J31)*12*B35/0.75 -> 43982260.07
E38: RECEITA 3º ANO | G38: RESPEITO 70% | J38: =J34*B36/0.75 -> 57189234.99
A42: RECEITA ACESSÓRIA PUBLICIDADE
A43: Preço público de ocupação (R$/m2/ano): | D43: 204.44
A44: Número de espaços a serem explorados: | D44: 130
A45: Área explorada em cada espaço (m2): | D45: 12
A46: Valor total anual: | D46: =D43*D44*D45 -> 318926.4

Sheet VAGAS RECEITA
B1: VAGAS (AUTOS) | C1: VAGAS | D1: PNE | E1: IDOSOS | F1: GESTANTES | G1: VAGAS (MOTOS) | H1: CARGA/DESCARGA | I1: VAGAS (TOTAL) | J1: REVIT | K1: EXPANSÃO/NOVAS
A2: IPÊ BRANCO
A3: METRÔ GUARÁ | B3: =SUM(C3:F3) -> 556 | C3: 520 | D3: 9 | E3: 25 | F3: 2 | G3: 50 | H3: 3 | I3: =B3+G3+H3 -> 609 | J3: 278 | K3: =I3-J3 -> 331
A4: METRÔ SHOPPING | B4: 536 | C4: 500 | D4: 9 | E4: 25 | F4: 2 | G4: 100 | H4: 2 | I4: 638 | J4: 415 | K4: =I4-J4 -> 223
A5: METRÔ TAGUATINGA SUL | B5: 139 | C5: 130 | D5: 2 | E5: 6 | F5: 1 | G5: 20 | H5: 1 | I5: 160 | J5: 67 | K5: =I5-J5 -> 93
A6: METRÔ FURNAS | B6: 171 | C6: 160 | D6: 3 | E6: 7 | F6: 1 | G6: 60 | H6: 1 | I6: 232 | J6: 232
A7: METRÔ SAMAMBAIS | B7: 1012 | C7: 950 | D7: 15 | E7: 45 | F7: 2 | G7: 300 | H7: 2 | I7: 1314 | J7: 600 | K7: =I7-J7 -> 714
A8: METRÔ SAMAMBAIA SUL | B8: 448 | C8: 420 | D8: 6 | E8: 20 | F8: 2 | G8: 100 | H8: 2 | I8: 550 | J8: 310 | K8: =I8-J8 -> 240
A9: METRO CENTRO ADM | B9: 172 | C9: 150 | D9: 5 | E9: 15 | F9: 2 | G9: 40 | H9: 1 | I9: 213 | J9: 150 | K9: =I9-J9 -> 63
A10: METRÔ FEIRA | B10: 311 | C10: 290 | D10: 5 | E10: 14 | F10: 2 | G10: 50 | H10: 2 | I10: 363 | J10: 363
A11: METRÔ TERM. CEILÂNDIA | B11: 123 | C11: 115 | D11: 2 | E11: 5 | F11: 1 | G11: 20 | H11: 1 | I11: 144 | J11: 144
A12: METRÔ CEILÂNDIA NORTE | B12: 536 | C12: 500 | D12: 8 | E12: 26 | F12: 2 | G12: 80 | H12: 1 | I12: 617 | J12: 617
A13: METRÔ CEILÂNDIA CENTRO | B13: 337 | C13: 315 | D13: 5 | E13: 15 | F13: 2 | G13: 40 | H13: 1 | I13: 378 | J13: 0 | K13: 378
A14: METRÔ GUARIROBA | B14: 172 | C14: 160 | D14: 3 | E14: 7 | F14: 2 | G14: 30 | H14: 1 | I14: 203 | J14: 203
A15: METRÔ CEILÂNDIA SUL | B15: 204 | C15: 190 | D15: 3 | E15: 10 | F15: 1 | G15: 30 | H15: 1 | I15: 235 | J15: 235
A16: SANTA MARIA BRT | B16: 634 | C16: 600 | D16: 7 | E16: 25 | F16: 2 | G16: 150 | H16: 2 | I16: 786 | J16: 560 | K16: =I16-J16 -> 226
A17: BRT GAMA | B17: 483 | C17: 450 | D17: 7 | E17: 23 | F17: 3 | G17: 60 | H17: 2 | I17: 545 | J17: 196 | K17: =I17-J17 -> 349
A18: METRÔ ESTRADA PARQUE | B18: 432 | C18: 400 | D18: 8 | E18: 20 | F18: 4 | G18: 100 | H18: 2 | I18: 534 | J18: 0 | K18: =I18-J18 -> 534
A19: SOMA | B19: =SUM(B3:B18) -> 6266 | C19: 5850 | D19: 97 | E19: 288 | F19: 31 | G19: 1230 | H19: 25 | I19: 7521 | J19: 4370 | K19: 3151
A21: IPÊ AMARELO
A22: SUDOESTE | B22: =SUM(C22:F22) -> 8795 | C22: 8500 | D22: 80 | E22: 200 | F22: 15 | G22: 300 | H22: 80 | I22: =B22+G22+H22 -> 9175 | J22: =I22 -> 9175
A23: SIG | B23: =SUM(C23:F23) -> 1722 | C23: 1600 | D23: 32 | E23: 80 | F23: 10 | G23: 200 | H23: 30 | I23: =B23+G23+H23 -> 1952 | J23: =I23 -> 1952
A24: W3NORTE | B24: =SUM(C24:F24) -> 4870 | C24: 4600 | D24: 60 | E24: 200 | F24: 10 | G24: 500 | H24: 20 | I24: =B24+G24+H24 -> 5390 | J24: =I24 -> 5390
A25: OUTROS | B25: =SUM(C25:F25) -> 57068 | C25: 53680 | D25: 910 | E25: 2292 | F25: 186 | G25: 3135 | H25: 843 | I25: =B25+G25+H25 -> 61046 | J25: =I25 -> 61046
A26: SOMA | B26: =SUM(B22:B25) -> 72455 | C26: 68380 | D26: 1082 | E26: 2772 | F26: 221 | G26: 4135 | H26: 973 | I26: 77563 | J26: 77563
A27: IPÊ ROXO | C27: 68380
B28: =SUM(C28:F28) -> 11851 | C28: 11025 | D28: 179 | E28: 564 | F28: 83 | G28: 1645 | H28: 120 | I28: =B28+G28+H28 -> 13616 | J28: =I28 -> 13616
A29: SOMA | B29: =SUM(B28) -> 11851 | C29: 11025 | D29: 179 | E29: 564 | F29: 83 | G29: 1645 | H29: 120 | I29: 13616 | J29: 13616
A30: IPÊ ROSA
A31: EIXO MONUM. E BURITI | B31: =SUM(C31:F31) -> 1050 | C31: 970 | D31: 20 | E31: 50 | F31: 10 | G31: 150 | H31: 4 | I31: =B31+G31+H31 -> 1204 | J31: =I31 -> 1204
A32: REGIÃO DOS MINISTÉRIOS (N1, N2, ESPLANADA E EIXO) | B32: =SUM(C32:F32) -> 6410 | C32: 6000 | D32: 90 | E32: 300 | F32: 20 | G32: 600 | H32: 20 | I32: =B32+G32+H32 -> 7030 | J32: =I32 -> 7030
A33: OUTROS | B33: =SUM(C33:F33) -> 7792 | C33: 7229 | D33: =13+9+45+13+15+20+6 -> 121 | E33: =45+30+150+45+47+70+7 -> 394 | F33: =5+5+10+5+7+10+6 -> 48 | G33: =100+70+300+100+90+150+80 -> 890 | H33: =6+2+10+15+7+10+4 -> 54 | I33: =B33+G33+H33 -> 8736 | J33: =I33 -> 8736
A34: SOMA | B34: =SUM(B31:B33) -> 15252 | C34: 14199 | D34: 231 | E34: 744 | F34: 78 | G34: 1640 | H34: 78 | I34: 16970 | J34: 16970
B35: =B34+B29+B26+B19 -> 105824 | C35: 99454 | D35: 1589 | E35: 4368 | F35: 413 | G35: 8650 | H35: 1196 | I35: 115670 | J35: 112519 | K35: 3151

Sheet CAPEX
A1: COMPARATIVO CAPEX
A4: CAPEX TOTAL | B4: RIZZO | D4: REVISÃO SEMOB | G4: ESTACIONAMENTOS | H4: RIZZO | J4: REVISÃO SEMOB
B5: R$ | C5: % | D5: R$ | E5: % | H5: R$ | I5: % | J5: R$ | K5: %
B6: =SUM(B7:B14) -> 271080177.9 | C6: =B6/B$6 -> 1 | D6: =SUM(D7:D14) -> 71358692.12 | E6: 1 | H6: =SUM(H7:H17) -> 143621764.8 | I6: =H6/H$6 -> 1 | J6: =SUM(J7:J17) -> 35310062.26 | K6: =J6/J$6 -> 1
A7: Estacionamentos | B7: 143621765 | C7: 0.5298128624 | D7: =J6 -> 35310062.26 | E7: 0.494824964 | G7: Serviços Preliminares | H7: 14140345.05 | I7: =H7/H$6 -> 0.09845544698 | J7: =ESTACIONAMENTOS!U6 -> 1350603.64 | K7: =J7/J$6 -> 0.03824982323
A8: Edificações | B8: 42759660 | C8: 0.157738055 | D8: =EDIFICAÇÕES!E6 -> 4258306 | E8: 0.05967466434 | G8: Terraplenagem | H8: 7330777.879 | I8: =H8/H$6 -> 0.05104224898 | J8: =ESTACIONAMENTOS!U9+ESTACIONAMENTOS!U13 -> 904806.0599 | K8: =J8/J$6 -> 0.02562459542
A9: Equipamentos | B9: 42791504.26 | C9: 0.1578555267 | D9: =EQUIPAMENTOS!F18 -> 7297991.7 | E9: 0.1022719375 | G9: Pavimentação | H9: 18112555 | I9: =H9/H$6 -> 0.1261128842 | J9: =ESTACIONAMENTOS!U20++ESTACIONAMENTOS!U29 -> 8807558.221 | K9: =J9/J$6 -> 0.2494347972
A10: CCO | B10: 1384432 | C10: 0.005107094184 | D10: =CCO!F10 -> 1384432 | E10: 0.01940102823 | G10: Calçadas / Meio Fio / Piso Podotátil / Mob. Urbano | H10: 3140205.7 | I10: =H10/H$6 -> 0.02186441382 | J10: =ESTACIONAMENTOS!U33+ESTACIONAMENTOS!U38+ESTACIONAMENTOS!U41+ESTACIONAMENTOS!U45 -> 14714610.3 | K10: =J10/J$6 -> 0.4167256968
A11: Sistemas | B11: 12919350 | C11: 0.04765877793 | D11: =SISTEMAS!F7 -> 12520000 | E11: 0.1754516461 | G11: Limpeza da Obra | H11: 0 | I11: =H11/H$6 -> 0 | J11: =ESTACIONAMENTOS!U50 -> 256244.2615 | K11: =J11/J$6 -> 0.007256975634
A12: Veículos | B12: 4656000 | C12: 0.01717573021 | D12: =VEíCULOS!F11 -> 4656000 | E12: 0.06524783262 | G12: Sinalização Horizontal e Vertical | H12: 12349571 | I12: =H12/H$6 -> 0.08598676542 | J12: =ESTACIONAMENTOS!U52 -> 6064141.106 | K12: =J12/J$6 -> 0.1717397455
A13: Comunicação | B13: 22233251.63 | C13: 0.08201725336 | D13: =COMUNICAÇÃO!F54 -> 5217685.16 | E13: 0.07311912543 | G13: Drenagem | H13: 1299197.83 | I13: =H13/H$6 -> 0.009045967592 | J13: =ESTACIONAMENTOS!U57 -> 932001.6515 | K13: =J13/J$6 -> 0.02639478924
A14: Uniformes | B14: 714215 | C14: 0.002634700204 | D14: =UNIFORMES!F10 -> 714215 | E14: 0.01000880171 | G14: Iluminação | H14: 2080884.98 | I14: =H14/H$6 -> 0.0144886465 | J14: =ESTACIONAMENTOS!U62 -> 2031568.382 | K14: =J14/J$6 -> 0.05753511186
G15: Paisagismo | H15: 356640.63 | I15: =H15/H$6 -> 0.00248319348 | J15: =ESTACIONAMENTOS!U67 -> 248528.6399 | K15: =J15/J$6 -> 0.007038465072
G16: Instalações Hidrossanitárias / Esgoto / Irrigação | H16: 1787585.39 | I16: =H16/H$6 -> 0.01244647977 | J16: =ESTACIONAMENTOS!U73 -> 0 | K16: =J16/J$6 -> 0
G17: Fechamentos | H17: 83024001.35 | I17: =H17/H$6 -> 0.5780739532 | J17: 0 | K17: =J17/J$6 -> 0
A20: CRONOGRAMA CAPEX
A23: ITEM | B23: ANO 1 | F23: ANO 2 | H23: ANO 3 - ANO 20
A24: Estacionamentos | B24: Ipês Branco, Roxo e Rosa (33% das vagas) | F24: Ipê Amarelo | H24: Manutenção 5% ao ano (anos 5 - 20)
A25: Edificações | B25: Edificações previstas nos Ipês Branco,Roxo e Rosa | F25: Edificações previstas no Ipê Amarelo / Boulevards | H25: Manutenção 5% ao ano (anos 5 - 20)
A26: Equipamentos * | B26: 33% do total | F26: 67% do total | H26: Reinv. c/5 anos s/ valor res., exceto parquímetro
A27: CCO * | B27: 1 | F27: - | H27: Reinvestimento no 10º ano sem valor residual
A28: Sistemas * | B28: 1 | F28: - | H28: -
A29: Veículos * | B29: 1 | F29: - | H29: Reinvestimento c/5 anos com valor residual 50%
A30: Comunicação | B30: 1ª Etapa de Comunicação | F30: 2ª Etapa de Comunicação | H30: 3ª Etapa de Comunicação no ano 3
A31: Uniformes * | B31: 1 | F31: - | H31: Reinvestimento c/5 anos sem valor residual
A32: * Bens não reversíveis, não sendo necessário o reinvestimento no ano 20.
A35: DEPRECIAÇÃO ANUAL
A36: Estacionamentos | B36: =D7/20 -> 1765503.113
A37: Edificações | B37: =D8/20 -> 212915.3
A38: Equipamentos | B38: =D9/5 -> 1459598.34
A39: CCO | B39: =D10/10 -> 138443.2
A40: Sistemas | B40: =D11/20 -> 626000
A41: Veículos | B41: =D12/5*0.5 -> 465600
A42: Comunicação | B42: =D13/20 -> 260884.258
A43: Uniformes | B43: =D14/5 -> 142843

Sheet VAGAS CAPEX
B1: VAGAS | C1: PNE | D1: IDOSOS | E1: GESTANTES | F1: MOTOS | G1: CARGA/DESCARGA | H1: soma normal | I1: soma motos (x50%) | J1: vagas relativas- para calculo do CAPEX | K1: REVIT | L1: EXPAD | M1: NOVA | N1: BASE | O1: BASE+LAV
A2: IPÊ BRANCO
A3: METRÔ GUARÁ | B3: 520 | C3: 9 | D3: 25 | E3: 2 | F3: 50 | G3: 3 | H3: =B3+C3+D3+E3+G3 -> 559 | I3: =F3*0.5 -> 25 | J3: =SUM(H3:I3) -> 584 | K3: 248 | L3: =J3-K3 -> 336 | O3: 1
A4: METRÔ SHOPPING | B4: 500 | C4: 9 | D4: 25 | E4: 2 | F4: 100 | G4: 2 | H4: =B4+C4+D4+E4+G4 -> 538 | I4: 50 | J4: =SUM(H4:I4) -> 588 | K4: 353 | L4: =J4-K4 -> 235 | O4: 1
A5: METRÔ TAGUATINGA SUL | B5: 130 | C5: 2 | D5: 6 | E5: 1 | F5: 20 | G5: 1 | H5: 140 | I5: 10 | J5: 150 | K5: 58 | M5: =J5-K5 -> 92 | O5: 1
A6: METRÔ FURNAS | B6: 160 | C6: 3 | D6: 7 | E6: 1 | F6: 60 | G6: 1 | H6: 172 | I6: 30 | J6: 202 | K6: 202 | O6: 1
A7: METRÔ SAMAMBAIS | B7: 950 | C7: 15 | D7: 45 | E7: 2 | F7: 300 | G7: 2 | H7: 1014 | I7: 150 | J7: 1164 | K7: 490 | L7: =J7-K7 -> 674 | O7: 1
A8: METRÔ SAMAMBAIA SUL | B8: 420 | C8: 6 | D8: 20 | E8: 2 | F8: 100 | G8: 2 | H8: 450 | I8: 50 | J8: 500 | K8: 262 | L8: =J8-K8 -> 238 | O8: 1
A9: METRO CENTRO ADM | B9: 150 | C9: 5 | D9: 15 | E9: 2 | F9: 40 | G9: 1 | H9: 173 | I9: 20 | J9: 193 | K9: 116 | L9: =J9-K9 -> 77 | O9: 1
A10: METRÔ FEIRA | B10: 290 | C10: 5 | D10: 14 | E10: 2 | F10: 50 | G10: 2 | H10: 313 | I10: 25 | J10: 338 | K10: 338 | O10: 1
A11: METRÔ TERM. CEILÂNDIA | B11: 115 | C11: 2 | D11: 5 | E11: 1 | F11: 20 | G11: 1 | H11: 124 | I11: 10 | J11: 134 | K11: 134 | O11: 1
A12: METRÔ CEILÂNDIA NORTE | B12: 500 | C12: 8 | D12: 26 | E12: 2 | F12: 80 | G12: 1 | H12: 537 | I12: 40 | J12: 577 | K12: 577 | O12: 1
A13: METRÔ CEILÂNDIA CENTRO | B13: 315 | C13: 5 | D13: 15 | E13: 2 | F13: 40 | G13: 1 | H13: 338 | I13: 20 | J13: 358 | M13: 358 | O13: 1
A14: METRÔ GUARIROBA | B14: 160 | C14: 3 | D14: 7 | E14: 2 | F14: 30 | G14: 1 | H14: 173 | I14: 15 | J14: 188 | K14: 188 | O14: 1
A15: METRÔ CEILÂNDIA SUL | B15: 190 | C15: 3 | D15: 10 | E15: 1 | F15: 30 | G15: 1 | H15: 205 | I15: 15 | J15: 220 | K15: 220 | O15: 1
A16: SANTA MARIA BRT | B16: 600 | C16: 7 | D16: 25 | E16: 2 | F16: 150 | G16: 2 | H16: 636 | I16: 75 | J16: 711 | K16: 474 | M16: =J16-K16 -> 237 | O16: 1
A17: BRT GAMA | B17: 450 | C17: 7 | D17: 23 | E17: 3 | F17: 60 | G17: 2 | H17: 485 | I17: 30 | J17: 515 | K17: 172 | M17: =J17-K17 -> 343 | O17: 1
A18: METRÔ ESTRADA PARQUE | B18: 400 | C18: 8 | D18: 20 | E18: 4 | F18: 100 | G18: 2 | H18: 434 | I18: 50 | J18: 484 | M18: 484 | O18: 1
A19: SOMA | B19: =SUM(B3:B18) -> 5850 | C19: =SUM(C3:C18) -> 97 | D19: 288 | E19: 31 | F19: 1230 | G19: 25 | K19: =SUM(K3:K18) -> 3832 | L19: =SUM(L3:L18) -> 1560 | M19: 1514 | N19: 0 | O19: 16
A21: IPÊ AMARELO
A22: SUDOESTE | B22: 8500 | C22: 80 | D22: 200 | E22: 15 | F22: 300 | G22: 80 | H22: =B22+C22+D22+E22+G22 -> 8875 | I22: =F22*0.5 -> 150 | J22: =SUM(H22:I22) -> 9025 | K22: =SUM(H22:I22) -> 9025 | N22: 7
A23: SIG | B23: 1600 | C23: 32 | D23: 80 | E23: 10 | F23: 200 | G23: 30 | H23: =B23+C23+D23+E23+G23 -> 1752 | I23: =F23*0.5 -> 100 | J23: =SUM(H23:I23) -> 1852 | K23: =SUM(H23:I23) -> 1852 | N23: 2
A24: W3NORTE | B24: 4600 | C24: 60 | D24: 200 | E24: 10 | F24: 500 | G24: 20 | H24: 4890 | I24: =F24*0.5 -> 250 | J24: 5140 | K24: =SUM(H24:I24) -> 5140 | N24: 10
A25: OUTROS | B25: 53680 | C25: 910 | D25: 2292 | E25: 186 | F25: 3135 | G25: 843 | H25: 57911 | I25: =F25*0.5 -> 1567.5 | J25: 59478.5 | K25: =SUM(H25:I25) -> 59478.5 | N25: 38
A26: SOMA | B26: =SUM(B22:B25) -> 68380 | C26: 1082 | D26: 2772 | E26: 221 | F26: 4135 | G26: 973 | K26: =SUM(K22:K25) -> 75495.5 | L26: =SUM(L22:L25) -> 0 | M26: 0 | N26: =SUM(N22:N25) -> 57 | O26: =SUM(O22:O25) -> 0
A27: IPÊ ROXO | B27: 68380
B28: 11025 | C28: 179 | D28: 564 | E28: 83 | F28: 1645 | G28: 120 | H28: =B28+C28+D28+E28+G28 -> 11971 | I28: =F28*0.5 -> 822.5 | J28: =SUM(H28:I28) -> 12793.5 | K28: =SUM(H28:I28) -> 12793.5 | N28: 1 | O28: 27
A29: SOMA | B29: =SUM(B28) -> 11025 | C29: =SUM(C28) -> 179 | D29: 564 | E29: 83 | F29: 1645 | G29: 120 | K29: =SUM(K28) -> 12793.5 | L29: 0 | M29: 0 | N29: =SUM(N28) -> 1 | O29: =SUM(O28) -> 27
A30: IPÊ ROSA
A31: EIXO MONUM. E BURITI | B31: 970 | C31: 20 | D31: 50 | E31: 10 | F31: 150 | G31: 4 | H31: =B31+C31+D31+E31+G31 -> 1054 | I31: =F31*0.5 -> 75 | J31: =SUM(H31:I31) -> 1129 | K31: =SUM(H31:I31) -> 1129 | O31: 2
A32: REGIÃO DOS MINISTÉRIOS (N1, N2, ESPLANADA E EIXO) | B32: 6000 | C32: 90 | D32: 300 | E32: 20 | F32: 600 | G32: 20 | H32: =B32+C32+D32+E32+G32 -> 6430 | I32: =F32*0.5 -> 300 | J32: 6730 | K32: =SUM(H32:I32) -> 6730 | O32: 7
A33: OUTROS | B33: 7229 | C33: =13+9+45+13+15+20+6 -> 121 | D33: =45+30+150+45+47+70+7 -> 394 | E33: =5+5+10+5+7+10+6 -> 48 | F33: =100+70+300+100+90+150+80 -> 890 | G33: =6+2+10+15+7+10+4 -> 54 | H33: 7846 | I33: =F33*0.5 -> 445 | J33: 8291 | K33: =SUM(H33:I33) -> 8291 | O33: 20
A34: SOMA | B34: =SUM(B31:B33) -> 14199 | C34: =SUM(C31:C33) -> 231 | D34: 744 | E34: 78 | F34: 1640 | G34: 78 | K34: =SUM(K31:K33) -> 16150 | L34: 0 | M34: 0 | N34: 0 | O34: 29
B35: =B34+B29+B26+B19 -> 99454 | C35: =C34+C29+C26+C19 -> 1589 | D35: 4368 | E35: 413 | F35: 8650 | G35: 1196 | K35: =K34+K29+K26+K19 -> 108271 | L35: 1560 | M35: 1514 | N35: 58 | O35: 72
B37: Total | C37: =C35/($B35-$F35-$G35) -> 0.01773279172 | D37: =D35/($B35-$F35-$G35) -> 0.04874564771 | E37: 0.004608963485
B40: Branco | C40: =C19/($B19-$F19-$G19) -> 0.02110990207 | D40: =D19/($B19-$F19-$G19) -> 0.06267682263 | E40: 0.006746463547
B42: Amarelo | C42: =C26/($B26-$F26-$G26) -> 0.01710077127 | D42: =D26/($B26-$F26-$G26) -> 0.0438108484 | E42: 0.00349285624
B44: Roxo | C44: =C29/($B29-$F29-$G29) -> 0.01933045356 | D44: =D29/($B29-$F29-$G29) -> 0.06090712743 | E44: 0.008963282937
B46: Rosa | C46: =C34/($B34-$F34-$G34) -> 0.01850813236 | D46: =D34/($B34-$F34-$G34) -> 0.05961060812 | E46: 0.006249499239

Sheet ESTACIONAMENTOS
A1: ESTACIONAMENTOS | L1: IPÊ AMARELO
H2: IPÊ BRANCO | J2: IPÊ BRANCO | L2: IPÊ ROXO | O2: CUSTO PARCIAL POR ITEM
L3: IPÊ ROSA
A4: ITEM | B4: FONTE | C4: CÓDIGO | D4: DESCRIÇÃO | E4: PREMISSAS | F4: UN. | G4: CUSTO UNIT. | H4: NOVOS (EXPANSÃO) | J4: NOVOS (REVITALIZAÇÃO) | L4: EXISTENTES | O4: NOVOS (EXP.) | Q4: NOVOS (REV.) | S4: EXISTENTES | U4: TOTAL | W4: % PARCIAL
H5: QUANT. | I5: CUSTO REF. (R$) | J5: QUANT. | K5: CUSTO REF. (R$) | L5: QUANT. | M5: CUSTO REF. (R$)
A6: 1 | B6: SERVIÇOS PRELIMINARES | I6: =SUM(I7:I8) -> 24055.56013 | K6: =SUM(K7:K8) -> 3828.612673 | M6: =SUM(M7:M8) -> 769.7602324 | O6: =I6*I$77/148*(1+$H$80) -> 590924.802 | Q6: =K6*K$77/148*(1+$H$80) -> 117241.0811 | S6: =M6*M$77/148*(1+$H$80) -> 642437.7566 | U6: =(I6*I$77+K6*K$77+M6*M$77)*(1+$H$80)/148 -> 1350603.64 | W6: =U6/$H$79 -> 0.04696750703
A7: 1.1 | B7: HÉLIO PRATES1 | C7: - | D7: INSTALAÇÃO DA OBRA / MOBILIZAÇÃO E DESMOBILIZAÇÃO | E7: 0.022 | F7: - | G7: - | H7: - | I7: =0.022*(I9+I29+I33+I38+I41+I45+I50+I52+I57+I62+I67+I73) -> 12600.5315 | J7: - | K7: =0.022*(K9+K29+K33+K38+K41+K45+K50+K52+K57+K62+K67+K73) -> 2005.463781 | L7: - | M7: =0.022*(M9+M29+M33+M38+M41+M45+M50+M52+M57+M62+M67+M73) -> 403.2077408
A8: 1.2 | B8: PMI VLT W32 | C8: - | D8: PROJETOS LICENCIAMENTO TAXAS | E8: 0.02 | F8: - | G8: - | H8: - | I8: =$E$8*(I9+I29+I33+I38+I41+I45+I50+I52+I57+I62+I67+I73) -> 11455.02863 | J8: - | K8: =$E$8*(K9+K29+K33+K38+K41+K45+K50+K52+K57+K62+K67+K73) -> 1823.148892 | L8: - | M8: =$E$8*(M9+M29+M33+M38+M41+M45+M50+M52+M57+M62+M67+M73) -> 366.5524916
A9: 2 | B9: TERRAPLENAGEM | I9: =SUM(I10:I12) -> 16395.96 | O9: =I9*I$77/148*(1+$H$80) -> 402766.7352 | U9: =(I9*I$77+K9*K$77+M9*M$77)*(1+$H$80)/148 -> 402766.7352 | W9: =U9/$H$79 -> 0.01400629238
A10: 2.1 | B10: SINAPI | C10: 98524 | D10: LIMPEZA MANUAL DE VEGETAÇÃO EM TERRENO COM ENXADA.AF_05/2018 | E10: 0 | F10: M2 | G10: 2.84 | H10: 0 | I10: =$G10*H10 -> 0
A11: 2.2 | B11: SINAPI | C11: 100983 | D11: CARGA, MANOBRA E DESCARGA DE ENTULHO EM CAMINHÃO BASCULANTE 14 M³ - CARGA COM ESCAVADEIRA HIDRÁULICA (CAÇAMBA DE 0,80 M³ / 111 HP) E DESCARGA LIVRE (UNIDADE:M3). AF_07/2020 | E11: h = 1 metro | F11: M3 | G11: 5.91 | H11: 596 | I11: =$G11*H11 -> 3522.36
A12: 2.3 | B12: SINAPI | C12: 95876 | D12: TRANSPORTE COM CAMINHÃO BASCULANTE DE 14 M³, EM VIA URBANA PAVIMENTADA, DMT ATÉ 30 KM (UNIDADE: M3XKM). AF_07/2020 | E12: DMT = 15 km | F12: M3xKM | G12: 1.44 | H12: =15*H11 -> 8940 | I12: 12873.6
A13: 3 | B13: DEMOLIÇÃO DE PAVIMENTAÇÃO ASFÁLTICA | K13: =SUM(K14:K19) -> 16394.5445 | Q13: =K13*K$77/148*(1+$H$80) -> 502039.3247 | U13: =(I13*I$77+K13*K$77+M13*M$77)*(1+$H$80)/148 -> 502039.3247 | W13: =U13/$H$79 -> 0.01745851619
A14: 3.1 | B14: SINAPI | C14: 97636 | D14: DEMOLIÇÃO PARCIAL DE PAVIMENTO ASFÁLTICO, DE FORMA MECANIZADA, SEM REAPROVEITAMENTO. AF_12/2017 | E14: 0.25 | F14: M2 | G14: 12.79 | J14: =E14*2980 -> 745 | K14: =$G14*J14 -> 9528.55
A15: 3.2 | B15: SINAPI | C15: 100983 | D15: CARGA, MANOBRA E DESCARGA DE ENTULHO EM CAMINHÃO BASCULANTE 14 M³ - CARGA COM ESCAVADEIRA HIDRÁULICA (CAÇAMBA DE 0,80 M³ / 111 HP) E DESCARGA LIVRE (UNIDADE: M3). AF_07/2020 | E15: 5 cm | F15: M3 | G15: 5.91 | J15: =J14*0.05 -> 37.25 | K15: =$G15*J15 -> 220.1475
A16: 3.3 | B16: SINAPI | C16: 95876 | D16: TRANSPORTE COM CAMINHÃO BASCULANTE DE 14 M³, EM VIA URBANA PAVIMENTADA, DMT ATÉ 30 KM (UNIDADE: M3XKM). AF_07/2020 | E16: DMT = 15 km | F16: M3xKM | G16: 1.44 | J16: =15*J15 -> 558.75 | K16: 804.6
A17: 3.4 | B17: SICRO-M | C17: 4915669 M | D17: REMOÇÃO MECANIZADA DE CAMADA GRANULAR | E17: 20 cm | F17: M3 | G17: 3.44 | J17: =J14*0.2 -> 149 | K17: 512.56
A18: 3.5 | B18: SINAPI | C18: 100983 | D18: CARGA, MANOBRA E DESCARGA DE ENTULHO EM CAMINHÃO BASCULANTE 14 M³ - CARGA COM ESCAVADEIRA HIDRÁULICA (CAÇAMBA DE 0,80 M³ / 111 HP) E DESCARGA LIVRE (UNIDADE: M3). AF_07/2020 | E18: x 1,3 | F18: M3 | G18: 5.91 | J18: =J17*1.3 -> 193.7 | K18: 1144.767
A19: 3.6 | B19: SINAPI | C19: 95876 | D19: TRANSPORTE COM CAMINHÃO BASCULANTE DE 14 M³, EM VIA URBANA PAVIMENTADA, DMT ATÉ 30 KM (UNIDADE: M3XKM). AF_07/2020 | E19: DMT = 15 km | F19: M3xKM | G19: 1.44 | J19: =15*J18 -> 2905.5 | K19: 4183.92
A20: 4 | B20: PAVIMENTO FLEXÍVEL (RESTAURAÇÃO) | K20: =SUM(K21:K28) -> 42458.86366 | S20: =M20*M$77/148*(1+$H$80) -> 0 | U20: =(I20*I$77+K20*K$77+M20*M$77)*(1+$H$80)/148 -> 1300189.782 | W20: =U20/$H$79 -> 0.04521435521
A21: 4.1 | B21: SICRO-M | C21: 4011480 M | D21: FRESAGEM DESCONTÍNUA DE REVESTIMENTO BETUMINOSO | E21: 20% ; 5 cm | F21: M3 | G21: 23 | J21: =0.25*0.05*2980 -> 37.25 | K21: =J21*G21 -> 856.75
A22: 4.2 | B22: SINAPI | C22: 95876 | D22: TRANSPORTE COM CAMINHÃO BASCULANTE DE 10 M³, EM VIA URBANA PAVIMENTADA, DMT ATÉ 30 KM (UNIDADE: TXKM). AF_07/2020 | E22: DMT = 15 km | F22: TxKM | G22: 1.07 | J22: =2.4*15*J21 -> 1341 | K22: =J22*G22 -> 1434.87
A23: 4.3 | B23: SINAPI-M | C23: 96402 | D23: EXECUÇÃO DE PINTURA DE LIGAÇÃO COM EMULSÃO ASFÁLTICA RR-2C. AF_11/2019 (EXCLUSIVE PRODUTO BETUMINOSO) | E23: 0.15 | F23: M2 | G23: 0.69 | J23: =0.15*2980 -> 447 | K23: 308.43
A24: 4.4 | B24: ANP | C24: RR2C | D24: EMULSÃO ASFÁLTICA CATIÔNICA RR2C | E24: 0,45 kg/m2 | F24: T | G24: 4384.74 | J24: =J23*0.45/1000 -> 0.20115 | K24: 881.990451
A25: 4.5 | B25: SINAPI | C25: 102330 | D25: TRANSPORTE COM CAMINHÃO TANQUE DE TRANSPORTE DE MATERIAL ASFÁLTICO DE 30000 L, EM VIA URBANA PAVIMENTADA, DMT ATÉ 30KM (UNIDADE: TXKM). AF_07/2020 | E25: DMT = 15 km | F25: TxKM | G25: 0.95 | J25: =15*J24 -> 3.01725 | K25: 2.8663875
A26: 4.6 | B26: SICRO-M | C26: 4011463 M | D26: CONCRETO ASFÁLTICO - FAIXA C - AREIA E BRITA COMERCIAIS (EXCLUSIVE MATERIAL BETUMINOSO) | E26: 2,4 T / m3 | F26: T | G26: 144.96 | J26: =2.4*J21 -> 89.4 | K26: 12959.424
A27: 4.7 | B27: ANP | C27: CAP 30/45 | D27: CIMENTO ASFÁLTICO DE PETRÓLEO - CAP 30/45 | F27: T | G27: 5018.8 | J27: =0.056*J26 -> 5.0064 | K27: 25126.12032
A28: 4.8 | B28: SINAPI | C28: 95875 | D28: TRANSPORTE COM CAMINHÃO BASCULANTE DE 10 M³, EM VIA URBANA PAVIMENTADA, DMT ATÉ 30 KM (UNIDADE: M3XKM). AF_07/2020 | E28: DMT = 15 km | F28: M3xKM | G28: 1.59 | J28: =15*J21 -> 558.75 | K28: 888.4125
A29: 5 | B29: PISO INTERTRAVADO | I29: =SUM(I30:I32) -> 305612.41 | J29: 0 | K29: =$I29*J29 -> 0 | O29: =I29*I$77/148*(1+$H$80) -> 7507368.439 | Q29: =K29*K$77/148*(1+$H$80) -> 0 | U29: =(I29*I$77+K29*K$77+M29*M$77)*(1+$H$80)/148 -> 7507368.439 | W29: =U29/$H$79 -> 0.261070213
A30: 5.1 | B30: SINAPI-C | C30: 100576 | D30: REGULARIZAÇÃO E COMPACTAÇÃO DE SUBLEITO DE SOLO PREDOMINANTEMENTE ARGILOSO. AF_11/2019 | F30: M2 | G30: 1.58 | H30: 2980 | I30: =G30*H30 -> 4708.4
A31: 5.2 | B31: SINAPI-C | C31: 96396 | D31: EXECUÇÃO E COMPACTAÇÃO DE BASE E OU SUB BASE PARA PAVIMENTAÇÃO DE BRITA GRADUADA SIMPLES - EXCLUSIVE CARGA E TRANSPORTE. AF_11/2019 | E31: 15 cm | F31: M3 | G31: 203.23 | H31: 447 | I31: =G31*H31 -> 90843.81
A32: 5.3 | B32: SINAPI-C | C32: 92399 | D32: EXECUÇÃO DE VIA EM PISO INTERTRAVADO, COM BLOCO RETANGULAR COR NATURAL DE 20 X 10 CM, ESPESSURA 8 CM. AF_12/2015 | F32: M2 | G32: 70.49 | H32: 2980 | I32: =G32*H32 -> 210060.2
A33: 6 | B33: CALÇADA | I33: =SUM(I34:I37) -> 67533.766 | J33: 0.25 | K33: =$I33*J33 -> 16883.4415 | L33: 0.05 | M33: =$I33*L33 -> 3376.6883 | O33: =I33*I$77/148*(1+$H$80) -> 1658966.871 | Q33: =K33*K$77/148*(1+$H$80) -> 517010.4951 | S33: =M33*M$77/148*(1+$H$80) -> 2818165.924 | U33: =(I33*I$77+K33*K$77+M33*M$77)*(1+$H$80)/148 -> 4994143.289 | W33: =U33/$H$79 -> 0.1736723145
A34: 6.1 | B34: SINAPI-C | C34: 100576 | D34: REGULARIZAÇÃO E COMPACTAÇÃO DE SUBLEITO DE SOLO PREDOMINANTEMENTE ARGILOSO. AF_11/2019 | F34: M2 | G34: 1.58 | H34: 892 | I34: =G34*H34 -> 1409.36
A35: 6.2 | B35: SINAPI-C | C35: 96622 | D35: LASTRO COM MATERIAL GRANULAR, APLICADO EM PISOS OU LAJES SOBRE SOLO, ESPESSURA DE *5 CM*. AF_08/2017 | E35: 5 cm | F35: M3 | G35: 176.01 | H35: 44.6 | I35: =G35*H35 -> 7850.046
A36: 6.3 | B36: SINAPI-C | C36: 96620 | D36: LASTRO DE CONCRETO MAGRO, APLICADO EM PISOS, LAJES SOBRE SOLO OU RADIERS. AF_08/2017 | E36: 8 cm | F36: M3 | G36: 513.91 | H36: 0 | I36: =G36*H36 -> 0
A37: 6.4 | B37: SINAPI-C | C37: 94990 | D37: EXECUÇÃO DE PASSEIO (CALÇADA) OU PISO DE CONCRETO COM CONCRETO MOLDADO IN LOCO, FEITO EM OBRA, ACABAMENTO CONVENCIONAL, NÃO ARMADO. AF_07/2016 | E37: 10 cm | F37: M3 | G37: 653.3 | H37: 89.2 | I37: =G37*H37 -> 58274.36
A38: 7 | B38: PISO PODOTÁTIL | I38: =SUM(I39:I40) -> 20004.7056 | J38: 1 | K38: =$I38*J38 -> 20004.7056 | L38: 0.05 | M38: =$I38*L38 -> 1000.23528 | O38: =I38*I$77/148*(1+$H$80) -> 491415.566 | Q38: =K38*K$77/148*(1+$H$80) -> 612590.9073 | S38: =M38*M$77/148*(1+$H$80) -> 834790.9938 | U38: =(I38*I$77+K38*K$77+M38*M$77)*(1+$H$80)/148 -> 1938797.467 | W38: =U38/$H$79 -> 0.06742206298
A39: 7.1 | B39: SCO-RJ-M RV | C39: RV 14.95.0050 | D39: PISO PODOTATIL DE CONCRETO - DIRECIONAL E ALERTA 40 X 40 - ALERTA | F39: M2 | G39: 101.94 | H39: =0.4*(42+42+96+86+86+86+4+4) -> 178.4 | I39: =G39*H39 -> 18186.096
A40: 7.2 | B40: SCO-RJ-M | C40: RV 14.95.0050 | D40: PISO PODOTATIL DE CONCRETO - DIRECIONAL E ALERTA 40 X 40 - DIRECIONAL | F40: M2 | G40: 101.94 | H40: =H39*0.1 -> 17.84 | I40: =G40*H40 -> 1818.6096
A41: 8 | B41: MEIO-FIO | I41: =SUM(I42:I44) -> 32429.22 | J41: 0.25 | K41: =$I41*J41 -> 8107.305 | L41: 0.05 | M41: =$I41*L41 -> 1621.461 | O41: =I41*I$77/148*(1+$H$80) -> 796623.7455 | Q41: =K41*K$77/148*(1+$H$80) -> 248264.6546 | S41: =M41*M$77/148*(1+$H$80) -> 1353262.644 | U41: =(I41*I$77+K41*K$77+M41*M$77)*(1+$H$80)/148 -> 2398151.044 | W41: =U41/$H$79 -> 0.0833961739
A42: 8.1 | B42: SINAPI-C | C42: 94273 | D42: ASSENTAMENTO DE GUIA (MEIO-FIO) EM TRECHO RETO, CONFECCIONADA EM CONCRETO PRÉ-FABRICADO, DIMENSÕES 100X15X13X30 CM (COMPRIMENTO X BASE INFERIOR X BASE SUPERIOR X ALTURA), PARA VIAS URBANAS (USO VIÁRIO). AF_06/2016 | F42: M | G42: 44.08 | H42: =40+96+40+2+86+2+86+8+86+8 -> 454 | I42: =G42*H42 -> 20012.32
A43: 8.2 | B43: SINAPI-C | C43: 83693 | D43: CAIACAO EM MEIO FIO | F43: M2 | G43: 4.2 | H43: =0.45*H42 -> 204.3 | I43: =G43*H43 -> 858.06
A44: 8.3 | B44: SINAPI-C | C44: 94263 | D44: GUIA (MEIO-FIO) CONCRETO, MOLDADA IN LOCO EM TRECHO RETO COM EXTRUSORA, 13 CM BASE X 22 CM ALTURA. AF_06/2016 | F44: M | G44: 25.46 | H44: =+H42 -> 454 | I44: =G44*H44 -> 11558.84
A45: 9 | B45: MOBILIÁRIO URBANO | I45: =SUM(I46:I49) -> 11394.06 | J45: 1 | K45: =$I45*J45 -> 11394.06 | L45: 0.5 | M45: =$I45*L45 -> 5697.03 | O45: =I45*I$77/148*(1+$H$80) -> 279895.0685 | Q45: =K45*K$77/148*(1+$H$80) -> 348912.7855 | S45: =M45*M$77/148*(1+$H$80) -> 4754710.647 | U45: =(I45*I$77+K45*K$77+M45*M$77)*(1+$H$80)/148 -> 5383518.501 | W45: =U45/$H$79 -> 0.187212914
A46: 9.1 | B46: NOVACAP-M | C46: 4808 M | D46: ASSENTAMENTO DE SINALIZADOR DE VAGA, BATE-RODA (40X16X8) CM EM CONCRETO CONF. DET E PROJETO | E46: 2 por vaga | F46: UN. | G46: 70.07 | H46: 0 | I46: =$G46*H46 -> 0
A47: 9.2 | B47: RODOVIÁRIA3 | C47: - | D47: PARACICLO TUBULAR EM AÇO GALVANIZADO CLASSE MÉDIA DN 50 MM | F47: UN. | G47: 302.46 | H47: 6 | I47: =$G47*H47 -> 1814.76
A48: 9.3 | B48: SINAPI - I | C48: 42440 | D48: LIXEIRA DUPLA, COM CAPACIDADE VOLUMETRICA DE 60L*, FABRICADA EM TUBO DE ACO CARBONO, CESTOS EM CHAPA DE ACO E PINTURA NO PROCESSO ELETROSTATICO - PARA ACADEMIA AO AR LIVRE / ACADEMIA DA TERCEIRA IDADE - ATI | F48: UN. | G48: 1057.95 | H48: 6 | I48: 6347.7
A49: 9.4 | B49: RODOVIÁRIA3 | C49: - | D49: BANCO EM CONCRETO FCK 25 MPA - PADRÃO SEDUH - NOVACAP - | F49: UN. | G49: 538.6 | H49: 6 | I49: 3231.6
A50: 10 | B50: LIMPEZA DE OBRA | I50: =I51 -> 6426 | J50: 0.5 | K50: =$I50*J50 -> 3213 | L50: 0 | M50: =$I50*L50 -> 0 | O50: =I50*I$77/148*(1+$H$80) -> 157854.6813 | Q50: =K50*K$77/148*(1+$H$80) -> 98389.58016 | S50: =M50*M$77/148*(1+$H$80) -> 0 | U50: =(I50*I$77+K50*K$77+M50*M$77)*(1+$H$80)/148 -> 256244.2615 | W50: =U50/$H$79 -> 0.008910944556
A51: 10.1 | B51: SINAPI-C | C51: 99814 | D51: LIMPEZA DE SUPERFÍCIE COM JATO DE ALTA PRESSÃO. AF_04/2019 | F51: M2 | G51: 1.53 | H51: 4200 | I51: =$G51*H51 -> 6426
A52: 11 | B52: SINALIZAÇÃO HORIZONTAL E VERTICAL | I52: =SUM(I53:I56) -> 13264.42 | J52: 0.5 | K52: =$I52*J52 -> 6632.21 | L52: 0.5 | M52: =$I52*L52 -> 6632.21 | O52: =I52*I$77/148*(1+$H$80) -> 325840.4594 | Q52: =K52*K$77/148*(1+$H$80) -> 203093.7932 | S52: =M52*M$77/148*(1+$H$80) -> 5535206.854 | U52: =(I52*I$77+K52*K$77+M52*M$77)*(1+$H$80)/148 -> 6064141.106 | W52: =U52/$H$79 -> 0.2108816988
A53: 11.1 | B53: SINAPI-C | C53: 79467 | D53: PINTURA COM TINTA A BASE DE BORRACHA CLORADA , DE FAIXAS DE DEMARCACAO, EM QUADRA POLIESPORTIVA, 5 CM DE LARGURA. | F53: M | G53: 13.09 | H53: =(148-1)*5 -> 735 | I53: =$G53*H53 -> 9621.15
A54: 11.2 | B54: SICRO-M | C54: 5213409 | D54: PINTURA DE SETAS E ZEBRADOS - TERMOPLÁSTICO POR EXTRUSÃO | F54: M2 | G54: 61.2 | H54: =1.5*8 -> 12 | I54: =$G54*H54 -> 734.4
A55: 11.3 | B55: PMSP-M | C55: 17.03.59 | D55: PICTOGRAMA VAGA EXCLUSIVA PNE/IDOSO E MOTO | F55: UN. | G55: 206.65 | H55: 11 | I55: 2273.15
A56: 11.4 | B56: SICRO-M | C56: 5213570 | D56: FORNECIMENTO E IMPLANTAÇÃO DE PLACA EM AÇO - PELÍCULA I + I | F56: M2 | G56: 317.86 | H56: 2 | I56: 635.72
A57: 12 | B57: DRENAGEM | I57: =SUM(I58:I61) -> 28925.66 | J57: 0.25 | K57: =$I57*J57 -> 7231.415 | L57: 0 | M57: =$I57*L57 -> 0 | O57: =I57*I$77/148*(1+$H$80) -> 710558.7988 | Q57: =K57*K$77/148*(1+$H$80) -> 221442.8527 | S57: =M57*M$77/148*(1+$H$80) -> 0 | U57: =(I57*I$77+K57*K$77+M57*M$77)*(1+$H$80)/148 -> 932001.6515 | W57: =U57/$H$79 -> 0.03241054061
A58: 12.1 | B58: SINAPI-C | C58: 94281 | D58: EXECUÇÃO DE SARJETA DE CONCRETO USINADO, MOLDADA IN LOCO EM TRECHO RETO, 30 CM BASE X 15 CM ALTURA. AF_06/2016 | F58: M | G58: 41 | H58: 454 | I58: =$G58*H58 -> 18614
A59: 12.2 | B59: SINAPI-C | C59: 90082 | D59: ESCAVAÇÃO MECANIZADA DE VALA COM PROF. ATÉ 1,5 M (MÉDIA ENTRE MONTANTE E JUSANTE/UMA COMPOSIÇÃO POR TRECHO), COM ESCAVADEIRA HIDRÁULICA (0,8 M3), LARG. DE 1,5 M A 2,5 M, EM SOLO DE 1A CATEGORIA, EM LOCAIS COM ALTO NÍVEL DE INTERFERÊNCIA. AF_02/2021 | F59: M3 | G59: 7.39 | H59: 10 | I59: =$G59*H59 -> 73.9
A60: 12.3 | B60: SINAPI-C | C60: 100576 | D60: REGULARIZAÇÃO E COMPACTAÇÃO DE SUBLEITO DE SOLO PREDOMINANTEMENTE ARGILOSO. AF_11/2019 | F60: M2 | G60: 1.58 | H60: =H58 -> 454 | I60: 717.32
A61: 12.4 | B61: SINAPI-C | C61: 97951 | D61: CAIXA PARA BOCA DE LOBO COMBINADA COM GRELHA RETANGULAR, EM ALVENARIA COM TIJOLOS CERÂMICOS MACIÇOS, DIMENSÕES INTERNAS: 1,3X1X1,2 M. AF_12/2020 | F61: UN. | G61: 2380.11 | H61: 4 | I61: 9520.44
A62: 13 | B62: ILUMINAÇÃO | I62: =SUM(I63:I66) -> 63051.88 | J62: 0.25 | K62: =$I62*J62 -> 15762.97 | L62: 0 | M62: =$I62*L62 -> 0 | O62: =I62*I$77/148*(1+$H$80) -> 1548869.347 | Q62: =K62*K$77/148*(1+$H$80) -> 482699.0353 | S62: =M62*M$77/148*(1+$H$80) -> 0 | U62: =(I62*I$77+K62*K$77+M62*M$77)*(1+$H$80)/148 -> 2031568.382 | W62: =U62/$H$79 -> 0.07064818979
A63: 13.1 | B63: SINAPI-C | C63: 100622 | D63: POSTE DE AÇO CONICO CONTÍNUO CURVO SIMPLES, ENGASTADO, H=9M, INCLUSIVE LUMINÁRIA, SEM LÂMPADA - FORNECIMENTO E INSTALACAO. AF_11/2019 | F63: UN. | G63: 2334.05 | H63: 24 | I63: =$G63*H63 -> 56017.2
A64: 13.2 | B64: SINAPI-I | C64: 1020 | D64: CABO DE COBRE, FLEXIVEL, CLASSE 4 OU 5, ISOLACAO EM PVC/A, ANTICHAMA BWF-B, COBERTURA PVC-ST1, ANTICHAMA BWF-B, 1 CONDUTOR, 0,6/1 KV, SECAO NOMINAL 10 MM2 | F64: M | G64: 10.09 | H64: =400*1.3 -> 520 | I64: =$G64*H64 -> 5246.8
A65: 13.3 | B65: SINAPI-C | C65: 101641 | D65: LÂMPADA VAPOR METÁLICO 150 W - FORNECIMENTO E INSTALAÇÃO. AF_08/2020 | F65: UN. | G65: 47.16 | H65: 24 | I65: 1131.84
A66: 13.4 | B66: SINAPI-C | C66: 101517 | D66: ENTRADA DE ENERGIA ELÉTRICA, SUBTERRÂNEA, MONOFÁSICA, COM CAIXA DE EMBUTIR, CABO DE 10 MM2 E DISJUNTOR DIN 50A (NÃO INCLUSA MURETA DE ALVENARIA). AF_07/2020_P | F66: UN. | G66: 656.04 | H66: 1 | I66: 656.04
A67: 14 | B67: PAISAGISMO | I67: =SUM(I68:I72) -> 7713.35 | J67: 0.25 | K67: =$I67*J67 -> 1928.3375 | L67: 0 | M67: =$I67*L67 -> 0 | O67: =I67*I$77/148*(1+$H$80) -> 189478.4323 | Q67: =K67*K$77/148*(1+$H$80) -> 59050.2076 | S67: =M67*M$77/148*(1+$H$80) -> 0 | U67: =(I67*I$77+K67*K$77+M67*M$77)*(1+$H$80)/148 -> 248528.6399 | W67: =U67/$H$79 -> 0.0086426323
A68: 14.1 | B68: SICRO-M | C68: 4413946 | D68: PLANTIO DE ARVORES ORNAMENTAIS COM PORTE DE 200 A 300 CM EM COVAS DE 60 X 60 X 60 CMlantio de árvores ornamentais com porte de 200 a 300 cm em covas de 60 x 60 x 60 cm | F68: UN. | G68: 69.11 | H68: 9 | I68: =$G68*H68 -> 621.99
A69: 14.2 | B69: SINAPI-C | C69: 101616 | D69: PREPARO DE FUNDO DE VALA COM LARGURA MENOR QUE 1,5 M (ACERTO DO SOLO NATURAL). AF_08/2020 | F69: M2 | G69: 5.14 | H69: =4*82 -> 328 | I69: =$G69*H69 -> 1685.92
A70: 14.3 | B70: SINAPI-C | C70: 100973 | D70: CARGA, MANOBRA E DESCARGA DE SOLOS E MATERIAIS GRANULARES EM CAMINHÃO BASCULANTE 6 M³ - CARGA COM PÁ CARREGADEIRA (CAÇAMBA DE 1,7 A 2,8 M³ / 128 HP) E DESCARGA LIVRE (UNIDADE: M3). AF_07/2020 | F70: M3 | G70: 5.85 | H70: =0.15*H69 -> 49.2 | I70: 287.82
A71: 14.4 | B71: SINAPI-C | C71: 97914 | D71: TRANSPORTE COM CAMINHÃO BASCULANTE DE 6 M³, EM VIA URBANA PAVIMENTADA, DMT ATÉ 30 KM (UNIDADE: M3XKM). AF_07/2020 | E71: DMT = 15 km | F71: M3XKM | G71: 1.93 | H71: =15*H70 -> 738 | I71: 1424.34
A72: 14.5 | B72: SINAPI-C | C72: 98504 | D72: PLANTIO DE GRAMA EM PLACAS. AF_05/2018 | F72: M2 | G72: 11.26 | H72: =H69 -> 328 | I72: 3693.28
A73: 15 | B73: INTALAÇÕES HIDROSSANITÁRIAS / ESGOTO SANITÁRIO / IRRIGAÇÃO | I73: =I74 -> 0 | J73: 0.25 | K73: =$I73*J73 -> 0 | L73: 0 | M73: =$I73*L73 -> 0 | O73: =I73*I$77/148*(1+$H$80) -> 0 | Q73: =K73*K$77/148*(1+$H$80) -> 0 | S73: =M73*M$77/148*(1+$H$80) -> 0 | U73: =(I73*I$77+K73*K$77+M73*M$77)*(1+$H$80)/148 -> 0 | W73: =U73/$H$79 -> 0
A74: 15.1 | B74: RIZZO4 | C74: - | D74: INTALAÇÕES HIDROSSANITÁRIAS / ESGOTO SANITÁRIO / IRRIGAÇÃO | F74: - | G74: - | H74: - | I74: 0
A75: TOTAL PROJETO REFERENCIAL (R$) | I75: =I6+I9+I29+I33+I38+I41+I45+I50+I52+I57+I62+I67+I73 -> 596806.9917 | K75: =K6+K13+K29+K33+K38+K41+K45+K50+K52+K57+K62+K67+K73 -> 111380.6018 | M75: =M6+M20+M33+M38+M41+M45+M50+M52+M57+M62+M67+M73 -> 19097.38481
A76: CUSTO REFERENCIAL POR VAGA (R$ / VAGA) | I76: =I75/148 -> 4032.479674 | K76: =K75/148 -> 752.5716336 | M76: =M75/148 -> 129.0363839
A77: NÚMERO DE VAGAS5 | I77: ='[2]VAGAS CAPEX'!L19+'[2]VAGAS CAPEX'!M19 -> 3074 | K77: ='[2]VAGAS CAPEX'!K19 -> 3832 | M77: ='[2]VAGAS CAPEX'!K26+'[2]VAGAS CAPEX'!K29+'[2]VAGAS CAPEX'!K34 -> 104439
A78: CUSTO PARCIAL SEM BDI (R$) | I78: =I76*I77 -> 12395842.52 | K78: =K76*K77 -> 2883854.5 | M78: =M76*M77 -> 13476430.89
A79: CUSTO TOTAL SEM BDI(R$) | H79: =I78+K78+M78 -> 28756127.91
A80: BDI (%)6 | H80: 0.1827
A81: CUSTO TOTAL (R$) | H81: =H79*(1+H80) -> 34009872.48 | O81: =O6+O9+O13+O20+O29+O33+O38+O41+O45+O50+O52+O57+O62+O67+O73 -> 14660562.95 | Q81: =Q6+Q9+Q13+Q20+Q29+Q33+Q38+Q41+Q45+Q50+Q52+Q57+Q62+Q67+Q73 -> 3410734.717 | S81: =S6+S9+S13+S20+S29+S33+S38+S41+S45+S50+S52+S57+S62+S67+S73 -> 15938574.82 | U81: =U6+U9+U13+U20+U29+U33+U38+U41+U45+U50+U52+U57+U62+U67+U73 -> 35310062.26
A83: REFERÊNCIAS DE FONTES E PREMISSAS:
A84: (1) - PROJETO SISTEMA VIÁRIO DE REQUALIFICAÇÃO-SIV-011/2020 - AV. HÉLIO PRATES - ETAPA 01 (EDITAL PUBLICADO PELA SECRETARIA DE ESTADO DE OBRAS E INFRAESTRUTURA DO DISTRITO FEDERAL)
A85: (2) - PROJETO VLT NA AVENIDA W3 - EM ANÁLISE PELO TRIBUNAL DE CONTAS DO DISTRITO FEDERAL (PROCESSO 00600.00008644/2020-20-e)
A86: (3) - PROJETO DE CONCESSÃO DA RODOVIÁRIA DO PLANO PILOTO - EM ANÁLISE PELO TRIBUNAL DE CONTAS DO DISTRITO FEDERAL (PROCESSO 00600.00002307/2021-18-e)
A87: (4) - PLANILHA APRESENTADA PELO GRUPO RIZZO, QUE TEVE OS ESTUDOS SELECIONADOS NO ÂMBITO DA PMI DO PROJETO ZONA VERDE
A88: (5) - PARA EFEITO DO CAPEX AS VAGAS DE MOTO FORAM CONSIDERADAS COM METADA DO CUSTO DAS VAGAS DE AUTOMÓVEL
A89: (6) - BDI UTILIZADO EM OBRAS SIMILARES PELA SECRETARIA DE OBRAS E INFRAESTRUTURA DO DISTRITO FEDERAL:
A90: (11,1% PARA FORNECIMENTO DE MATERIAS BETUMINSOS E OUTROS INSUMOS E 20,34% PARA OBRAS E SERVIÇOS DE ENGENHARIA) - MÉDIA PONDERADA
A92: PROJETO REFERENCIAL: | J92: DETALHE VAGAS:
M99: 148 VAGAS
M101: ÁREA TOTAL PAV.
M102: 2.980 m2

Sheet EDIFICAÇÕES
A1: EDIFICAÇÕES
A2: PES | B2: UNIDADE | C2: C. UNIT (R$) | D2: QUANT. | E2: CUSTO (R$)
A3: BOULEVARD ALTO PADRÃO (500 M2) | B3: M2 | C3: 0 | D3: =5*500 -> 2500 | E3: =C3*D3 -> 0
A4: ESPAÇO PARA ADMINISTRAÇÃO (20 M2) | B4: M2 | C4: 1637.81 | D4: 2600 | E4: =C4*D4 -> 4258306
A5: ESPAÇO LAVADOR (70 M2) | B5: M2 | C5: 0 | D5: 0 | E5: 0
D6: TOTAL | E6: =SUM(E3:E5) -> 4258306
A8: REFERÊNCIAS
A9: CUSTO UNITÁRIO (1637,81 R$/m2) - Custo unitário básico da construção civil (centro-oeste, abril/2021)
A10: 5 BOULEVARD DE ALTO PADRÃO
A11: O CÁLCULO DA QUANTIDADE DE ESPAÇOS PARA ADMINISTRAÇÃO E ESPAÇOS LAVADOR CONSIDERA OS QUANTITATIVOS DETALHADOS NA ABA "VAGAS CAPEX"

Sheet EQUIPAMENTOS
A1: EQUIPAMENTOS
A2: FONTE (S) | B2: ITEM | C2: UNIDADE | D2: C. UNIT. (R$) | E2: QUANT. | F2: CUSTO (R$)
A3: DIGICON / RIZZO | B3: Parquimetro | C3: UN. | D3: 30010 | E3: =1141*(1-F21) -> 0 | F3: =D3*E3 -> 0
A4: RIZZO | B4: Bobinas | C4: UN. | D4: 1.37 | E4: 560000 | F4: =D4*E4 -> 767200
A5: RIZZO | B5: Totens de Auto Atendimento | C5: UN. | D5: 18306.09 | E5: 130 | F5: 2379791.7
A6: RIZZO | B6: Identificação Ponto de Venda | C6: UN. | D6: 6 | E6: 2500 | F6: 15000
A7: RIZZO | B7: Celular | C7: UN. | D7: 700 | E7: 1100 | F7: 770000
A8: RIZZO | B8: Impressora | C8: UN. | D8: 650 | E8: 2500 | F8: 1625000
A9: RIZZO | B9: Máquina de Cartão | C9: UN. | D9: 300 | E9: 2500 | F9: 750000
A10: RIZZO | B10: PABX Completo | C10: UN. | D10: 25000 | E10: 1 | F10: 25000
A11: RIZZO | B11: Telefone | C11: UN. | D11: 100 | E11: 160 | F11: 16000
A12: RIZZO | B12: Computador | C12: UN. | D12: 2500 | E12: 50 | F12: 125000
A13: RIZZO | B13: Computador Ponto de Atendimento | C13: UN. | D13: 1900 | E13: 130 | F13: 247000
A14: RIZZO | B14: Impressora | C14: UN. | D14: 1000 | E14: 130 | F14: 130000
A15: RIZZO | B15: Cadeira de Escritorio | C15: UN. | D15: 100 | E15: 280 | F15: 28000
A16: RIZZO | B16: Mesa de Escritorio | C16: UN. | D16: 500 | E16: 140 | F16: 70000
A17: RIZZO | B17: Infraestrura e adequação dos escritórios | C17: UN. | D17: 350000 | E17: 1 | F17: 350000
E18: TOTAL | F18: =SUM(F3:F17) -> 7297991.7
A20: FONTES (PARQUÍMETRO):
A21: RIZZO - R$ 30.010,00 | C21: REDUÇÃO QUANT. DE PARQUÍMETROS | F21: 1
A22: DIGICON - R$ 30.421,86
A23: UTILIZADA COTAÇÃO DA RIZZO POR SER MAIS VANTAJOSA

Sheet CCO
A1: CCO
A2: FONTE | B2: ITEM | C2: UNIDADE | D2: C. UNIT. (R$) | E2: QUANT. | F2: CUSTO (R$)
A3: RIZZO | B3: Monitor de Video Wall | C3: UN. | D3: 12000 | E3: 10 | F3: =D3*E3 -> 120000
A4: RIZZO | B4: Servidor | C4: UN. | D4: 28000 | E4: 3 | F4: =D4*E4 -> 84000
A5: RIZZO | B5: Camera fixa OCR | C5: UN. | D5: 4691 | E5: 72 | F5: 337752
A6: RIZZO | B6: Sistema OCR | C6: UN. | D6: 5490 | E6: 72 | F6: 395280
A7: RIZZO | B7: Piso elevado | C7: UN. | D7: 40 | E7: 360 | F7: 14400
A8: RIZZO | B8: Estação de Monitoramento | C8: UN. | D8: 13000 | E8: 16 | F8: 208000
A9: RIZZO | B9: Drone Matrice M210 | C9: UN. | D9: 225000 | E9: 1 | F9: 225000
E10: TOTAL | F10: =SUM(F3:F9) -> 1384432

Sheet SISTEMAS
A1: SISTEMAS
A2: FONTE (S) | B2: ITEM | C2: UNIDADE | D2: C. UNIT. (R$) | E2: QUANT. | F2: CUSTO (R$)
A3: RIZZO | B3: Sistema de Gerenciamento De Chamados | C3: UN. | D3: 10000 | E3: 2 | F3: =D3*E3 -> 20000
A4: RIZZO / SERBET | B4: Sistema de Aplicativo | C4: UN. | D4: 5000000 | E4: 1 | F4: =D4*E4 -> 5000000
A5: RIZZO / SERBET | B5: Sistema de Gestao de Zona Verde | C5: UN. | D5: 7500000 | E5: 1 | F5: 7500000
A6: RIZZO | B6: Instalação Parquimetros | C6: UN. | D6: 0 | E6: 1141 | F6: 0
E7: TOTAL | F7: =SUM(F3:F6) -> 12520000
A8: COTAÇÕES:
A9: RIZZO (SISTEMA DE APLICATIVO) - R$ 5.000.000,00
A10: RIZZO (SISTEMA DE GESTÃO) - R$ 7.500.000,00
A11: SERBET (SISTEMA DE APLICATIVO + SISTEMA DE GESTÃO) - R$ | D11: =0.04*RECEITA!J34 -> 3027665.382 | E11: (por ano)
A12: UTILIZADAS COTA;ÓES DA RIZZO POR SEREM MAIS VANTAJOSAS | D12: =(D11+F4+F5)/2 -> 7763832.691 | E12: (ano 1)

Sheet VEíCULOS
A1: SISTEMAS
A2: FONTE | B2: ITEM | C2: UNIDADE | D2: C. UNIT. (R$) | E2: QUANT. | F2: CUSTO (R$)
A3: RIZZO | B3: Moto Elétrica com OCR | C3: UN. | D3: 39000 | E3: 37 | F3: =D3*E3 -> 1443000
A4: RIZZO | B4: Carro Elétrico | C4: UN. | D4: 150000 | E4: 10 | F4: =D4*E4 -> 1500000
A5: RIZZO | B5: Carregador de Carro Elétrico | C5: UN. | D5: 8000 | E5: 10 | F5: 80000
A6: RIZZO | B6: Ônibus Elétrico | C6: UN. | D6: 350000 | E6: 1 | F6: 350000
A7: RIZZO | B7: Van FIAT Ducato 15 pessoas | C7: UN. | D7: 160000 | E7: 2 | F7: 320000
A8: RIZZO | B8: Van FIAT Ducato Cargo | C8: UN. | D8: 130000 | E8: 2 | F8: 260000
A9: RIZZO | B9: Pickup FIAT Strada | C9: UN. | D9: 43000 | E9: 1 | F9: 43000
A10: RIZZO | B10: Fiorino | C10: UN. | D10: 60000 | E10: 11 | F10: =D10*E10 -> 660000
E11: TOTAL | F11: =SUM(F3:F10) -> 4656000

Sheet COMUNICAÇÃO
A1: COMUNICAÇÃO
A2: FONTE | B2: ITEM | C2: UNIDADE | D2: C. UNIT. (R$) | E2: QUANT. | F2: CUSTO (R$)
A3: RIZZO | B3: TV ABERTA (Globo, SBT, Record) | C3: UN. | D3: 2608510.29 | E3: 0 | F3: =D3*E3 -> 0
A4: RIZZO | B4: TV FECHADA (Globosat (Gnt, Sportv,Multishow, Globo News,Megapix,etc) | C4: UN. | D4: 632055 | E4: 0 | F4: =D4*E4 -> 0
A5: RIZZO | B5: RÁDIO (CBN, Band News, Antena1, JovemPan, Transamérica,etc) | C5: UN. | D5: 1066744.2 | E5: 0 | F5: 0
A6: RIZZO | B6: INTERNET (Facebook, Instagram,Globo.com, Metrópoles,etc) | C6: UN. | D6: 420000 | E6: =(1-$C$57) -> 1 | F6: 420000
A7: RIZZO | B7: WIFI (DS Wifi, Mob R2, Mob TV ) | C7: UN. | D7: 350000 | E7: 1 | F7: 350000
A8: RIZZO | B8: OOH (JC Decor, Alumi, Neon Vegas, WS Painéis,etc) | C8: UN. | D8: 1105000 | E8: 1 | F8: 1105000
A9: RIZZO | B9: DOOH (Idéia, Select, Ws, Vip Channel, Tv Minuto) | C9: UN. | D9: 448000 | E9: 1 | F9: 448000
A10: RIZZO | B10: JORNAL (Jornal de Brasília, Correio Braziliense) | C10: UN. | D10: 329113.98 | E10: 1 | F10: 329113.98
A11: RIZZO | B11: REVISTA (Encontro) | C11: UN. | D11: 96600 | E11: 1 | F11: 96600
A12: RIZZO | B12: Assessoria de Imprensa | C12: UN. | D12: 100000 | E12: 0 | F12: 0
A13: RIZZO | B13: Redes Sociais (Gestão, monitoramento, produção de conteúdo - video e posts, cachê de influenciadores) | C13: UN. | D13: 1000000 | E13: 0 | F13: 0
A14: RIZZO | B14: Produção de Campanha (Produção de foto, filme, spot, lona, adesivo, vinheta, banner de internet e criação / finalização) | C14: UN. | D14: 900000 | E14: 0 | F14: 0
A15: RIZZO | B15: Material de Apoio (sites, impressos etc) | C15: UN. | D15: 150000 | E15: 1 | F15: 150000
A16: RIZZO | B16: Endomarketing / Público Interno | C16: UN. | D16: 150000 | E16: 0 | F16: 0
A17: RIZZO | B17: Ações Mobile (envio de whatsapp e SMS) | C17: UN. | D17: 350000 | E17: 0 | F17: 0
A18: RIZZO | B18: Eventos / Patrocinios | C18: UN. | D18: 400000 | E18: 0 | F18: 0
A19: TOTAL 1ª ETAPA | F19: =SUM(F3:F18) -> 2898713.98
A20: RIZZO | B20: TV ABERTA (Globo, SBT, Record) | C20: UN. | D20: 2086808.23 | E20: 0 | F20: =D20*E20 -> 0
A21: RIZZO | B21: TV FECHADA (Globosat (Gnt, Sportv,Multishow, Globo News,Megapix,etc) | C21: UN. | D21: 505644 | E21: 0 | F21: =D21*E21 -> 0
A22: RIZZO | B22: RÁDIO (CBN, Band News, Antena1, JovemPan, Transamérica,etc) | C22: UN. | D22: 853395.36 | E22: 0 | F22: 0
A23: RIZZO | B23: INTERNET (Facebook, Instagram,Globo.com, Metrópoles,etc) | C23: UN. | D23: 336000 | E23: =(1-$C$57) -> 1 | F23: 336000
A24: RIZZO | B24: WIFI (DS Wifi, Mob R2, Mob TV ) | C24: UN. | D24: 280000 | E24: 1 | F24: 280000
A25: RIZZO | B25: OOH (JC Decor, Alumi, Neon Vegas, WS Painéis,etc) | C25: UN. | D25: 884000 | E25: 1 | F25: 884000
A26: RIZZO | B26: DOOH (Idéia, Select, Ws, Vip Channel, Tv Minuto) | C26: UN. | D26: 358400 | E26: 1 | F26: 358400
A27: RIZZO | B27: JORNAL (Jornal de Brasília, Correio Braziliense) | C27: UN. | D27: 263291.18 | E27: 1 | F27: 263291.18
A28: RIZZO | B28: REVISTA (Encontro) | C28: UN. | D28: 77280 | E28: 1 | F28: 77280
A29: RIZZO | B29: Assessoria de Imprensa | C29: UN. | D29: 80000 | E29: 0 | F29: 0
A30: RIZZO | B30: Redes Sociais (Gestão, monitoramento, produção de conteúdo - video e posts, cachê de influenciadores) | C30: UN. | D30: 800000 | E30: 0 | F30: 0
A31: RIZZO | B31: Produção de Campanha (Produção de foto, filme, spot, lona, adesivo, vinheta, banner de internet e criação / finalização) | C31: UN. | D31: 720000 | E31: 0 | F31: 0
A32: RIZZO | B32: Material de Apoio (sites, impressos etc) | C32: UN. | D32: 120000 | E32: 1 | F32: 120000
A33: RIZZO | B33: Endomarketing / Público Interno | C33: UN. | D33: 120000 | E33: 0 | F33: 0
A34: RIZZO | B34: Ações Mobile (envio de whatsapp e SMS) | C34: UN. | D34: 280000 | E34: 0 | F34: 0
A35: RIZZO | B35: Eventos / Patrocinios | C35: UN. | D35: 320000 | E35: 0 | F35: 0
A36: TOTAL 2ª ETAPA | F36: =SUM(F20:F35) -> 2318971.18
A37: RIZZO | B37: TV ABERTA (Globo, SBT, Record) | C37: UN. | D37: 1043404.12 | E37: 0 | F37: =D37*E37 -> 0
A38: RIZZO | B38: TV FECHADA (Globosat (Gnt, Sportv,Multishow, Globo News,Megapix,etc) | C38: UN. | D38: 252822 | E38: 0 | F38: =D38*E38 -> 0
A39: RIZZO | B39: RÁDIO (CBN, Band News, Antena1, JovemPan, Transamérica,etc) | C39: UN. | D39: 426697.68 | E39: 0 | F39: 0
A40: RIZZO | B40: INTERNET (Facebook, Instagram,Globo.com, Metrópoles,etc) | C40: UN. | D40: 168000 | E40: 0 | F40: 0
A41: RIZZO | B41: WIFI (DS Wifi, Mob R2, Mob TV ) | C41: UN. | D41: 140000 | E41: 0 | F41: 0
A42: RIZZO | B42: OOH (JC Decor, Alumi, Neon Vegas, WS Painéis,etc) | C42: UN. | D42: 442000 | E42: 0 | F42: 0
A43: RIZZO | B43: DOOH (Idéia, Select, Ws, Vip Channel, Tv Minuto) | C43: UN. | D43: 179200 | E43: 0 | F43: 0
A44: RIZZO | B44: JORNAL (Jornal de Brasília, Correio Braziliense) | C44: UN. | D44: 131645.59 | E44: 0 | F44: 0
A45: RIZZO | B45: REVISTA (Encontro) | C45: UN. | D45: 38640 | E45: 0 | F45: 0
A46: RIZZO | B46: Assessoria de Imprensa | C46: UN. | D46: 40000 | E46: 0 | F46: 0
A47: RIZZO | B47: Redes Sociais (Gestão, monitoramento, produção de conteúdo - video e posts, cachê de influenciadores) | C47: UN. | D47: 400000 | E47: 0 | F47: 0
A48: RIZZO | B48: Produção de Campanha (Produção de foto, filme, spot, lona, adesivo, vinheta, banner de internet e criação / finalização) | C48: UN. | D48: 360000 | E48: 0 | F48: 0
A49: RIZZO | B49: Material de Apoio (sites, impressos etc) | C49: UN. | D49: 60000 | E49: 0 | F49: 0
A50: RIZZO | B50: Endomarketing / Público Interno | C50: UN. | D50: 60000 | E50: 0 | F50: 0
A51: RIZZO | B51: Ações Mobile (envio de whatsapp e SMS) | C51: UN. | D51: 140000 | E51: 0 | F51: 0
A52: RIZZO | B52: Eventos / Patrocinios | C52: UN. | D52: 160000 | E52: 0 | F52: 0
A53: TOTAL 3ª ETAPA | F53: =SUM(F37:F52) -> 0
E54: TOTAL | F54: =F19+F36+F53 -> 5217685.16
A57: PERCENTUAL DE COMPARTILHAMENTO DO PLANO DE COMUNICAÇÃO COM A PROPAGANDA INSTITUCIONAL | C57: 0

Sheet UNIFORMES
A1: UNIFORMES
A2: FONTE | B2: ITEM | C2: UNIDADE | D2: C. UNIT. (R$) | E2: QUANT. | F2: CUSTO (R$)
A3: RIZZO | B3: Uniforme completo (2 calças / 3 camisas/ 1 Jaqueta) | C3: UN. | D3: 360 | E3: 1340 | F3: =D3*E3 -> 482400
A4: RIZZO | B4: Uniforme (3 camisas sociais) | C4: UN. | D4: 60 | E4: 183 | F4: =D4*E4 -> 10980
A5: RIZZO | B5: Botinas | C5: UN. | D5: 40 | E5: 1523 | F5: 60920
A6: RIZZO | B6: Bonés | C6: UN. | D6: 20 | E6: 1523 | F6: 30460
A7: RIZZO | B7: Pochetes | C7: UN. | D7: 20 | E7: 1523 | F7: 30460
A8: RIZZO | B8: Squeeze | C8: UN. | D8: 15 | E8: 1523 | F8: 22845
A9: RIZZO | B9: Capa de Chuva | C9: UN. | D9: 50 | E9: 1523 | F9: 76150
E10: TOTAL | F10: =SUM(F3:F9) -> 714215

Sheet OPEX
A1: COMPARATIVO OPEX
A4: OPEX TOTAL | B4: RIZZO | D4: REVISÃO SEMOB | G4: PESSOAL DE CAMPO | H4: PROPOSTA RIZZO | J4: PROPOSTA SEMOB
B5: R$ | C5: % | D5: R$ | E5: % | G5: Gerente Operacional | H5: 1 | J5: ='CAMPO OPEX'!E3 -> 1
B6: =SUM(B7:B11) -> 59147950 | C6: =B6/B$6 -> 1 | D6: =SUM(D7:D11) -> 28093818.51 | E6: 1 | G6: Coordenador Rotativo | H6: 10 | J6: ='CAMPO OPEX'!E4 -> 6
A7: Administrativo | B7: 1149012 | C7: 0.01942606633 | D7: ='ADMINISTRATIVO OPEX'!F9 -> 541986.267 | E7: 0.0192920114 | G7: Supervisor Rotativo | H7: 80 | J7: ='CAMPO OPEX'!E5 -> 0
A8: Pessoal de Campo | B8: 45044918 | C8: 0.7615634692 | D8: ='CAMPO OPEX'!F12 -> 25705040.04 | E8: 0.9149713854 | G8: Operador de Drone | H8: 1 | J8: ='CAMPO OPEX'!E6 -> 1
A9: CCO | B9: 610792 | C9: 0.01032651174 | D9: ='CCO OPEX'!F8 -> 610792.2 | E9: 0.02174115989 | G9: Auxiliar Administrativo | H9: 85 | J9: 58
A10: Custos Fixos | B10: 1236000 | C10: 0.02089675128 | D10: ='CUSTO FIXO OPEX'!F11 -> 1236000 | E10: 0.04399544333 | G10: Menor Aprendiz | H10: 85 | J10: 58
A11: Comunicação | B11: 11107228 | C11: 0.1877872014 | D11: ='COMUNICAÇÃO OPEX'!F8 -> 0 | E11: 0 | G11: Lider Rotativo | H11: 100 | J11: ='CAMPO OPEX'!E9 -> 64
G12: Monitor Rotativo | H12: 1005 | J12: ='CAMPO OPEX'!E10 -> 638
G13: Motorista Fiscalização - Moto | H13: 40 | J13: ='CAMPO OPEX'!E11 -> 39
H14: =SUM(H5:I13) -> 1407 | J14: =SUM(J5:K13) -> 865
A15: CRONOGRAMA OPEX
A18: ITEM | B18: ANO 1 | F18: ANO 2 | H18: ANO 3 - ANO 20
A19: Administrativo | B19: Proporcional ao espaço para administração | F19: 1 | H19: 1
A20: Pessoal de Campo | B20: Proporcional à receita | F20: Proporcional à receita | H20: 1
A21: CCO | B21: 1 | F21: 1 | H21: 1
A22: Custos Fixos | B22: Proporcional ao espaço para administração | F22: 1 | H22: 1
A23: Comunicação | B23: - | F23: - | H23: 100% a partir do ano 4
A25: OBS.: A partir do 5º prevê-se uma redução de 1% ao ano nos custos operacionais (ganho de eficiência)

Sheet ADMINISTRATIVO OPEX
A1: ADMINISTRATIVO OPEX
A2: FONTE | B2: PROFISSIONAL | C2: SALÁRIO | D2: ENCARGOS | E2: QUANT. | F2: CUSTO ANUAL (R$)
A3: RIZZO | B3: Coordenador de Serviços | C3: 5147.27 | D3: 1.806610543 | E3: 1 | F3: =C3*D3*E3*12 -> 111589.347
A4: RIZZO | B4: Técnico Parquimetro | C4: 1435.51 | D4: 1.806610543 | E4: 0 | F4: =C4*D4*E4*12 -> 0
A5: RIZZO | B5: Motorista | C5: 1558.46 | D5: 1.806610372 | E5: 2 | F5: 67572.72
A6: RIZZO | B6: Coletor Parquimetro | C6: 1115.73 | D6: 1.806610918 | E6: 0 | F6: 0
A7: RIZZO | B7: Serviço Geral | C7: 1115.73 | D7: 1.806610918 | E7: 4 | F7: 96753.12
A8: RIZZO | B8: Aux Limpeza | C8: 1115.73 | D8: 1.806610918 | E8: 11 | F8: 266071.08
E9: TOTAL | F9: =SUM(F3:F8) -> 541986.267

Sheet CAMPO OPEX
A1: PESSOAL DE CAMPO OPEX
A2: FONTE | B2: PROFISSIONAL | C2: SALÁRIO | D2: ENCARGOS | E2: QUANT. | F2: CUSTO ANUAL (R$)
A3: RIZZO | B3: Gerente Operacional | C3: 17733.59 | D3: 1.806610543 | E3: 1 | F3: =C3*D3*E3*12 -> 384452.2878
A4: RIZZO | B4: Coordenador Rotativo | C4: 5500 | D4: 1.806610543 | E4: =ROUND(E9/10,0) -> 6 | F4: =C4*D4*E4*12 -> 715417.7749
A5: RIZZO | B5: Supervisor Rotativo | C5: 3100 | D5: 1.806610543 | E5: 0 | F5: 0
A6: RIZZO | B6: Operador de Drone | C6: 6250 | D6: 1.806610543 | E6: 1 | F6: 135495.7907
A7: RIZZO | B7: Auxiliar Administrativo | C7: 1400 | D7: 1.806610543 | E7: 58 | F7: 1760361.313
A8: RIZZO | B8: Menor Aprendiz | C8: 676 | D8: 1.806610543 | E8: 58 | F8: 850003.0338
A9: RIZZO | B9: Lider Rotativo | C9: 2021.5 | D9: 1.806610543 | E9: =ROUND(E10/10,0) -> 64 | F9: 2804784.547
A10: RIZZO | B10: Monitor Rotativo | C10: 1300 | D10: 1.81 | E10: =ROUND(('VAGAS RECEITA'!I26*0.2+'VAGAS RECEITA'!I26*0.8*0.25+'VAGAS RECEITA'!I29+'VAGAS RECEITA'!I34+'VAGAS RECEITA'!I19*0.05+'VAGAS RECEITA'!I19*0.95*0.25)/100,0) -> 638 | F10: 18014568
A11: RIZZO | B11: Motorista Fiscalização - Moto | C11: 1230 | D11: 1.806610543 | E11: =ROUND(('VAGAS RECEITA'!I35/3000),0) -> 39 | F11: 1039957.293
E12: TOTAL | F12: =SUM(F3:F11) -> 25705040.04
B14: PROFISSIONAL | C14: PROPOSTA RIZZO | E14: PROPOSTA SEMOB
B15: Gerente Operacional | C15: 1 | E15: 1
B16: Coordenador Rotativo | C16: 1 cada 8 supervisores | E16: 1 cada 10 líders
B17: Supervisor Rotativo | C17: 1 a cada 12 monitores | E17: -
B18: Operador de Drone | C18: 1 | E18: 1
B19: Auxiliar Administrativo | C19: 1 a cada 1142 vagas | E19: 1 a cada 2000 vagas
B20: Menor Aprendiz | C20: - | E20: 5% da quant. de profissionais
B21: Lider Rotativo | C21: 1 a cada 10 monitores | E21: 1 a cada 10 monitores
B22: Monitor Rotativo | C22: 1 a cada 97 vagas | E22: 1 a cada 100 vagas*
B23: Motorista Fiscalização - Moto | C23: - | E23: 1 a cada 3000 vagas
B24: * Para fins deste cálculo as vagas isentas contam como 0,25

Sheet CCO OPEX
A1: OPEX CCO
A2: FONTE | B2: PROFISSIONAL | C2: SALÁRIO | D2: ENCARGOS | E2: QUANT. | F2: CUSTO ANUAL (R$)
A3: RIZZO | B3: Coordenador Suporte Operacional | C3: 3900 | D3: 1.806610256 | E3: 1 | F3: =C3*D3*E3*12 -> 84549.36
A4: RIZZO | B4: Supervisor de Atendimento | C4: 2400 | D4: 1.8066125 | E4: 1 | F4: =C4*D4*E4*12 -> 52030.44
A5: RIZZO | B5: Analista de Suporte/ Operacional | C5: 1946.49 | D5: 1.806610874 | E5: 3 | F5: 126595.8
A6: RIZZO | B6: Analista de atendimento | C6: 1250 | D6: 1.806611 | E6: 8 | F6: 216793.32
A7: RIZZO | B7: Técnicos câmeras | C7: 2011.49 | D7: 1.80661102 | E7: 3 | F7: 130823.28
E8: TOTAL | F8: =SUM(F3:F7) -> 610792.2

Sheet CUSTO FIXO OPEX
A1: CUSTO FIXO OPEX
A2: FONTE | B2: ITEM | C2: UNIDADE | D2: C. UNIT. (R$) | E2: QUANT. | F2: CUSTO (R$)
A3: RIZZO | B3: Escritorio Apoio | C3: UN. | D3: 0 | E3: 3 | F3: =D3*E3*12 -> 0
A4: RIZZO | B4: Escritorio Central | C4: UN. | D4: 0 | E4: 1 | F4: =D4*E4*12 -> 0
A5: RIZZO | B5: Conta de Água | C5: UN. | D5: 5000 | E5: 1 | F5: 60000
A6: RIZZO | B6: Conta de Energia | C6: UN. | D6: 10000 | E6: 1 | F6: 120000
A7: RIZZO | B7: Conta de Telefone | C7: UN. | D7: 2000 | E7: 1 | F7: 24000
A8: RIZZO | B8: Chip de Dados | C8: UN. | D8: 30 | E8: 2200 | F8: 792000
A9: RIZZO | B9: Material de Escritório | C9: UN. | D9: 5000 | E9: 1 | F9: 60000
A10: RIZZO | B10: Despesas básicas (protetor, produto de higiene,agua e etc) | C10: UN. | D10: 15000 | E10: 1 | F10: 180000
E11: TOTAL | F11: =SUM(F3:F10) -> 1236000

Sheet COMUNICAÇÃO OPEX
A1: COMUNICAÇÃO OPEX
A2: FONTE | B2: ITEM | C2: UNIDADE | D2: C. UNIT. (R$) | E2: QUANT. | F2: CUSTO (R$)
A3: RIZZO | B3: Redes Sociais (Gestão, monitoramento, produção de conteúdo - video e posts, cachê de influenciadores) | C3: UN. | D3: 100000 | E3: 1 | F3: =D3*E3*12*(1-$D$10) -> 0
A4: RIZZO | B4: Produção de Campanha (Produção de foto, filme, spot, lona, adesivo, vinheta, banner de internet e criação / finalização) | C4: UN. | D4: 90000 | E4: 1 | F4: =D4*E4*12*(1-$D$10) -> 0
A5: RIZZO | B5: Material de Apoio (sites, impressos etc) | C5: UN. | D5: 15000 | E5: 1 | F5: 0
A6: RIZZO | B6: Campanha Publicitária mídia | C6: UN. | D6: 705602.35 | E6: 1 | F6: 0
A7: RIZZO | B7: Endomarketing / Público Interno | C7: UN. | D7: 15000 | E7: 1 | F7: 0
E8: TOTAL | F8: =SUM(F3:F7) -> 0
B10: PERCENTUAL DE COMPARTILHAMENTO DO PLANO DE COMUNICAÇÃO COM A PROPAGANDA INSTITUCIONAL | D10: 1

Sheet WACC
A1: WACC
A2: Recálculo DIGEM3
A3: Data-Base | B3: 2021-01-01 | C3: Atualização
A4: Percentual de capital próprio (E) | B4: 0.35 | C4: 0.35
A5: Percentual de capital de terceiros (D) | B5: 0.65 | C5: 0.65
A6: Custo de capital de terceiros (Kd) | B6: 0.0989 | C6: 0.0989
A7: Tributos (IR + CSLL) | B7: 0.34 | C7: 0.34
A8: Taxa Livre de Risco - Tbond (RF) | B8: 0.0495 | C8: Média Geométrica do Retorno Histórico (US T. Bond 1928-2020)1
A9: Taxa de Retorno do Mercado - S&P500 (RM) | B9: 0.0979 | C9: Média Geométrica do Retorno Histórico (S&P 500 1928-2020)1
A10: Beta Desalavancado (β) | B10: 0.98 | C10: 0.98
A11: Beta Realavancado (βL) | B11: =B10*(1+(1-B7)*(B5/B4)) -> 2.1812 | C11: βL=(β)*(1+(1-T)*(D/E))
A12: Prêmio de Risco de Mercado (PRM) | B12: 0.0484 | C12: PRM = Rm - Rf (S&P 500 - US T. Bond 1928-2020)
A13: Risco País (RP) | B13: 0.026 | C13: 0.026
A14: Prêmio de Liquidez (PTL) | B14: 0 | C14: Removido. Tal prêmio de risco não costuma fazer parte do cálculo do WACC das licitações de concessões, conforme apontado pelo Corpo Técnico quanto da análise da PPP do Veículo Leve sobre Trilhos (EDOC nº EECOB618 - Processo nº 8.644/2020).
A15: Custo do Capital Próprio obtido pelo método CAPM em UR$ (KeU$) | B15: =B8+B11*B12+B13 -> 0.18107008 | C15: KeU$ = RF+βL*(RM - RF)+RP. No projeto, somou-se ao final o Prêmio de Liquidez. Nesse cálculo, foi desconsiderado.
A16: Inflação Projetada BR | B16: 0.0372 | C16: Expectativa média para o IPCA de 2021 a 2024 + Boletim Focus/ Bacen de 9/4/20211 (4,85%; 3,53%; 3,25% e 3,25%)
A17: Inflação Projetada US | B17: 0.0228 | C17: Expectativa média para a inflação americana (US CPI) de 2021 a 2024 (2,2%; 2,3%; 2,3% e 2,3%)2.
A18: Diferencial de Inflação (Δi) | B18: =(1+B16)/(1+B17)-1 -> 0.01407899883
A19: Conversão de Ke para Termos Brasileiros | B19: =(1+B15)*(1+B16)/(1+B17)-1 -> 0.1976983643 | C19: KeR$ = (1 + KeU$) x
A20: WACC Nominal | B20: =(1-B7)*B6*B5+B4*B19 -> 0.1116225275 | C20: KD = (1 - T) x (%D) + KE x (%E)
A21: Inflação Projetada BR | B21: 0.0372 | C21: Expectativa média para o IPCA de 2021 a 2024 - Boletim Focus/ Bacen de 9/4/2021.
A22: WACC Real | B22: =(1+B20)/(1+B21)-1 -> 0.07175330456 | C22: Relação de Fisher:
A23: 1. http://pages.stern.nyu.edu/~adamodar/
A24: 2. https://www.bcb.gov.br/publicacoes/focus
A25: 3. https://pt.knoema.com/kyaewad/us-inflation-forecast-2020-2021-and-long-term-to-2060-data-and-charts
A26: TIR = | B26: ='[3]FLUXO DE CAIXA'!C43 -> 0.1142533771

Sheet RESSARCIMENTO
A1: DEMONSTRATIVO | B1: VALOR (R$) | C1: DATA-BASE | D1: ÍNDICE CONSULTORIA DNIT
D2: MÊS | E2: Ic
A3: VALOR DEFINIDO PELA COMISSÃO TÉCNICA* | B3: 4922921.32 | C3: JUNHO/2019 | D3: ABRIL/2019 | E3: 226.119
A4: VALOR REAJUSTADO | B4: =B3*E4/E3 -> 5352187.501 | C4: ABRIL/2021 | D4: FEVEREIRO/2021 | E4: 245.836
A5: * Nota Técnica SEI-GDF nº 1/2019 - SEMOB/GAB/CTZV, de 20 de agosto de 2019 (SEI nº 26935022)

Sheet FLUXO DE CAIXA 15 ANOS
B4: DRE | C4: Total | D4: Pré-Oper | E4: 1º Ano | F4: 2 º Ano | G4: 3º ano | H4: 4º ano | I4: 5º ano | J4: 6º ano | K4: 7º ano | L4: 8º ano | M4: 9º ano | N4: 10º ano | O4: 11º ano | P4: 12º ano | Q4: 13º ano | R4: 14º ano | S4: 15º ano
B5: Receita Tarifária Bruta | C5: =SUM(D5:S5) -> 1025473934 | E5: =RECEITA!J36 -> 16002823.97 | F5: =RECEITA!J37 -> 43982260.07 | G5: =RECEITA!J38 -> 57189234.99 | H5: =RECEITA!J34 -> 75691634.54 | I5: =H5 -> 75691634.54 | J5: =I5 -> 75691634.54 | K5: =J5 -> 75691634.54 | L5: =K5 -> 75691634.54 | M5: 75691634.54 | N5: 75691634.54 | O5: 75691634.54 | P5: 75691634.54 | Q5: 75691634.54 | R5: 75691634.54 | S5: 75691634.54
A6: 0.18 | B6: Outorga Mensal | C6: -184585308 | E6: =-E5*$A$6 -> -2880508.314 | F6: =-F5*$A$6 -> -7916806.813 | G6: -10294062.3 | H6: -13624494.22 | I6: -13624494.22 | J6: -13624494.22 | K6: -13624494.22 | L6: -13624494.22 | M6: -13624494.22 | N6: -13624494.22 | O6: -13624494.22 | P6: -13624494.22 | Q6: -13624494.22 | R6: -13624494.22 | S6: -13624494.22
A7: 17850000 | B7: Outorga Inicial | C7: -17850000 | D7: =-A7 -> -17850000
A8: 0 | B8: VF Regulatória | C8: 0 | E8: =-$A$8*E5 -> 0 | F8: 0 | G8: 0 | H8: 0 | I8: 0 | J8: 0 | K8: 0 | L8: 0 | M8: 0 | N8: 0 | O8: 0 | P8: 0 | Q8: 0 | R8: 0 | S8: 0
A9: 0 | B9: VF de Trânsito | C9: 0 | E9: =-E5*$A$9 -> 0 | F9: 0 | G9: 0 | H9: 0 | I9: 0 | J9: 0 | K9: 0 | L9: 0 | M9: 0 | N9: 0 | O9: 0 | P9: 0 | Q9: 0 | R9: 0 | S9: 0
B10: Receita Após Repasse | C10: 840888625.5 | E10: =E5+E6+(E8+E9) -> 13122315.65 | F10: 36065453.26 | G10: 46895172.69 | H10: 62067140.33 | I10: 62067140.33 | J10: 62067140.33 | K10: 62067140.33 | L10: 62067140.33 | M10: 62067140.33 | N10: 62067140.33 | O10: 62067140.33 | P10: 62067140.33 | Q10: 62067140.33 | R10: 62067140.33 | S10: 62067140.33
A11: =D2 -> 0 | B11: Receita Após Participação | C11: 840888625.5 | E11: =E10*(1-$A$11) -> 13122315.65 | F11: 36065453.26 | G11: 46895172.69 | H11: 62067140.33 | I11: 62067140.33 | J11: 62067140.33 | K11: 62067140.33 | L11: 62067140.33 | M11: 62067140.33 | N11: 62067140.33 | O11: 62067140.33 | P11: 62067140.33 | Q11: 62067140.33 | R11: 62067140.33 | S11: 62067140.33
B12: Tributos sobre Receita | C12: -128951291.2 | E12: =SUM(E13:E15) -> -1964747.838 | F12: =SUM(F13:F15) -> -5466179.363 | G12: -6850126.88 | H12: -9486718.817 | I12: -9499712.208 | J12: -9512575.665 | K12: -9525310.487 | L12: -9537917.962 | M12: -9550399.361 | N12: -9562755.947 | O12: -9574988.967 | P12: -9587099.656 | Q12: -9599089.239 | R12: -9610958.926 | S12: -9622709.916
A13: 0.0165 | B13: PIS | C13: -13856003.35 | E13: =(-E5*$A$13)-0.5*$A$13*E19 -> -207740.6438 | F13: =(-F5*$A$13)-0.5*$A$13*F19 -> -582773.9992 | G13: =(-G5*$A$13)-0.5*$A$13*G19 -> -711848.3746 | H13: -1017137.967 | I13: -1019455.707 | J13: -1021750.27 | K13: -1024021.887 | L13: -1026270.788 | M13: -1028497.2 | N13: -1030701.347 | O13: -1032883.454 | P13: -1035043.739 | Q13: -1037182.421 | R13: -1039299.717 | S13: -1041395.839
A14: 0.076 | B14: COFINS | C14: -63821591.2 | E14: =(-E5*$A14)-0.5*$A$14*E19 -> -956865.9956 | F14: =(-F5*$A14)-0.5*$A$14*F19 -> -2684292.36 | G14: -3278816.756 | H14: -4684999.122 | I14: -4695674.773 | J14: -4706243.668 | K14: -4716706.873 | L14: -4727065.447 | M14: -4737320.435 | N14: -4747472.872 | O14: -4757523.786 | P14: -4767474.19 | Q14: -4777325.091 | R14: -4787077.482 | S14: -4796732.35
A15: 0.05 | B15: ISS | C15: -51273696.68 | E15: =-E5*$A15 -> -800141.1984 | F15: -2199113.004 | G15: -2859461.749 | H15: -3784581.727 | I15: -3784581.727 | J15: -3784581.727 | K15: -3784581.727 | L15: -3784581.727 | M15: -3784581.727 | N15: -3784581.727 | O15: -3784581.727 | P15: -3784581.727 | Q15: -3784581.727 | R15: -3784581.727 | S15: -3784581.727
A16: =J2 -> 0 | B16: Receita Líquida | C16: 711937334.3 | E16: =E11+E12 -> 11157567.82 | F16: =F11+F12 -> 30599273.9 | G16: 40045045.81 | H16: 52580421.51 | I16: 52567428.12 | J16: 52554564.66 | K16: 52541829.84 | L16: 52529222.36 | M16: 52516740.96 | N16: 52504384.38 | O16: 52492151.36 | P16: 52480040.67 | Q16: 52468051.09 | R16: 52456181.4 | S16: 52444430.41
E17: =E16/E5 -> 0.6972249297 | F17: 0.695718543 | G17: 0.7002199945 | H17: 0.6946662181 | I17: 0.6944945559 | J17: 0.6943246103 | K17: 0.6941563642 | L17: 0.6939898006 | M17: 0.6938249026 | N17: 0.6936616536 | O17: 0.693500037 | P17: 0.6933400367 | Q17: 0.6931816363 | R17: 0.6930248199 | S17: 0.6928695717
B19: CUSTOS E DESPESAS OPERAÇÃO | C19: =SUM(D19:S19) -> -371432309.2 | E19: =-(OPEX!D7+OPEX!D10)*('VAGAS CAPEX'!O34+'VAGAS CAPEX'!O29+'VAGAS CAPEX'!N29)/('VAGAS CAPEX'!N35+'VAGAS CAPEX'!O35)-OPEX!D8*'FLUXO DE CAIXA 15 ANOS'!E5/'FLUXO DE CAIXA 15 ANOS'!H5-OPEX!D9 -> -6824963.841 | F19: =-OPEX!D7-OPEX!D8*'FLUXO DE CAIXA 15 ANOS'!F5/'FLUXO DE CAIXA 15 ANOS'!H5-OPEX!D9-OPEX!D10 -> -17325247.51 | G19: =-OPEX!D7-OPEX!D8-OPEX!D9-OPEX!D10 -> -28093818.51 | H19: =-OPEX!D6 -> -28093818.51 | I19: =0.99*H19 -> -27812880.32 | J19: -27534751.52 | K19: -27259404 | L19: -26986809.96 | M19: -26716941.86 | N19: -26449772.44 | O19: -26185274.72 | P19: -25923421.97 | Q19: -25664187.75 | R19: -25407545.88 | S19: -25153470.42
B20: DEPRECIAÇÃO | C20: -100411514.2 | E20: =-E59 -> -5999063.032 | F20: -6918377.028 | G20: -6918377.028 | H20: -6918377.028 | I20: -6918377.028 | J20: -6673894.306 | K20: =J20 -> -6673894.306 | L20: -6673894.306 | M20: -6673894.306 | N20: -6673894.306 | O20: -6673894.306 | P20: -6673894.306 | Q20: -6673894.306 | R20: -6673894.306 | S20: -6673894.306
B21: Lucro Bruto | C21: 240093510.9 | E21: =E16+E19+E20 -> -1666459.058 | F21: =F16+F19+F20 -> 6355649.357 | G21: =G16+G19+G20 -> 5032850.276 | H21: =H16+H19+H20 -> 17568225.97 | I21: 17836170.77 | J21: 18345918.84 | K21: 18608531.53 | L21: 18868518.1 | M21: 19125904.8 | N21: 19380717.63 | O21: 19632982.33 | P21: 19882724.39 | Q21: 20129969.03 | R21: 20374741.22 | S21: 20617065.69
C22: 0
B23: Lucro antes de IR | C23: 240093510.9 | E23: =E21 -> -1666459.058 | F23: 6355649.357 | G23: 5032850.276 | H23: 17568225.97 | I23: 17836170.77 | J23: 18345918.84 | K23: 18608531.53 | L23: 18868518.1 | M23: 19125904.8 | N23: 19380717.63 | O23: 19632982.33 | P23: 19882724.39 | Q23: 20129969.03 | R23: 20374741.22 | S23: 20617065.69
A24: 0.15 | B24: Imposto de Renda | C24: 36263995.49 | E24: =IF(E23<0,0,E$23*$A24) -> 0 | F24: 953347.4036 | G24: 754927.5414 | H24: 2635233.896 | I24: 2675425.615 | J24: 2751887.826 | K24: 2791279.729 | L24: 2830277.714 | M24: 2868885.719 | N24: 2907107.644 | O24: 2944947.35 | P24: 2982408.659 | Q24: 3019495.354 | R24: 3056211.183 | S24: 3092559.853
A25: 0.1 | B25: Adicional de Imposto | C25: 23839996.99 | E25: =IF(E23<240000,0,(E$23-240000)*$A25) -> 0 | F25: 611564.9357 | G25: 479285.0276 | H25: 1732822.597 | I25: 1759617.077 | J25: 1810591.884 | K25: 1836853.153 | L25: 1862851.81 | M25: 1888590.48 | N25: 1914071.763 | O25: 1939298.233 | P25: 1964272.439 | Q25: 1988996.903 | R25: 2013474.122 | S25: 2037706.569
A26: 0.09 | B26: Contribuição Social | C26: 21758397.29 | E26: =IF(E23<0,0,E$23*$A26) -> 0 | F26: 572008.4422 | G26: 452956.5249 | H26: 1581140.338 | I26: 1605255.369 | J26: 1651132.695 | K26: 1674767.838 | L26: 1698166.629 | M26: 1721331.432 | N26: 1744264.587 | O26: 1766968.41 | P26: 1789445.195 | Q26: 1811697.212 | R26: 1833726.71 | S26: 1855535.912
B27: Lucro Líquido | C27: 135028933.6 | D27: =D31 -> -23202187.5 | E27: =E23-SUM(E24:E26) -> -1666459.058 | F27: =F23-SUM(F24:F26) -> 4218728.576 | G27: 3345681.182 | H27: 11619029.14 | I27: 11795872.71 | J27: 12132306.43 | K27: 12305630.81 | L27: 12477221.94 | M27: 12647097.16 | N27: 12815273.63 | O27: 12981768.34 | P27: 13146598.1 | Q27: 13309779.56 | R27: 13471329.2 | S27: 13631263.35
A28: =H2 -> 0 | B28: Lucro Líquido Ajustado | C28: 135028933.6 | D28: =D7-RESSARCIMENTO!B4 -> -23202187.5 | E28: =E27*(1-$H$2) -> -1666459.058 | F28: 4218728.576 | G28: 3345681.182 | H28: 11619029.14 | I28: 11795872.71 | J28: 12132306.43 | K28: 12305630.81 | L28: 12477221.94 | M28: 12647097.16 | N28: 12815273.63 | O28: 12981768.34 | P28: 13146598.1 | Q28: 13309779.56 | R28: 13471329.2 | S28: 13631263.35
B29: Margem Sobre o Faturamento | C29: =C27/C5 -> 0.131674662 | E29: -0.1041353114 | F29: 0.0959188675 | G29: 0.0585019398 | H29: 0.153504799 | I29: 0.1558411676 | J29: 0.1602859617 | K29: 0.1625758366 | L29: 0.1648428128 | M29: 0.1670871192 | N29: 0.1693089826 | O29: 0.1715086273 | P29: 0.1736862756 | Q29: 0.1758421474 | R29: 0.1779764605 | S29: 0.1800894304
B30: FLUXO DE CAIXA PROJETO | E30: =E4 -> 1º Ano | F30: 2 º Ano | G30: 3º ano | H30: 4º ano | I30: 5º ano | J30: 6º ano | K30: 7º ano | L30: 8º ano | M30: 9º ano | N30: 10º ano | O30: 11º ano | P30: 12º ano | Q30: 13º ano | R30: 14º ano | S30: 15º ano
B31: (=) Lucro Líquido | C31: =SUM(D31:S31) -> 135028933.6 | D31: =D7-RESSARCIMENTO!B4 -> -23202187.5 | E31: =E28 -> -1666459.058 | F31: =F28 -> 4218728.576 | G31: 3345681.182 | H31: 11619029.14 | I31: 11795872.71 | J31: 12132306.43 | K31: 12305630.81 | L31: 12477221.94 | M31: 12647097.16 | N31: =N28 -> 12815273.63 | O31: =O28 -> 12981768.34 | P31: 13146598.1 | Q31: 13309779.56 | R31: 13471329.2 | S31: 13631263.35
B32: (+) Depreciação | C32: =SUM(E32:S32) -> 100411514.2 | E32: =E20*-1 -> 5999063.032 | F32: =F20*-1 -> 6918377.028 | G32: =G20*-1 -> 6918377.028 | H32: =H20*-1 -> 6918377.028 | I32: 6918377.028 | J32: 6673894.306 | K32: 6673894.306 | L32: 6673894.306 | M32: 6673894.306 | N32: 6673894.306 | O32: 6673894.306 | P32: 6673894.306 | Q32: 6673894.306 | R32: 6673894.306 | S32: 6673894.306
B33: IMOBILIZADO | C33: =SUM(D33:S33) -> 0 | E33: 0 | F33: =-'[1]TOTALRESUMO '!$I$24 -> 0 | G33: =-'[1]TOTALRESUMO '!$J$24 -> 0
B34: (-) Investimentos | C34: =SUM(D34:S34) -> -115107447.6 | E34: =-ESTACIONAMENTOS!O81-ESTACIONAMENTOS!Q81-ESTACIONAMENTOS!S81*('VAGAS CAPEX'!K34+'VAGAS CAPEX'!K29)/ESTACIONAMENTOS!M77-('VAGAS CAPEX'!N290+'VAGAS CAPEX'!O19+'VAGAS CAPEX'!O29+'VAGAS CAPEX'!O34)*80*EDIFICAÇÕES!C4-('VAGAS CAPEX'!O19+'VAGAS CAPEX'!O29+'VAGAS CAPEX'!O34)*70*EDIFICAÇÕES!C5-0.33*CAPEX!D9-CAPEX!D10-CAPEX!D11-CAPEX!D12-COMUNICAÇÃO!F19-CAPEX!D14 -> -56503887.57 | F34: =-ESTACIONAMENTOS!S81*'VAGAS CAPEX'!K26/ESTACIONAMENTOS!M77-'VAGAS CAPEX'!N26*80*EDIFICAÇÕES!C4-EDIFICAÇÕES!E3-0.67*CAPEX!D9-COMUNICAÇÃO!F36 -> -26198507.97 | G34: =-COMUNICAÇÃO!F53 -> 0 | I34: =-CAPEX!D9+EQUIPAMENTOS!F3-CAPEX!D12*0.5-CAPEX!D14 -> -10340206.7 | N34: =-CAPEX!D9+EQUIPAMENTOS!F3-CAPEX!D10-CAPEX!D12*0.5-CAPEX!D14 -> -11724638.7 | S34: =-CAPEX!D9+EQUIPAMENTOS!F3-CAPEX!D12*0.5-CAPEX!D14 -> -10340206.7
B35: (-) Manutenção | C35: =SUM(E35:S35) -> -21762602.54 | I35: =-0.05*(CAPEX!D7+CAPEX!D8) -> -1978418.413 | J35: =I35 -> -1978418.413 | K35: =J35 -> -1978418.413 | L35: -1978418.413 | M35: -1978418.413 | N35: -1978418.413 | O35: -1978418.413 | P35: -1978418.413 | Q35: -1978418.413 | R35: -1978418.413 | S35: -1978418.413
B36: (-) Despesas Pré Operacionais | C36: =SUM(D36:S36) -> 0
B37: (=) Saldo de Caixa | C37: =SUM(D37:S37) -> 98570397.61 | D37: =SUM(D31:D36) -> -23202187.5 | E37: =SUM(E31:E36) -> -52171283.59 | F37: =SUM(F31:F36) -> -15061402.37 | G37: =SUM(G31:G36) -> 10264058.21 | H37: 18537406.17 | I37: 6395624.623 | J37: 16827782.33 | K37: 17001106.7 | L37: 17172697.84 | M37: 17342573.06 | N37: 5786110.828 | O37: 17677244.23 | P37: 17842073.99 | Q37: 18005255.45 | R37: 18166805.1 | S37: 7986532.547
B38: (=) Saldo de Caixa Acumulado | D38: =D37 -> -23202187.5 | E38: =E37+D38 -> -75373471.09 | F38: =F37+E38 -> -90434873.46 | G38: -80170815.25 | H38: -61633409.08 | I38: -55237784.46 | J38: -38410002.13 | K38: -21408895.43 | L38: -4236197.595 | M38: 13106375.46 | N38: 18892486.29 | O38: 36569730.52 | P38: 54411804.51 | Q38: 72417059.97 | R38: 90583865.06 | S38: 98570397.61
B39: FCL | C39: =NPV(C41,E37:S37)+D37 -> 98570397.61
B40: Exposição Máxima | C40: =MIN(D38:S38) -> -90434873.46
F41: SIMULAÇÃO
B42: VPL | C42: =NPV(C43,D37:S37) -> 8.453917736e-10
B43: TIR | C43: =IRR(D37:S37) -> 0.1016461287 | F43: TARIFA AUTO (R$) | G43: 2
B44: Taxa Interna de Retorno Acionistas | C44: =IRR(D27:S27) -> 0.2748704524
F45: TAXA DE OCUPAÇÃO (%) | G45: 0.5
B46: VALOR DO CONTRATO | C46: =-(C6+C7+C19+C33+C34+C35) -> 710737667.4
D48: DEPRECIA;ÁO | E48: ANO 1 | F48: ANO 2 | G48: ANO 3 | H48: ANO 4 | I48: ANO 5 | J48: ANO 6-20
D49: Outorga | E49: =-$D7/15 -> 1190000 | F49: =-$D7/15 -> 1190000 | G49: 1190000 | H49: 1190000 | I49: 1190000 | J49: 1190000
D50: Ressarcimento | E50: =RESSARCIMENTO!$B4/15 -> 356812.5001 | F50: =RESSARCIMENTO!$B4/20 -> 267609.3751 | G50: =RESSARCIMENTO!$B4/20 -> 267609.3751 | H50: =RESSARCIMENTO!$B4/20 -> 267609.3751 | I50: =RESSARCIMENTO!$B4/20 -> 267609.3751 | J50: =RESSARCIMENTO!$B4/20 -> 267609.3751
D51: Estacionamentos | E51: =(ESTACIONAMENTOS!O81+ESTACIONAMENTOS!Q81+ESTACIONAMENTOS!S81*('VAGAS CAPEX'!K29+'VAGAS CAPEX'!K34)/ESTACIONAMENTOS!M77)/15 -> 1499226.915 | F51: =E51+(CAPEX!D7-'FLUXO DE CAIXA 15 ANOS'!E51*20)/14 -> 1879621.484 | G51: =F51 -> 1879621.484 | H51: 1879621.484 | I51: 1879621.484 | J51: 1879621.484
D52: Edificações | E52: =(('VAGAS CAPEX'!N290+'VAGAS CAPEX'!O19+'VAGAS CAPEX'!O29+'VAGAS CAPEX'!O34)*80*EDIFICAÇÕES!C4+('VAGAS CAPEX'!O19+'VAGAS CAPEX'!O29+'VAGAS CAPEX'!O34)*70*EDIFICAÇÕES!C5)/15 -> 628919.04 | F52: =E52+(CAPEX!D8-'FLUXO DE CAIXA 15 ANOS'!E52*20)/14 -> 34627.98286 | G52: 34627.98286 | H52: 34627.98286 | I52: 34627.98286 | J52: 34627.98286
D53: Equipamentos | E53: =0.33*CAPEX!D9/5 -> 481667.4522 | F53: =E53+0.67*CAPEX!D9/4 -> 1704081.062 | G53: =F53 -> 1704081.062 | H53: 1704081.062 | I53: 1704081.062 | J53: =CAPEX!D9/5 -> 1459598.34
D54: CCO | E54: =CAPEX!D10/10 -> 138443.2 | F54: =E54 -> 138443.2 | G54: 138443.2 | H54: 138443.2 | I54: 138443.2 | J54: =I54 -> 138443.2
D55: Sistemas | E55: =CAPEX!D11/15 -> 834666.6667 | F55: =E55 -> 834666.6667 | G55: 834666.6667 | H55: 834666.6667 | I55: 834666.6667 | J55: 834666.6667
D56: Veículos | E56: =CAPEX!D12/10 -> 465600 | F56: 465600 | G56: 465600 | H56: 465600 | I56: 465600 | J56: 465600
D57: Comunicação | E57: =CAPEX!D13/20 -> 260884.258 | F57: 260884.258 | G57: 260884.258 | H57: 260884.258 | I57: 260884.258 | J57: 260884.258
D58: Uniformes | E58: =CAPEX!D14/5 -> 142843 | F58: 142843 | G58: 142843 | H58: 142843 | I58: 142843 | J58: 142843
D59: TOTAL | E59: =SUM(E49:E58) -> 5999063.032 | F59: 6918377.028 | G59: 6918377.028 | H59: 6918377.028 | I59: 6918377.028 | J59: 6673894.306

Sheet FLUXO DE CAIXA 10 ANOS
B4: DRE | C4: Total | D4: Pré-Oper | E4: 1º Ano | F4: 2 º Ano | G4: 3º ano | H4: 4º ano | I4: 5º ano | J4: 6º ano | K4: 7º ano | L4: 8º ano | M4: 9º ano | N4: 10º ano
B5: Receita Tarifária Bruta | C5: =SUM(D5:N5) -> 647015760.8 | E5: =RECEITA!J36 -> 16002823.97 | F5: =RECEITA!J37 -> 43982260.07 | G5: =RECEITA!J38 -> 57189234.99 | H5: =RECEITA!J34 -> 75691634.54 | I5: =H5 -> 75691634.54 | J5: =I5 -> 75691634.54 | K5: =J5 -> 75691634.54 | L5: =K5 -> 75691634.54 | M5: 75691634.54 | N5: 75691634.54
A6: 0.1 | B6: Outorga Mensal | C6: -64701576.08 | E6: =-E5*$A$6 -> -1600282.397 | F6: =-F5*$A$6 -> -4398226.007 | G6: -5718923.499 | H6: -7569163.454 | I6: -7569163.454 | J6: -7569163.454 | K6: -7569163.454 | L6: -7569163.454 | M6: -7569163.454 | N6: -7569163.454
A7: 2890000 | B7: Outorga Inicial | C7: -2890000 | D7: =-A7 -> -2890000
A8: 0 | B8: VF Regulatória | C8: 0 | E8: =-$A$8*E5 -> 0 | F8: 0 | G8: 0 | H8: 0 | I8: 0 | J8: 0 | K8: 0 | L8: 0 | M8: 0 | N8: 0
A9: 0 | B9: VF de Trânsito | C9: 0 | E9: =-E5*$A$9 -> 0 | F9: 0 | G9: 0 | H9: 0 | I9: 0 | J9: 0 | K9: 0 | L9: 0 | M9: 0 | N9: 0
B10: Receita Após Repasse | C10: 582314184.8 | E10: =E5+E6+(E8+E9) -> 14402541.57 | F10: 39584034.06 | G10: 51470311.49 | H10: 68122471.09 | I10: 68122471.09 | J10: 68122471.09 | K10: 68122471.09 | L10: 68122471.09 | M10: 68122471.09 | N10: 68122471.09
A11: =D2 -> 0 | B11: Receita Após Participação | C11: 582314184.8 | E11: =E10*(1-$A$11) -> 14402541.57 | F11: 39584034.06 | G11: 51470311.49 | H11: 68122471.09 | I11: 68122471.09 | J11: 68122471.09 | K11: 68122471.09 | L11: 68122471.09 | M11: 68122471.09 | N11: 68122471.09
B12: Tributos sobre Receita | C12: -80956444.53 | E12: =SUM(E13:E15) -> -1964747.838 | F12: =SUM(F13:F15) -> -5466179.363 | G12: -6850126.88 | H12: -9486718.817 | I12: -9499712.208 | J12: -9512575.665 | K12: -9525310.487 | L12: -9537917.962 | M12: -9550399.361 | N12: -9562755.947
A13: 0.0165 | B13: PIS | C13: -8670198.184 | E13: =(-E5*$A$13)-0.5*$A$13*E19 -> -207740.6438 | F13: =(-F5*$A$13)-0.5*$A$13*F19 -> -582773.9992 | G13: =(-G5*$A$13)-0.5*$A$13*G19 -> -711848.3746 | H13: -1017137.967 | I13: -1019455.707 | J13: -1021750.27 | K13: -1024021.887 | L13: -1026270.788 | M13: -1028497.2 | N13: -1030701.347
A14: 0.076 | B14: COFINS | C14: -39935458.3 | E14: =(-E5*$A14)-0.5*$A$14*E19 -> -956865.9956 | F14: =(-F5*$A14)-0.5*$A$14*F19 -> -2684292.36 | G14: -3278816.756 | H14: -4684999.122 | I14: -4695674.773 | J14: -4706243.668 | K14: -4716706.873 | L14: -4727065.447 | M14: -4737320.435 | N14: -4747472.872
A15: 0.05 | B15: ISS | C15: -32350788.04 | E15: =-E5*$A15 -> -800141.1984 | F15: -2199113.004 | G15: -2859461.749 | H15: -3784581.727 | I15: -3784581.727 | J15: -3784581.727 | K15: -3784581.727 | L15: -3784581.727 | M15: -3784581.727 | N15: -3784581.727
A16: =J2 -> 0 | B16: Receita Líquida | C16: 501357740.2 | E16: =E11+E12 -> 12437793.73 | F16: =F11+F12 -> 34117854.7 | G16: 44620184.61 | H16: 58635752.27 | I16: 58622758.88 | J16: 58609895.42 | K16: 58597160.6 | L16: 58584553.13 | M16: 58572071.73 | N16: 58559715.14
E17: =E16/E5 -> 0.7772249297 | F17: 0.775718543 | G17: 0.7802199945 | H17: 0.7746662181 | I17: 0.7744945559 | J17: 0.7743246103 | K17: 0.7741563642 | L17: 0.7739898006 | M17: 0.7738249026 | N17: 0.7736616536
B19: CUSTOS E DESPESAS OPERAÇÃO | C19: =SUM(D19:N19) -> -243098408.5 | E19: =-(OPEX!D7+OPEX!D10)*('VAGAS CAPEX'!O34+'VAGAS CAPEX'!O29+'VAGAS CAPEX'!N29)/('VAGAS CAPEX'!N35+'VAGAS CAPEX'!O35)-OPEX!D8*'FLUXO DE CAIXA 10 ANOS'!E5/'FLUXO DE CAIXA 10 ANOS'!H5-OPEX!D9 -> -6824963.841 | F19: =-OPEX!D7-OPEX!D8*'FLUXO DE CAIXA 10 ANOS'!F5/'FLUXO DE CAIXA 10 ANOS'!H5-OPEX!D9-OPEX!D10 -> -17325247.51 | G19: =-OPEX!D7-OPEX!D8-OPEX!D9-OPEX!D10 -> -28093818.51 | H19: =-OPEX!D6 -> -28093818.51 | I19: =0.99*H19 -> -27812880.32 | J19: -27534751.52 | K19: -27259404 | L19: -26986809.96 | M19: -26716941.86 | N19: -26449772.44
B20: DEPRECIAÇÃO | C20: -48908721.08 | E20: =-E59 -> -6340542.26 | F20: -4865621.382 | G20: -4865621.382 | H20: -4865621.382 | I20: -4865621.382 | J20: -4621138.66 | K20: =J20 -> -4621138.66 | L20: -4621138.66 | M20: -4621138.66 | N20: -4621138.66
B21: Lucro Bruto | C21: 209350610.7 | E21: =E16+E19+E20 -> -727712.3677 | F21: =F16+F19+F20 -> 11926985.81 | G21: =G16+G19+G20 -> 11660744.72 | H21: =H16+H19+H20 -> 25676312.39 | I21: 25944257.18 | J21: 26454005.25 | K21: 26716617.94 | L21: 26976604.51 | M21: 27233991.21 | N21: 27488804.04
C22: 0
B23: Lucro antes de IR | C23: 209350610.7 | E23: =E21 -> -727712.3677 | F23: 11926985.81 | G23: 11660744.72 | H23: 25676312.39 | I23: 25944257.18 | J23: 26454005.25 | K23: 26716617.94 | L23: 26976604.51 | M23: 27233991.21 | N23: 27488804.04
A24: 0.15 | B24: Imposto de Renda | C24: 31511748.45 | E24: =IF(E23<0,0,E$23*$A24) -> 0 | F24: 1789047.871 | G24: 1749111.708 | H24: 3851446.858 | I24: 3891638.577 | J24: 3968100.787 | K24: 4007492.691 | L24: 4046490.676 | M24: 4085098.681 | N24: 4123320.606
A25: 0.1 | B25: Adicional de Imposto | C25: 20791832.3 | E25: =IF(E23<240000,0,(E$23-240000)*$A25) -> 0 | F25: 1168698.581 | G25: 1142074.472 | H25: 2543631.239 | I25: 2570425.718 | J25: 2621400.525 | K25: 2647661.794 | L25: 2673660.451 | M25: 2699399.121 | N25: 2724880.404
A26: 0.09 | B26: Contribuição Social | C26: 18907049.07 | E26: =IF(E23<0,0,E$23*$A26) -> 0 | F26: 1073428.723 | G26: 1049467.025 | H26: 2310868.115 | I26: 2334983.146 | J26: 2380860.472 | K26: 2404495.615 | L26: 2427894.405 | M26: 2451059.208 | N26: 2473992.363
B27: Lucro Líquido | C27: 129897793.3 | D27: =D31 -> -8242187.501 | E27: =E23-SUM(E24:E26) -> -727712.3677 | F27: =F23-SUM(F24:F26) -> 7895810.634 | G27: 7720091.516 | H27: 16970366.17 | I27: 17147209.74 | J27: 17483643.46 | K27: 17656967.84 | L27: 17828558.97 | M27: 17998434.2 | N27: 18166610.67
A28: =H2 -> 0 | B28: Lucro Líquido Ajustado | C28: 129897793.3 | D28: =D7-RESSARCIMENTO!B4 -> -8242187.501 | E28: =E27*(1-$H$2) -> -727712.3677 | F28: 7895810.634 | G28: 7720091.516 | H28: 16970366.17 | I28: 17147209.74 | J28: 17483643.46 | K28: 17656967.84 | L28: 17828558.97 | M28: 17998434.2 | N28: 18166610.67
B29: Margem Sobre o Faturamento | C29: =C27/C5 -> 0.2007644963 | E29: -0.04547399691 | F29: 0.1795226217 | G29: 0.1349920403 | H29: 0.224203986 | I29: 0.2265403547 | J29: 0.2309851487 | K29: 0.2332750237 | L29: 0.2355419999 | M29: 0.2377863063 | N29: 0.2400081697
B30: FLUXO DE CAIXA PROJETO | E30: =E4 -> 1º Ano | F30: 2 º Ano | G30: 3º ano | H30: 4º ano | I30: 5º ano | J30: 6º ano | K30: 7º ano | L30: 8º ano | M30: 9º ano | N30: 10º ano
B31: (=) Lucro Líquido | C31: =SUM(D31:N31) -> 129897793.3 | D31: =D7-RESSARCIMENTO!B4 -> -8242187.501 | E31: =E28 -> -727712.3677 | F31: =F28 -> 7895810.634 | G31: 7720091.516 | H31: 16970366.17 | I31: 17147209.74 | J31: 17483643.46 | K31: 17656967.84 | L31: 17828558.97 | M31: 17998434.2 | N31: =N28 -> 18166610.67
B32: (+) Depreciação | C32: =SUM(E32:N32) -> 48908721.08 | E32: =E20*-1 -> 6340542.26 | F32: =F20*-1 -> 4865621.382 | G32: =G20*-1 -> 4865621.382 | H32: =H20*-1 -> 4865621.382 | I32: 4865621.382 | J32: 4621138.66 | K32: 4621138.66 | L32: 4621138.66 | M32: 4621138.66 | N32: 4621138.66
B33: IMOBILIZADO | C33: =SUM(D33:N33) -> 0 | E33: 0 | F33: =-'[1]TOTALRESUMO '!$I$24 -> 0 | G33: =-'[1]TOTALRESUMO '!$J$24 -> 0
B34: (-) Investimentos | C34: =SUM(D34:N34) -> -104767240.9 | E34: =-ESTACIONAMENTOS!O81-ESTACIONAMENTOS!Q81-ESTACIONAMENTOS!S81*('VAGAS CAPEX'!K34+'VAGAS CAPEX'!K29)/ESTACIONAMENTOS!M77-('VAGAS CAPEX'!N290+'VAGAS CAPEX'!O19+'VAGAS CAPEX'!O29+'VAGAS CAPEX'!O34)*80*EDIFICAÇÕES!C4-('VAGAS CAPEX'!O19+'VAGAS CAPEX'!O29+'VAGAS CAPEX'!O34)*70*EDIFICAÇÕES!C5-0.33*CAPEX!D9-CAPEX!D10-CAPEX!D11-CAPEX!D12-COMUNICAÇÃO!F19-CAPEX!D14 -> -56503887.57 | F34: =-ESTACIONAMENTOS!S81*'VAGAS CAPEX'!K26/ESTACIONAMENTOS!M77-'VAGAS CAPEX'!N26*80*EDIFICAÇÕES!C4-EDIFICAÇÕES!E3-0.67*CAPEX!D9-COMUNICAÇÃO!F36 -> -26198507.97 | G34: =-COMUNICAÇÃO!F53 -> 0 | I34: =-CAPEX!D9+EQUIPAMENTOS!F3-CAPEX!D12*0.5-CAPEX!D14 -> -10340206.7 | N34: =-CAPEX!D9+EQUIPAMENTOS!F3-CAPEX!D10-CAPEX!D12*0.5-CAPEX!D14 -> -11724638.7
B35: (-) Manutenção | C35: =SUM(E35:N35) -> -11870510.48 | I35: =-0.05*(CAPEX!D7+CAPEX!D8) -> -1978418.413 | J35: =I35 -> -1978418.413 | K35: =J35 -> -1978418.413 | L35: -1978418.413 | M35: -1978418.413 | N35: -1978418.413
B36: (-) Despesas Pré Operacionais | C36: =SUM(D36:N36) -> 0
B37: (=) Saldo de Caixa | C37: =SUM(D37:N37) -> 62168763 | D37: =SUM(D31:D36) -> -8242187.501 | E37: =SUM(E31:E36) -> -50891057.68 | F37: =SUM(F31:F36) -> -13437075.96 | G37: =SUM(G31:G36) -> 12585712.9 | H37: 21835987.56 | I37: 9694206.007 | J37: 20126363.71 | K37: 20299688.09 | L37: 20471279.22 | M37: 20641154.44 | N37: 9084692.212
B38: (=) Saldo de Caixa Acumulado | D38: =D37 -> -8242187.501 | E38: =E37+D38 -> -59133245.18 | F38: =F37+E38 -> -72570321.13 | G38: -59984608.24 | H38: -38148620.68 | I38: -28454414.67 | J38: -8328050.965 | K38: 11971637.12 | L38: 32442916.34 | M38: 53084070.78 | N38: 62168763
B39: FCL | C39: =NPV(C41,E37:N37)+D37 -> 62168763
B40: Exposição Máxima | C40: =MIN(D38:N38) -> -72570321.13
F41: SIMULAÇÃO
B42: VPL | C42: =NPV(C43,D37:N37) -> 4.297858915e-08
B43: TIR | C43: =IRR(D37:N37) -> 0.126811625 | F43: TARIFA AUTO (R$) | G43: 2
B44: Taxa Interna de Retorno Acionistas | C44: =IRR(D27:N27) -> 0.7262087547
F45: TAXA DE OCUPAÇÃO (%) | G45: 0.5
B46: VALOR DO CONTRATO | C46: =-(C6+C7+C19+C33+C34+C35) -> 427327736
D48: DEPRECIA;ÁO | E48: ANO 1 | F48: ANO 2 | G48: ANO 3 | H48: ANO 4 | I48: ANO 5 | J48: ANO 6-20
D49: Outorga | E49: =-$D7/10 -> 289000 | F49: =-$D7/10 -> 289000 | G49: 289000 | H49: 289000 | I49: 289000 | J49: 289000
D50: Ressarcimento | E50: =RESSARCIMENTO!$B4/10 -> 535218.7501 | F50: =RESSARCIMENTO!$B4/10 -> 535218.7501 | G50: =RESSARCIMENTO!$B4/10 -> 535218.7501 | H50: =RESSARCIMENTO!$B4/10 -> 535218.7501 | I50: =RESSARCIMENTO!$B4/10 -> 535218.7501 | J50: =RESSARCIMENTO!$B4/10 -> 535218.7501
D51: Estacionamentos | E51: =(ESTACIONAMENTOS!O81+ESTACIONAMENTOS!Q81+ESTACIONAMENTOS!S81*('VAGAS CAPEX'!K29+'VAGAS CAPEX'!K34)/ESTACIONAMENTOS!M77)/10 -> 2248840.373 | F51: =E51+(CAPEX!D7-'FLUXO DE CAIXA 10 ANOS'!E51*20)/9 -> 1174757.574 | G51: =F51 -> 1174757.574 | H51: 1174757.574 | I51: 1174757.574 | J51: 1174757.574
D52: Edificações | E52: =(('VAGAS CAPEX'!N290+'VAGAS CAPEX'!O19+'VAGAS CAPEX'!O29+'VAGAS CAPEX'!O34)*80*EDIFICAÇÕES!C4+('VAGAS CAPEX'!O19+'VAGAS CAPEX'!O29+'VAGAS CAPEX'!O34)*70*EDIFICAÇÕES!C5)/10 -> 943378.56 | F52: =E52+(CAPEX!D8-'FLUXO DE CAIXA 10 ANOS'!E52*20)/9 -> -679873.1289 | G52: -679873.1289 | H52: -679873.1289 | I52: -679873.1289 | J52: -679873.1289
D53: Equipamentos | E53: =0.33*CAPEX!D9/5 -> 481667.4522 | F53: =E53+0.67*CAPEX!D9/4 -> 1704081.062 | G53: =F53 -> 1704081.062 | H53: 1704081.062 | I53: 1704081.062 | J53: =CAPEX!D9/5 -> 1459598.34
D54: CCO | E54: =CAPEX!D10/10 -> 138443.2 | F54: =E54 -> 138443.2 | G54: 138443.2 | H54: 138443.2 | I54: 138443.2 | J54: =I54 -> 138443.2
D55: Sistemas | E55: =CAPEX!D11/15 -> 834666.6667 | F55: =E55 -> 834666.6667 | G55: 834666.6667 | H55: 834666.6667 | I55: 834666.6667 | J55: 834666.6667
D56: Veículos | E56: =CAPEX!D12/10 -> 465600 | F56: 465600 | G56: 465600 | H56: 465600 | I56: 465600 | J56: 465600
D57: Comunicação | E57: =CAPEX!D13/20 -> 260884.258 | F57: 260884.258 | G57: 260884.258 | H57: 260884.258 | I57: 260884.258 | J57: 260884.258
D58: Uniformes | E58: =CAPEX!D14/5 -> 142843 | F58: 142843 | G58: 142843 | H58: 142843 | I58: 142843 | J58: 142843
D59: TOTAL | E59: =SUM(E49:E58) -> 6340542.26 | F59: 4865621.382 | G59: 4865621.382 | H59: 4865621.382 | I59: 4865621.382 | J59: 4621138.66
